{"text_format":"2","workbook":"xlsx","n_sheets":12,"sheets":["RA Tháng 6","RA tháng 7","RA tháng 11","RA tháng 12_SOL","RA tháng 12_AI4SE","RA tháng 12_LAB SC","RA tháng 2_SOL","RA tháng 2_LAB SC","RA tháng 2_AI4SE","RA tháng 1_SOL","RA tháng 1_LAB SC","RA tháng 1_AI4SE"],"not_rendered":{"charts":0,"images":0,"macros":0,"external_links":0,"defined_names":9,"comments":0,"pivot_tables":0},"unopened":[],"bounds":{"document_bytes":16777216,"sheet_cells":100000,"run_cost":"one","rows_first":2000,"rows_last":500,"rows_between":2000,"halvings":0,"cell_chars":16384,"cell_head_chars":4096},"cells_cut":0,"cells_raw":0,"read":"whole","date_system":"1900"}

{"sheet":"RA Tháng 6","index":0,"n_rows":126,"n_cols":9,"rows_kept":126,"cut":false,"hidden":true,"merged":[]}
["No.","Account","Full Name","Site","Job Rank","Workload","On-going Project 1","PM/Tech Lead AI1","PM dự án"]
[1,"AnDN2","Đinh Ngọc Ân","HCM","DEVE01",1,"AIC.SOL.E2E AI","TienVT4"]
[2,"AnhBT57","Bùi Tuấn Anh","HCM","AIEN01",1,"AI1.SOL.CDTO.Ivy Product","DuongHT13"]
[3,"AnhMV4","Mai Việt Anh","HL","SPMA03",1,"MCP Sales Coach Training","TamNT17"]
[4,"AnhNCN1","Nguyễn Công Nam Anh","HCM","AIEN01",1,"CISD GenerativeAI","DuongHT13","SamCM1"]
[5,"AnhNDT16","Nguyễn Đoàn Tấn Anh","HN","AIEN02",1,"AI1.SOL.SBFJP","TrangNTM13"]
[6,"AnhNHQ1","Nguyễn Hoàng Quốc Anh","HN","AIEN01",0,"Support Davies => Idle","LangPNN2"]
[7,"AnhNT446","Nguyễn Tuấn Anh","HN","DASC05",0.13,"AI DRBFM","TrungND25","TinhNT27"]
[8,"AnhPT95","Phạm Tuấn Anh","HN","AIEN01",0,"Preparing Renesas Project","KhoaNT30"]
[9,"BachLN2","Lê Nho Bách","HCM","AIEN01",1,"Toppan Jokomi","DuongHT13","ThuyTTT7"]
[10,"CuongLD9","Lê Đức Cường","HN","AIEN03",1,"AI1.SOL.SUNLIFE_PH","TrangNTM13"]
[11,"CuongNC20","Nguyễn Chí Cường","HCM","DASC03",1,"AIFarm","TrungDVQ"]
[13,"DaoNTA7","Nguyễn Thị Anh Đào","HN","DASC02",0.5,"AI Insight Engine","LangPNN2"]
[14,"DatLT94","Lương Tất Đạt","HCM","DSEN01",2,"AIFarm","TrungDVQ"]
[15,"DatNT279","Nguyễn Thành Đạt","HN","AIEN01",1,"Covestro_AI","TuanNT54"]
[16,"DatNV54","Nguyễn Văn Đạt","HN","AIEN01",1,"AIC SOL Multicustomer 2025","TrangNTM13"]
[17,"DucNH82","Nguyễn Huỳnh Đức","HN","DEVO03",1,"Multi Internal Customer","ViVV2"]
[18,"DucNT156","Nguyễn Thanh Đức","HN","AIEN02",2,"AI DRBFM","TrungND25","TinhNT27"]
[19,"DungNN31","Nguyễn Ngọc Dũng","HN","BANE03",0,"Dự án EBS - Lending","TrangNTM13","PM Lending EBS"]
[20,"DungNT20","Nguyễn Trọng Dũng","HN","DASC05",1,"Platform_Development","LanNTQ2"]
[21,"DuongHT13","Huỳnh Tấn Dưỡng","HCM","SPMA02",0.75,"HP PJ2 IvyChat","TamNT17"]
[22,"DuyDT14","Dương Thành Duy","HCM","DEVE01",1,"AIC.SOL.MDDI","LangPNN2"]
[23,"HaHT37","Hoàng Thúy Hà","HN","AIEN02",1,"Covestro_AI","TuanNT54"]
[24,"HaiTV23","Tô Văn Hải","HN","AIEN03",1,"AI1.SOL.CDTO.Ivy Product","DuongHT13"]
[25,"HANGHT","Hứa Thu Hằng","HN","TEST03",1,"CISD GenerativeAI","DuongHT13","SamCM1"]
[26,"HanhTV3","Tạ Vinh Hạnh","HCM","AIEN01",1,"HALCANN2","TrungDVQ"]
[27,"HaoPP2","Phan Phú Hào","HCM","AIEN01",0,"Leaving 14.6","TrungND25"]
[28,"HasanainM","Mehmood Hasanain","HN","AIEN03",1,"AI Insight Engine","LangPNN2"]
[29,"HaVH12","Vũ Hải Hà","HN","DEVE03",1,"AI1.SOL.CDTO.Ivy Product","DuongHT13"]
[30,"HienNM19","Nguyễn Minh Hiển","HN","AIEN02",1,"AI1.SOL.SBFJP","TrangNTM13"]
[31,"HieuDD12","Dương Đức Hiếu","HN","AISC04",0.5,"AIC SOL Multicustomer 2025","TrangNTM13"]
[32,"HieuLM27","Lương Minh Hiệu","HN","AIEN02",1,"Preparing Renesas Project","NhatNX1"]
[33,"HieuLT44","Lê Trung Hiếu","HCM","AIEN01",1,"AIC SOL Multicustomer 2025","TrangNTM13"]
[34,"HieuTH7","Thân Huy Hiệu","HCM","DEVE03",0.5,"AIC.SOL.E2E AI","TienVT4"]
[35,"HoangLX2","Lương Xuân Hoàng","HN","DEVE03",1,"GE Risk Management LLM","ThoPT1"]
[36,"HoangNL10","Nguyễn Lê Hoàng","HN","AIEN02",0,"Preparing Renesas Project","NhatNX1"]
[37,"HoangNT66","Nguyễn Tiến Hoàng","HN","AIEN02",0,"Preparing NVIDIA demo","KhoaNT30"]
[38,"HoangPH25","Phan Huy Hoàng","HCM","AIEN01",1,"AI Insight Engine","LangPNN2"]
[39,"HoaNQ9","Nguyễn Quang Hòa","HN","DEVE04",1,"Covestro_AI","TuanNT54"]
[40,"HungHT34","Hồ Thịnh Hưng","HCM","AIEN02",2,"AIFarm","TrungDVQ"]
[41,"HungTT5","Trần Thế Hùng","HN","DASC03",1,"UVNAPS","TrangNTM13","PM BU khác"]
[42,"HungVN6","Vũ Nam Hưng","HN","DEVE05",1,"GenAI PF","AnhMV4","ThuyTTTT7"]
[43,"HuongNL16","Nguyễn Lan Hương","HN","AIEN02",1,"Covestro_AI","TuanNT54"]
[44,"HuongNS","Nguyễn Sông Hương","HL","SARE03",0,"Idle - tự học ","TamNT17"]
[45,"HuyHD7","Hoàng Đức Huy","HCM","DASC02",1,"AIC.SOL.E2E AI","TienVT4"]
[46,"HuyT3","Trần Huy","HCM","AIEN01",1,"AIFarm","TrungDVQ"]
[47,"HUYTC4","Trần Cao Huy","HCM","AIEN02",0,"Leaving - CISD","DuongHT13","SamCM1"]
[48,"HuyTQ130","Trần Quang Huy","HCM","AIEN03",1,"AIFarm","TrungDVQ"]
[49,"KhangCM2","Châu Minh Khang","HCM","DEVO02",1,"CISD GenerativeAI","DuongHT13","SamCM1"]
[50,"KhangCP","Cù Phúc Khang","HN","DEVE02",1,"GE Risk Management LLM","ThoPT1"]
[51,"KhangLD7","Lâm Duy Khang","HCM","AIEN02",0,"Leaving - Last day 8.6","TienVT4"]
[52,"KhanhPD22","Phạm Đình Khánh","HN","AIEN03",0,"Idle - Làm proposal","LanNTQ2"]
[53,"KhoaHA5","Hồ Anh Khoa","HCM","AIEN01",2,"AItomatic Cyber Security","TrangNTM13"]
[54,"KhoaNT30","Nguyễn Toàn Khoa","HCM","AIEN03",1,"AIC SOL Multicustomer 2025","TrangNTM13"]
[55,"LinhBT16","Bùi Tuấn Linh","HN","DEVO01",0.75,"Multi Internal Customer","ViVV2"]
[56,"LinhND77","Nguyễn Đức Linh","HN","AIEN02",1,"CISD GenerativeAI","DuongHT13","SamCM1"]
[57,"LinhNPK","Nguyễn Phạm Khánh Linh","HCM","DEVE01",0,"Leaving - Ra EC từ 16.6","NganMTK2"]
[58,"LinhPK14","Phùng Khánh Linh","HCM","AIEN02",0,"CISD GenerativeAI","DuongHT13"]
[59,"LoiLN","Lê Ngọc Lợi","HCM","DSEN03",1,"AI1.SOL.RNS_JP","TrangNTM13"]
[60,"LongHT14","Hồ Tuấn Long","HN","AIEN01",1,"AIC SOL Multicustomer 2025","TrangNTM13"]
[61,"LongNN48","Nguyễn Ngọc Long","HN","AIEN01",1,"Covestro_AI","TuanNT54"]
[62,"LuongPTT","Phạm Trần Trung Lượng","HCM","AIEN01",1,"AI1.SOL.CDTO.Ivy Product","DuongHT13"]
[63,"MaiDTK","Đinh Thị Kim Mai","HCM","DSAN01",1,"Multi Internal Customer","NganMTK2"]
[64,"ManhNV45","Nguyễn Văn Mạnh","HCM","AIEN02",1,"AIC.SOL.MDDI","LangPNN2"]
[65,"MinhBTC","Bùi Trần Công Minh","HCM","AIEN02",1,"GE Risk Management LLM","ThoPT1"]
[66,"MinhHDN","Hoàng Đức Nhật Minh","HCM","AIEN01",1,"GE Risk Management LLM","ThoPT1"]
[67,"MinhLN13","Lê Ngọc Minh","HN","DASC04",1,"HALCANN2","TrungDVQ"]
[68,"MinhLN30","Lê Nhật Minh","HCM","AIEN01",0,"Preparing NVIDIA demo","KhoaNT30"]
[69,"NamPNH2","Phạm Ngọc Hải Nam","HCM","DEVE01",1,"Multi Internal Customer","TrangNTM13","TungNT181"]
[70,"NganMTK2","Mai Thị Kim Ngân","HCM","DSAN03",0.51,"AI1.SOL.CDTO.Ivy Product","DuongHT13"]
[71,"NghiaHT5","Huỳnh Trung Nghĩa","HCM","AIEN03",0,"Leaving - Last day 29.6","TienVT4"]
[72,"NghiaPH8","Phạm Hoàng Nghĩa","HN","AIEN02",0.5,"AI1.SOL.AITOMIC","TrangNTM13"]
[73,"NghiaVT16","Vũ Trọng Nghĩa","HCM","DEVO02",0.8,"Multi Internal Customer","ViVV2"]
[74,"NguyenTT41","Thái Thành Nguyên","HCM","AIEN01",1,"CISD GenerativeAI","DuongHT13","SamCM1"]
[75,"NhaLT3","Lục Thanh Nhã","HCM","AIEN03",0,"Leaving - Last day 30.5","TienVT4"]
[76,"NhatNX1","Nguyễn Xuân Nhật","HN","AISC04",1.8,"HALCANN2","TrungDVQ"]
[77,"NhiNP11","Ngô Phương Nhi","HN","AIEN03",1,"CISD GenerativeAI","DuongHT13","SamCM1"]
[78,"PhongTNH","Trần Ngọc Hùng Phong","HN","AIEN02",1,"HP PJ2 IvyChat","DuongHT13"]
[79,"PhuongNV44","Nguyễn Việt Phương","HCM","AIEN01",1,"MCP Sales Coach Training","AnhMV4"]
[80,"QuangNG","Nguyễn Gia Quang","HCM","AIEN02",0,"GHC Project","TrangNTM13"]
[81,"QuanNV61","Nguyễn Văn Quân","HN","AIEN02",0.85,"VNA_Lotusmiles_2024","QuyetDM","PM BU khác"]
[82,"QuyenH","Hoàng Quyền","HN","DEVE04",1,"Covestro_AI","TuanNT54"]
[83,"QuyenLH2","Lê Hạnh Quyên","HN","DSAN01",1,"Multi Internal Customer","NganMTK2"]
[84,"QuyetDM","Đỗ Minh Quyết","HN","DSEN02",0.5,"HP PJ2 IvyChat","DuongHT13"]
[85,"TamNT17","Nguyễn Thanh Tâm","HCM","SGMT01",0,"Delivery Manager","LanNTQ2"]
[86,"TanND22","Nguyễn Duy Tân","NT","AIEN02",1,"CISD GenerativeAI","DuongHT13","SamCM1"]
[87,"TanNP3","Nguyễn Phúc Tân","HN","AIEN03",1,"Covestro_AI","TuanNT54"]
[88,"ThaiNT13","Nguyễn Tiến Thái","HN","AIEN03",0,"Preparing Renesas Project","KhoaNT30"]
[89,"ThaiTQ23","Trần Quang Thái","HCM","AIEN01",0,"Leaving - Last day 23.6","LangPNN2"]
[90,"ThaiVV","Vũ Văn Thái","HN","AIEN02",0,"Leaving - Last day 15.6","TienVT4"]
[91,"ThangDV47","Dương Văn Thắng","HCM","AIEN02",1,"MCP Sales Coach Training","AnhMV4"]
[92,"ThangTV45","Trịnh Văn Thắng","HN","DEVE04",1,"AI1.SOL.ARTINLEAP","TrangNTM13"]
[93,"ThanhNV154","Nguyễn Văn Thành","HN","AIEN02",1,"Preparing Rohto Project","NhatNX1"]
[94,"ThePD2","Phạm Đình Thế","HN","DEVO04",0.5,"AIC.SOL.E2E AI","ViVV2"]
[95,"ThongCT2","Chu Tuấn Thông","HN","DEVE03",1,"HP PJ2 IvyChat","DuongHT13"]
[96,"ThoPT1","Phạm Thị Tho","HCM","SPMA03",1,"GE Risk Management LLM","TamNT17"]
[97,"TienPTA3","Phạm Trần Anh Tiên","HCM","DEVE01",1,"AI1.SOL.CDTO.Ivy Product","DuongHT13"]
[98,"TienTT8","Trương Trọng Tiến","HCM","DEVE01",0.85,"VNA_Lotusmiles_2024","QuyetDM","PM BU khác"]
[99,"TienVT4","Vũ Thanh Tiến","HL","SPMA04",1,"AIC.SOL.E2E AI","TamNT17"]
[100,"TinDD4","Dương Đức Tín","HCM","AIEN02",1,"AIC SOL Multicustomer 2025","TrangNTM13"]
[101,"ToanTV26","Tạ Văn Toàn","HN","DEVE03",1,"MCP Sales Coach Training","AnhMV4"]
[102,"TrinhPTN","Phan Thị Ngọc Trinh","DN","BANE03",1,"AI Insight Engine","LangPNN2"]
[103,"TrungDVQ","Đinh Vũ Quốc Trung","HCM","TADO01",1,"HALCANN2","TrungDVQ"]
[104,"TrungHD8","Hoàng Duy Trung","HN","DEVE03",1,"Toppan Jokomi","DuongHT13","ThuyTTT7"]
[105,"TrungHQ14","Hoàng Quốc Trung","HCM","DEVE01",1,"AIFarm","TrungDVQ"]
[106,"TrungLH12","Lê Hoàng Trung","HCM","AIEN01",0,"Demo - Physical AI - Demo NVIDIA","KhoaNT30"]
[107,"TrungND25","Nguyễn Đình Trung","HN","SPMA04",1,"AIC.SOL PITS TC Recommendation","TamNT17"]
[108,"TrungNT108","Nguyễn Thành Trung","HN","AIEN03",1,"Covestro_AI","TuanNT54"]
[109,"TrungTD24","Trần Đức Trung","HN","AIEN02",1,"HALCANN2","TrungDVQ"]
[110,"TruongNH14","Ngô Huỳnh Trưởng","HCM","AIEN02",0,"Leaving - Last day 8.6","DuongHT13"]
[111,"TuanBA22","Bùi Anh Tuấn","HCM","DASC03",1,"AI1.SOL.AMP","TrangNTM13"]
[112,"TuanDV54","Đỗ Văn Tuấn","HN","DEVE04",1,"CISD GenerativeAI","DuongHT13","SamCM1"]
[113,"TuanNN27","Ninh Ngọc Tuấn","HN","DEVE03",1,"AI1.SOL.ARTINLEAP","TrangNTM13"]
[114,"TuanNS1","Nguyễn Sĩ Tuấn","HN","AIEN01",1,"CISD GenerativeAI","DuongHT13","SamCM1"]
[115,"TuanNT54","Nguyễn Thanh Tuấn","HN","DASC04",1,"Covestro_AI","TuanNT54"]
[116,"TungNS41","Nguyễn Sơn Tùng","HN","AIEN01",1,"Covestro_AI","TuanNT54"]
[117,"VanNT8","Nguyễn Thị Vân","HN","DEVE02",1,"HP PJ2 IvyChat","DuongHT13"]
[118,"VermaAK","Verma Ajeet Kumar","HN","AIEN03",0,"Idle - tự học ","TamNT17"]
[119,"VietPH5","Phạm Hùng Việt","HCM","AIEN01",1,"CISD GenerativeAI","DuongHT13","SamCM1"]
[120,"VietPH6","Phạm Hữu Việt","HN","DEVE03",0,"Demo - Thi Hackathon","MinhLN13"]
[121,"VietTH18","Tạ Hoàng Việt","HN","DEVE03",1,"Toppan Jokomi","DuongHT13"]
[122,"VinhDQ15","Đỗ Quang Vinh","HN","DEVO03",1,"Covestro_AI","TuanNT54"]
[123,"VinhDQ21","Đặng Quang Vinh","HN","AIEN02",1,"AIC SOL Multicustomer 2025","TrangNTM13"]
[124,"ViVV2","Vũ Vương Vĩ","HCM","DEVO04",1,"Multi Internal Customer","PhongNX1"]
[125,"VuLA3","Lê Anh Vũ","DN","SPMA03",0.25,"ORT_Longterm_2025","TamNT17"]
[126,"VuNQ7","Nguyễn Quang Vũ","HCM","SARE03",1,"AIC.SOL.MDDI","LangPNN2"]

{"sheet":"RA tháng 7","index":1,"n_rows":124,"n_cols":13,"rows_kept":124,"cut":false,"hidden":true,"merged":[]}
["Full Name","Account","Contract Type","Location","Parent Dept","Child Dept1","Child Dept2","Customer Code","On-going Project","Status_Jul","PM","PM khác","MSC Note"]
["Vũ Nam Hưng","HungVN6","OFF","HN","AI1","AI1 SOL","AI1 SOL TE","SonyGS","GenAI PF","Allocated",{"$f":"VLOOKUP(B2,'RA Tháng 6'!$B$2:$H$126,7,FALSE)","v":"AnhMV4"}]
["Nguyễn Việt Phương","PhuongNV44","OFF","HCM","AI1","AI1 SOL","AI1 SOL TE","DMO-CDTO","AIC.SOL.E2E AI","Allocated","AnhMV4"]
["Dương Văn Thắng","ThangDV47","OFF","HCM","AI1","AI1 SOL","AI1 SOL TE","TP-M","Toppan Jokomi, MCP, HP Japan","Allocated",{"$f":"VLOOKUP(B4,'RA Tháng 6'!$B$2:$H$126,7,FALSE)","v":"AnhMV4"}]
["Tô Văn Hải","HaiTV23","OFF","HN","AI1","AI1 SOL","AI1 SOL TE","DMO-CDTO","AI1.SOL.CDTO.Ivy Product","Idle",{"$f":"VLOOKUP(B5,'RA Tháng 6'!$B$2:$H$126,7,FALSE)","v":"DuongHT13"}]
["Vũ Hải Hà","HaVH12","OFF","HN","AI1","AI1 SOL","AI1 SOL TE","DMO-CDTO","AI1.SOL.CDTO.Ivy Product","Allocated",{"$f":"VLOOKUP(B6,'RA Tháng 6'!$B$2:$H$126,7,FALSE)","v":"DuongHT13"}]
["Mai Thị Kim Ngân","NganMTK2","OFF","HCM","AI1","AI1 SOL","AI1 SOL TE","DMO-CDTO","AIC.SOL.E2E AI","Allocated",{"$f":"VLOOKUP(B7,'RA Tháng 6'!$B$2:$H$126,7,FALSE)","v":"DuongHT13"}]
["Trần Ngọc Hùng Phong","PhongTNH","OFF","HN","AI1","AI1 SOL","AI1 SOL TE","HPI","HP PJ2 IvyChat","Allocated",{"$f":"VLOOKUP(B8,'RA Tháng 6'!$B$2:$H$126,7,FALSE)","v":"DuongHT13"}]
["Đỗ Minh Quyết","QuyetDM","OFF","HN","AI1","AI1 SOL","AI1 SOL TE","SIA","AVI_MultiPO_2025","Allocated","TrungND25"]
["Chu Tuấn Thông","ThongCT2","OFF","HN","AI1","AI1 SOL","AI1 SOL TE","HPI","HP PJ2 IvyChat","Allocated",{"$f":"VLOOKUP(B10,'RA Tháng 6'!$B$2:$H$126,7,FALSE)","v":"DuongHT13"}]
["Hoàng Duy Trung","TrungHD8","OFF","HN","AI1","AI1 SOL","AI1 SOL TE","TP-M","Toppan Jokomi","Allocated",{"$f":"VLOOKUP(B11,'RA Tháng 6'!$B$2:$H$126,7,FALSE)","v":"DuongHT13"}]
["Nguyễn Thị Vân","VanNT8","OFF","HN","AI1","AI1 SOL","AI1 SOL TE","HPI","HP PJ2 IvyChat","Allocated",{"$f":"VLOOKUP(B12,'RA Tháng 6'!$B$2:$H$126,7,FALSE)","v":"DuongHT13"}]
["Tạ Hoàng Việt","VietTH18","OFF","HN","AI1","AI1 SOL","AI1 SOL TE","TP-M","Toppan Jokomi","Allocated",{"$f":"VLOOKUP(B13,'RA Tháng 6'!$B$2:$H$126,7,FALSE)","v":"DuongHT13"}]
["Lê Nhật Minh","MinhLN30","OFF","HCM","AI1","AI1 SOL","AI1 SOL TE",null,null,"Leaving",{"$f":"VLOOKUP(B14,'RA Tháng 6'!$B$2:$H$126,7,FALSE)","v":"KhoaNT30"}]
["Lê Hoàng Trung","TrungLH12","OFF","HCM","AI1","AI1 SOL","AI1 SOL TE",null,null,"Idle",{"$f":"VLOOKUP(B15,'RA Tháng 6'!$B$2:$H$126,7,FALSE)","v":"KhoaNT30"}]
["Nguyễn Hoàng Quốc Anh","AnhNHQ1","OFF","HN","AI1","AI1 SOL","AI1 SOL TE","MVP","AI Insight Engine","Allocated",{"$f":"VLOOKUP(B16,'RA Tháng 6'!$B$2:$H$126,7,FALSE)","v":"LangPNN2"}]
["Nguyễn Thị Anh Đào","DaoNTA7","OFF","HN","AI1","AI1 SOL","AI1 SOL TE","MVP","AI Insight Engine","Allocated",{"$f":"VLOOKUP(B17,'RA Tháng 6'!$B$2:$H$126,7,FALSE)","v":"LangPNN2"}]
["Dương Thành Duy","DuyDT14","OFF","HCM","AI1","AI1 SOL","AI1 SOL TE","MVP","AIC.SOL.MDDI","Allocated",{"$f":"VLOOKUP(B18,'RA Tháng 6'!$B$2:$H$126,7,FALSE)","v":"LangPNN2"}]
["Mehmood Hasanain","HasanainM","OFF","HN","AI1","AI1 SOL","AI1 SOL TE","MVP","AI Insight Engine","Allocated",{"$f":"VLOOKUP(B19,'RA Tháng 6'!$B$2:$H$126,7,FALSE)","v":"LangPNN2"}]
["Phan Huy Hoàng","HoangPH25","OFF","HCM","AI1","AI1 SOL","AI1 SOL TE","MVP","AI Insight Engine","Allocated",{"$f":"VLOOKUP(B20,'RA Tháng 6'!$B$2:$H$126,7,FALSE)","v":"LangPNN2"}]
["Nguyễn Văn Mạnh","ManhNV45","OFF","HCM","AI1","AI1 SOL","AI1 SOL TE","MVP","AIC.SOL.MDDI","Allocated",{"$f":"VLOOKUP(B21,'RA Tháng 6'!$B$2:$H$126,7,FALSE)","v":"LangPNN2"}]
["Phan Thị Ngọc Trinh","TrinhPTN","OFF","DN","AI1","AI1 SOL","AI1 SOL TE","MVP","AI Insight Engine","Allocated",{"$f":"VLOOKUP(B22,'RA Tháng 6'!$B$2:$H$126,7,FALSE)","v":"LangPNN2"}]
["Nguyễn Quang Vũ","VuNQ7","OFF","HCM","AI1","AI1 SOL","AI1 SOL TE","MVP","AIC.SOL.MDDI","Allocated",{"$f":"VLOOKUP(B23,'RA Tháng 6'!$B$2:$H$126,7,FALSE)","v":"LangPNN2"}]
["Nguyễn Trọng Dũng","DungNT20","OFF","HN","AI1","AI1 SOL","AI1 SOL TE","Covestro","Platform_Development","Allocated",{"$f":"VLOOKUP(B24,'RA Tháng 6'!$B$2:$H$126,7,FALSE)","v":"LanNTQ2"},null,"check lại"]
["Đoàn Huy Hiên","HienDH4","POI","HN","AI1","AI1 SOL","AI1 SOL TE",null,null,"Idle","LanNTQ2",null,"check lại"]
["Đặng Thị Cẩm Hà","HaDTC","OFF","HCM","AI1","AI1 SOL","AI1 SOL BD",null,null,"Idle"]
["Phạm Đình Khánh","KhanhPD22","OFF","HN","AI1","AI1 SOL","AI1 SOL TE",null,null,"Idle",{"$f":"VLOOKUP(B27,'RA Tháng 6'!$B$2:$H$126,7,FALSE)","v":"LanNTQ2"}]
["Nguyễn Thanh Tâm","TamNT17","OFF","HCM","AI1","AI1 SOL","AI1 SOL TE",null,null,"Overhead",{"$f":"VLOOKUP(B28,'RA Tháng 6'!$B$2:$H$126,7,FALSE)","v":"LanNTQ2"},null,"check lại"]
["Phạm Hữu Việt","VietPH6","OFF","HN","AI1","AI1 SOL","AI1 SOL TE","VILAF","AIC SOL Multicustomer 2025","Allocated",{"$f":"VLOOKUP(B29,'RA Tháng 6'!$B$2:$H$126,7,FALSE)","v":"MinhLN13"}]
["Phạm Thị Thu Hằng","HangPTT15","OFF","HN","AI1","AI1 SOL","AI1 SOL BD",null,null,"Idle"]
["Đinh Thị Kim Mai","MaiDTK","OFF","HCM","AI1","AI1 SOL","AI1 SOL TE","DMO-CDTO","Multi Internal Customer","Allocated",{"$f":"VLOOKUP(B31,'RA Tháng 6'!$B$2:$H$126,7,FALSE)","v":"NganMTK2"}]
["Lê Hạnh Quyên","QuyenLH2","OFF","HN","AI1","AI1 SOL","AI1 SOL TE","DMO-CDTO","Multi Internal Customer","Maternity",{"$f":"VLOOKUP(B32,'RA Tháng 6'!$B$2:$H$126,7,FALSE)","v":"NganMTK2"}]
["Nguyễn Văn Thành","ThanhNV154","OFF","HN","AI1","AI1 SOL","AI1 SOL TE","VILAF","AIC SOL Multicustomer 2025","Allocated",{"$f":"VLOOKUP(B33,'RA Tháng 6'!$B$2:$H$126,7,FALSE)","v":"NhatNX1"}]
["Vũ Vương Vĩ","ViVV2","OFF","HCM","AI1","AI1 SOL","AI1 SOL TE","DMO-CDTO","Multi Internal Customer","Allocated",{"$f":"VLOOKUP(B34,'RA Tháng 6'!$B$2:$H$126,7,FALSE)","v":"PhongNX1"}]
["Đỗ Thu Hiền","HienDT65","OFF","HN","AI1","AI1 SOL","AI1 SOL BD",null,null,"Idle"]
["Trương Trọng Tiến","TienTT8","OFF","HCM","AI1","AI1 SOL","AI1 SOL TE","VNA","VNA_Lotusmiles_2024","Idle",{"$f":"VLOOKUP(B36,'RA Tháng 6'!$B$2:$H$126,7,FALSE)","v":"QuyetDM"}]
["Trịnh Thị Thu Hiền","HienTTT70","OFF","HN","AI1","AI1 SOL","AI1 SOL BD",null,null,"Idle"]
["Dương Đức Hiếu","HieuDD12","OFF","HN","AI1","AI1 SOL","AI1 SOL BD","VILAF","AIC SOL Multicustomer 2025","Idle"]
["Phùng Khánh Linh","LinhPK14","OFF","HCM","AI1","AI1 SOL","AI1 SOL TE","CISD","CISD GenerativeAI","Allocated","SamCM1"]
["Vương Thùy Dung","DungVT34","OFF","HN","AI1","AI1 SOL","AI1 SOL TE","CISD","CISD GenerativeAI","Allocated","SamCM1"]
["Hứa Thu Hằng","HANGHT","OFF","HN","AI1","AI1 SOL","AI1 SOL TE","CISD","CISD GenerativeAI","Allocated","SamCM1"]
["Bùi Khánh Huyền","HuyenBK2","OFF","HN","AI1","AI1 SOL","AI1 SOL TE","CISD","CISD GenerativeAI","Allocated","SamCM1"]
["Châu Minh Khang","KhangCM2","OFF","HCM","AI1","AI1 SOL","AI1 SOL TE","CISD","CISD GenerativeAI","Allocated","SamCM1"]
["Nguyễn Đức Linh","LinhND77","OFF","HN","AI1","AI1 SOL","AI1 SOL TE","CISD","CISD GenerativeAI","Allocated","SamCM1"]
["Thái Thành Nguyên","NguyenTT41","OFF","HCM","AI1","AI1 SOL","AI1 SOL TE","CISD","CISD GenerativeAI","Allocated","SamCM1"]
["Ngô Phương Nhi","NhiNP11","OFF","HN","AI1","AI1 SOL","AI1 SOL TE","CISD","CISD GenerativeAI","Allocated","SamCM1"]
["Chiếng Mành Sâm","SamCM1","OFF","HCM","AI1","AI1 SOL","AI1 SOL TE","CISD","CISD GenerativeAI","Allocated","SamCM1"]
["Nguyễn Duy Tân","TanND22","OFF","NT","AI1","AI1 SOL","AI1 SOL TE","CISD","CISD GenerativeAI","Allocated","SamCM1"]
["Đỗ Văn Tuấn","TuanDV54","OFF","HN","AI1","AI1 SOL","AI1 SOL TE","CISD","CISD GenerativeAI","Allocated","SamCM1"]
["Nguyễn Sĩ Tuấn","TuanNS1","OFF","HN","AI1","AI1 SOL","AI1 SOL TE","CISD","CISD GenerativeAI","Allocated","SamCM1"]
["Mai Việt Anh","AnhMV4","OFF","HL","AI1","AI1 SOL","AI1 SOL TE","TP-M","Toppan Jokomi","Allocated",{"$f":"VLOOKUP(B51,'RA Tháng 6'!$B$2:$H$126,7,FALSE)","v":"TamNT17"}]
["Huỳnh Tấn Dưỡng","DuongHT13","OFF","HCM","AI1","AI1 SOL","AI1 SOL TE","HPI","HP PJ2 IvyChat","Allocated",{"$f":"VLOOKUP(B52,'RA Tháng 6'!$B$2:$H$126,7,FALSE)","v":"TamNT17"}]
["Nguyễn Sông Hương","HuongNS","OFF","HL","AI1","AI1 SOL","AI1 SOL TE",null,null,"Idle",{"$f":"VLOOKUP(B53,'RA Tháng 6'!$B$2:$H$126,7,FALSE)","v":"TamNT17"}]
["Phan Nguyễn Nhất Lang","LangPNN2","OFF","HCM","AI1","AI1 SOL","AI1 SOL TE","MVP","AI Insight Engine","Allocated","TamNT17"]
["Phạm Thị Tho","ThoPT1","OFF","HCM","AI1","AI1 SOL","AI1 SOL TE","GE","GE Risk Management LLM","Allocated",{"$f":"VLOOKUP(B55,'RA Tháng 6'!$B$2:$H$126,7,FALSE)","v":"TamNT17"}]
["Vũ Thanh Tiến","TienVT4","OFF","HL","AI1","AI1 SOL","AI1 SOL TE","DMO-CDTO","AIC.SOL.E2E AI","Allocated",{"$f":"VLOOKUP(B56,'RA Tháng 6'!$B$2:$H$126,7,FALSE)","v":"TamNT17"}]
["Nguyễn Thị Mai Trang","TrangNTM13","OFF","HCM","AI1","AI1 SOL","AI1 SOL TE","VILAF","AIC SOL Multicustomer 2025","Allocated","TamNT17"]
["Nguyễn Đình Trung","TrungND25","OFF","HN","AI1","AI1 SOL","AI1 SOL TE","RNS-JP","AI1.SOL.RENESAS","Allocated",{"$f":"VLOOKUP(B58,'RA Tháng 6'!$B$2:$H$126,7,FALSE)","v":"TamNT17"}]
["Nguyễn Thị Quỳnh Lan","LanNTQ2","OFF","HCM","AI1","AI1 SOL","AI1 SOL BD",null,null,"Overhead"]
["Nguyễn Thanh Tùng","TungNT181","POI","HCM","AI1","AI1 SOL","AI1 SOL TE","TMC","AI1.SOL.TMC_OSS","Allocated","TamNT17"]
["Verma Ajeet Kumar","VermaAK","OFF","HN","AI1","AI1 SOL","AI1 SOL TE",null,null,"Idle",{"$f":"VLOOKUP(B61,'RA Tháng 6'!$B$2:$H$126,7,FALSE)","v":"TamNT17"}]
["Lê Anh Vũ","VuLA3","OFF","DN","AI1","AI1 SOL","AI1 SOL TE","NuSkin","AI1.SOL.NUSKIN_Phoenix","Allocated",{"$f":"VLOOKUP(B62,'RA Tháng 6'!$B$2:$H$126,7,FALSE)","v":"TamNT17"}]
["Lương Xuân Hoàng","HoangLX2","OFF","HN","AI1","AI1 SOL","AI1 SOL TE","GE","GE Risk Management LLM","Allocated",{"$f":"VLOOKUP(B63,'RA Tháng 6'!$B$2:$H$126,7,FALSE)","v":"ThoPT1"}]
["Cù Phúc Khang","KhangCP","OFF","HN","AI1","AI1 SOL","AI1 SOL TE","GE","GE Risk Management LLM","Allocated",{"$f":"VLOOKUP(B64,'RA Tháng 6'!$B$2:$H$126,7,FALSE)","v":"ThoPT1"}]
["Bùi Trần Công Minh","MinhBTC","OFF","HCM","AI1","AI1 SOL","AI1 SOL TE","GE","GE Risk Management LLM","Allocated",{"$f":"VLOOKUP(B65,'RA Tháng 6'!$B$2:$H$126,7,FALSE)","v":"ThoPT1"}]
["Hoàng Đức Nhật Minh","MinhHDN","OFF","HCM","AI1","AI1 SOL","AI1 SOL TE","GE","GE Risk Management LLM","Allocated",{"$f":"VLOOKUP(B66,'RA Tháng 6'!$B$2:$H$126,7,FALSE)","v":"ThoPT1"}]
["Đinh Ngọc Ân","AnDN2","OFF","HCM","AI1","AI1 SOL","AI1 SOL TE","DMO-CDTO","AIC.SOL.E2E AI","Allocated",{"$f":"VLOOKUP(B67,'RA Tháng 6'!$B$2:$H$126,7,FALSE)","v":"TienVT4"}]
["Huỳnh Trung Nghĩa","NghiaHT5","OFF","HCM","AI1","AI1 SOL","AI1 SOL TE","DMO-CDTO","AIC.SOL.E2E AI","Allocated",{"$f":"VLOOKUP(B68,'RA Tháng 6'!$B$2:$H$126,7,FALSE)","v":"TienVT4"}]
["Vương Thị Ngọc Minh","MinhVTN","OFF","HN","AI1","AI1 SOL","AI1 SOL BD",null,null,"Idle"]
["Nguyễn Đoàn Tấn Anh","AnhNDT16","OFF","HN","AI1","AI1 SOL","AI1 SOL TE","SB","AI1.SOL.SBFJP","Allocated",{"$f":"VLOOKUP(B70,'RA Tháng 6'!$B$2:$H$126,7,FALSE)","v":"TrangNTM13"}]
["Nguyễn Tuấn Anh","AnhNT446","OFF","HN","AI1","AI1 SOL","AI1 SOL TE","DMO-R&D","AI1.SOL.DMO.xMainframe","Allocated","TrangNTM13"]
["Phan Công Bình","BinhPC","OFF","HCM","AI1","AI1 SOL","AI1 SOL TE","VILAF","AIC SOL Multicustomer 2025","Allocated","TrangNTM13","QuynhNNN1"]
["Lê Đức Cường","CuongLD9","OFF","HN","AI1","AI1 SOL","AI1 SOL TE","SUNLIFE-PH","AI1.SOL.SUNLIFE_PH","Allocated",{"$f":"VLOOKUP(B73,'RA Tháng 6'!$B$2:$H$126,7,FALSE)","v":"TrangNTM13"}]
["Nguyễn Văn Đạt","DatNV54","OFF","HN","AI1","AI1 SOL","AI1 SOL TE","VILAF","AIC SOL Multicustomer 2025","Allocated",{"$f":"VLOOKUP(B74,'RA Tháng 6'!$B$2:$H$126,7,FALSE)","v":"TrangNTM13"}]
["Nguyễn Ngọc Dũng","DungNN31","OFF","HN","AI1","AI1 SOL","AI1 SOL TE","Kyndryl-UK","AMSKYNUK2025Y3","Allocated",{"$f":"VLOOKUP(B75,'RA Tháng 6'!$B$2:$H$126,7,FALSE)","v":"TrangNTM13"},"PM EBS"]
["Nguyễn Minh Hiển","HienNM19","OFF","HN","AI1","AI1 SOL","AI1 SOL TE","SB","AI1.SOL.SBFJP","Allocated",{"$f":"VLOOKUP(B76,'RA Tháng 6'!$B$2:$H$126,7,FALSE)","v":"TrangNTM13"}]
["Lê Trung Hiếu","HieuLT44","OFF","HCM","AI1","AI1 SOL","AI1 SOL TE","VILAF","AIC SOL Multicustomer 2025","Allocated",{"$f":"VLOOKUP(B77,'RA Tháng 6'!$B$2:$H$126,7,FALSE)","v":"TrangNTM13"}]
["Hồ Anh Khoa","KhoaHA5","OFF","HCM","AI1","AI1 SOL","AI1 SOL TE","DMO-CDTO","Multi Internal Customer","Allocated",{"$f":"VLOOKUP(B78,'RA Tháng 6'!$B$2:$H$126,7,FALSE)","v":"TrangNTM13"}]
["Nguyễn Toàn Khoa","KhoaNT30","OFF","HCM","AI1","AI1 SOL","AI1 SOL TE","VILAF","AIC SOL Multicustomer 2025","Allocated",{"$f":"VLOOKUP(B79,'RA Tháng 6'!$B$2:$H$126,7,FALSE)","v":"TrangNTM13"}]
["Phạm Ngọc Hải Nam","NamPNH2","OFF","HCM","AI1","AI1 SOL","AI1 SOL TE","VILAF","AIC SOL Multicustomer 2025","Allocated",{"$f":"VLOOKUP(B80,'RA Tháng 6'!$B$2:$H$126,7,FALSE)","v":"TrangNTM13"}]
["Phạm Hoàng Nghĩa","NghiaPH8","OFF","HN","AI1","AI1 SOL","AI1 SOL TE","AIU","AI1.SOL.AITOMIC","Allocated",{"$f":"VLOOKUP(B81,'RA Tháng 6'!$B$2:$H$126,7,FALSE)","v":"TrangNTM13"}]
["Trịnh Văn Thắng","ThangTV45","OFF","HN","AI1","AI1 SOL","AI1 SOL TE","Schaeffler Group","AI1.SOL.SCH_Teams Chatbot","Allocated",{"$f":"VLOOKUP(B82,'RA Tháng 6'!$B$2:$H$126,7,FALSE)","v":"TrangNTM13"},"ThoPT1"]
["Dương Đức Tín","TinDD4","POI","HCM","AI1","AI1 SOL","AI1 SOL TE","VILAF","AIC SOL Multicustomer 2025","Allocated",{"$f":"VLOOKUP(B83,'RA Tháng 6'!$B$2:$H$126,7,FALSE)","v":"TrangNTM13"}]
["Bùi Anh Tuấn","TuanBA22","OFF","HCM","AI1","AI1 SOL","AI1 SOL TE","AMP","AI1.SOL.AMP","Allocated",{"$f":"VLOOKUP(B84,'RA Tháng 6'!$B$2:$H$126,7,FALSE)","v":"TrangNTM13"}]
["Phan Anh Tú","TuPA7","OFF","HCM","AI1","AI1 SOL","AI1 SOL TE","VILAF","AIC SOL Multicustomer 2025","Allocated","TrangNTM13"]
["Đặng Quang Vinh","VinhDQ21","OFF","HN","AI1","AI1 SOL","AI1 SOL TE","VILAF","AIC SOL Multicustomer 2025","Allocated",{"$f":"VLOOKUP(B86,'RA Tháng 6'!$B$2:$H$126,7,FALSE)","v":"TrangNTM13"}]
["Huỳnh Tuấn Đạt","DatHT22","OFF","HCM","AI1","AI1 SOL","AI1 SOL TE","DMO-BCC","CODEVISTA2025","Unbill","TrinhVC3"]
["Lương Tất Đạt","DatLT94","OFF","HCM","AI1","AI1 SOL","AI1 SOL TE","FRT-FQC","AIFarm","Allocated",{"$f":"VLOOKUP(B88,'RA Tháng 6'!$B$2:$H$126,7,FALSE)","v":"TrungDVQ"}]
["Tạ Vinh Hạnh","HanhTV3","OFF","HCM","AI1","AI1 SOL","AI1 SOL TE","HAL","HALCANN2","Allocated",{"$f":"VLOOKUP(B89,'RA Tháng 6'!$B$2:$H$126,7,FALSE)","v":"TrungDVQ"}]
["Hồ Thịnh Hưng","HungHT34","OFF","HCM","AI1","AI1 SOL","AI1 SOL TE","FRT-FQC","AIFarm","Allocated",{"$f":"VLOOKUP(B90,'RA Tháng 6'!$B$2:$H$126,7,FALSE)","v":"TrungDVQ"}]
["Hoàng Đức Huy","HuyHD7","OFF","HCM","AI1","AI1 SOL","AI1 SOL TE","TTS-JP","AI1.SOL.TTS_AI Email Agent","Allocated","TrungDVQ"]
["Trần Huy","HuyT3","OFF","HCM","AI1","AI1 SOL","AI1 SOL TE","FRT-FQC","AIFarm","Allocated",{"$f":"VLOOKUP(B92,'RA Tháng 6'!$B$2:$H$126,7,FALSE)","v":"TrungDVQ"}]
["Trần Quang Huy","HuyTQ130","OFF","HCM","AI1","AI1 SOL","AI1 SOL TE","FRT-FQC","AIFarm","Allocated",{"$f":"VLOOKUP(B93,'RA Tháng 6'!$B$2:$H$126,7,FALSE)","v":"TrungDVQ"}]
["Phan Hoài Thư","ThuPH1","OFF","HN","AI1","AI1 SOL","AI1 SOL BD",null,null,"Idle"]
["Lê Ngọc Minh","MinhLN13","OFF","HN","AI1","AI1 SOL","AI1 SOL TE","HAL","HALCANN2","Allocated",{"$f":"VLOOKUP(B95,'RA Tháng 6'!$B$2:$H$126,7,FALSE)","v":"TrungDVQ"}]
["Nguyễn Xuân Nhật","NhatNX1","OFF","HN","AI1","AI1 SOL","AI1 SOL TE","VILAF","AIC SOL Multicustomer 2025","Allocated",{"$f":"VLOOKUP(B96,'RA Tháng 6'!$B$2:$H$126,7,FALSE)","v":"TrungDVQ"}]
["Đinh Vũ Quốc Trung","TrungDVQ","OFF","HCM","AI1","AI1 SOL","AI1 SOL TE","HAL","HALCANN2","Allocated",{"$f":"VLOOKUP(B97,'RA Tháng 6'!$B$2:$H$126,7,FALSE)","v":"TrungDVQ"}]
["Hoàng Quốc Trung","TrungHQ14","OFF","HCM","AI1","AI1 SOL","AI1 SOL TE","FRT-FQC","AIFarm","Allocated",{"$f":"VLOOKUP(B98,'RA Tháng 6'!$B$2:$H$126,7,FALSE)","v":"TrungDVQ"}]
["Trần Đức Trung","TrungTD24","OFF","HN","AI1","AI1 SOL","AI1 SOL TE","HAL","HALCANN2","Allocated",{"$f":"VLOOKUP(B99,'RA Tháng 6'!$B$2:$H$126,7,FALSE)","v":"TrungDVQ"}]
["Ninh Ngọc Tuấn","TuanNN27","OFF","HN","AI1","AI1 SOL","AI1 SOL TE","TTS-JP","AI1.SOL.TTS_AI Email Agent","Allocated","TrungDVQ"]
["Phạm Tuấn Anh","AnhPT95","OFF","HN","AI1","AI1 SOL","AI1 SOL TE","RNS-JP","AI1.SOL.RENESAS","Allocated","TrungND25"]
["Nguyễn Chí Cường","CuongNC20","OFF","HCM","AI1","AI1 SOL","AI1 SOL TE","RNS-JP","AI1.SOL.RENESAS","Allocated","TrungND25"]
["Nguyễn Thanh Đức","DucNT156","OFF","HN","AI1","AI1 SOL","AI1 SOL TE","PITS","AI DRBFM","Allocated",{"$f":"VLOOKUP(B103,'RA Tháng 6'!$B$2:$H$126,7,FALSE)","v":"TrungND25"},"TinhNT27"]
["Lương Minh Hiệu","HieuLM27","OFF","HN","AI1","AI1 SOL","AI1 SOL TE","RNS-JP","AI1.SOL.RENESAS","Allocated","TrungND25"]
["Nguyễn Lê Hoàng","HoangNL10","OFF","HN","AI1","AI1 SOL","AI1 SOL TE","RNS-JP","AI1.SOL.RENESAS","Allocated","TrungND25"]
["Hồ Tuấn Long","LongHT14","OFF","HN","AI1","AI1 SOL","AI1 SOL TE","RNS-JP","AI1.SOL.RENESAS","Allocated","TrungND25"]
["Nguyễn Văn Quân","QuanNV61","OFF","HN","AI1","AI1 SOL","AI1 SOL TE","RNS-JP","AI1.SOL.RENESAS","Allocated","TrungND25"]
["Nguyễn Tiến Thái","ThaiNT13","OFF","HN","AI1","AI1 SOL","AI1 SOL TE","RNS-JP","AI1.SOL.RENESAS","Allocated","TrungND25"]
["Tạ Văn Toàn","ToanTV26","OFF","HN","AI1","AI1 SOL","AI1 SOL TE","RNS-JP","AI1.SOL.RENESAS","Allocated","TrungND25"]
["Lê Nho Bách","BachLN2","OFF","HCM","AI1","AI1 SOL","AI1 SOL TE","Covestro","Platform_Development","Allocated","TuanNT54"]
["Nguyễn Thành Đạt","DatNT279","OFF","HN","AI1","AI1 SOL","AI1 SOL TE","Covestro","Covestro_AI","Allocated",{"$f":"VLOOKUP(B111,'RA Tháng 6'!$B$2:$H$126,7,FALSE)","v":"TuanNT54"}]
["Hoàng Thúy Hà","HaHT37","OFF","HN","AI1","AI1 SOL","AI1 SOL TE","Covestro","Covestro_AI","Allocated",{"$f":"VLOOKUP(B112,'RA Tháng 6'!$B$2:$H$126,7,FALSE)","v":"TuanNT54"}]
["Nguyễn Quang Hòa","HoaNQ9","OFF","HN","AI1","AI1 SOL","AI1 SOL TE","Covestro","Covestro_AI","Allocated",{"$f":"VLOOKUP(B113,'RA Tháng 6'!$B$2:$H$126,7,FALSE)","v":"TuanNT54"}]
["Nguyễn Lan Hương","HuongNL16","OFF","HN","AI1","AI1 SOL","AI1 SOL TE","Covestro","Covestro_AI","Allocated",{"$f":"VLOOKUP(B114,'RA Tháng 6'!$B$2:$H$126,7,FALSE)","v":"TuanNT54"}]
["Nguyễn Ngọc Long","LongNN48","OFF","HN","AI1","AI1 SOL","AI1 SOL TE","Covestro","Covestro_AI","Allocated",{"$f":"VLOOKUP(B115,'RA Tháng 6'!$B$2:$H$126,7,FALSE)","v":"TuanNT54"}]
["Hoàng Quyền","QuyenH","OFF","HN","AI1","AI1 SOL","AI1 SOL TE","Covestro","Covestro_AI","Allocated",{"$f":"VLOOKUP(B116,'RA Tháng 6'!$B$2:$H$126,7,FALSE)","v":"TuanNT54"}]
["Nguyễn Phúc Tân","TanNP3","OFF","HN","AI1","AI1 SOL","AI1 SOL TE","Covestro","Covestro_AI","Allocated",{"$f":"VLOOKUP(B117,'RA Tháng 6'!$B$2:$H$126,7,FALSE)","v":"TuanNT54"}]
["Nguyễn Thành Trung","TrungNT108","OFF","HN","AI1","AI1 SOL","AI1 SOL TE","Covestro","Covestro_AI","Allocated",{"$f":"VLOOKUP(B118,'RA Tháng 6'!$B$2:$H$126,7,FALSE)","v":"TuanNT54"}]
["Nguyễn Thanh Tuấn","TuanNT54","OFF","HN","AI1","AI1 SOL","AI1 SOL TE","Covestro","Covestro_AI","Allocated",{"$f":"VLOOKUP(B119,'RA Tháng 6'!$B$2:$H$126,7,FALSE)","v":"TuanNT54"}]
["Nguyễn Sơn Tùng","TungNS41","OFF","HN","AI1","AI1 SOL","AI1 SOL TE","Covestro","Covestro_AI","Allocated",{"$f":"VLOOKUP(B120,'RA Tháng 6'!$B$2:$H$126,7,FALSE)","v":"TuanNT54"}]
["Đỗ Quang Vinh","VinhDQ15","OFF","HN","AI1","AI1 SOL","AI1 SOL TE","Covestro","Covestro_AI","Allocated",{"$f":"VLOOKUP(B121,'RA Tháng 6'!$B$2:$H$126,7,FALSE)","v":"TuanNT54"}]
["Nguyễn Huỳnh Đức","DucNH82","OFF","HN","AI1","AI1 SOL","AI1 SOL TE","TTS-JP","AI1.SOL.TTS_AI Email Agent","Allocated","ViVV2"]
["Bùi Tuấn Linh","LinhBT16","OFF","HN","AI1","AI1 SOL","AI1 SOL TE","HPI","HP PJ2 IvyChat","Allocated",{"$f":"VLOOKUP(B123,'RA Tháng 6'!$B$2:$H$126,7,FALSE)","v":"ViVV2"}]
["Phạm Đình Thế","ThePD2","OFF","HN","AI1","AI1 SOL","AI1 SOL TE","DMO-CDTO","AIC.SOL.E2E AI","Allocated",{"$f":"VLOOKUP(B124,'RA Tháng 6'!$B$2:$H$126,7,FALSE)","v":"ViVV2"}]

{"sheet":"RA tháng 11","index":2,"n_rows":136,"n_cols":13,"rows_kept":136,"cut":false,"hidden":true,"merged":[]}
["Full Name","Account","Location","Parent Department","Child Dept 1","Child Dept 2","Customer Code","Project Code","Status_Nov","Why Idle","PM","Adjust to PM?","MaiTTQ note"]
["Trần Ngọc Chương","ChuongTN2","HCM","AI1","AI1 SOL","AI1 SOL TE"," "," ","Idle","Làm demo projects cho các dự án SCGC","DuongHT13"," "," "]
["Lê Trung Hải","HaiLT61","HCM","AI1","AI1 SOL","AI1 SOL TE"," "," ","Idle","Làm team IvyChat","DuongHT13"," "," "]
["Bùi Henry","HenryB1","HCM","AI1","AI1 SOL","AI1 SOL TE"," "," ","Idle","Làm xMainframe","AnhNT446"," "," "]
["Đoàn Huy Hiên","HienDH4","HN","AI1","AI1 SOL","AI1 SOL TE","DMO-G0IP","AI1.SOL.PET_POC","Allocated"," ","SamCM1"," "," "]
["Nguyễn Đông Mạnh","ManhND105","HN","AI1","AI1 SOL","AI1 SOL TE"," "," ","Idle","Onboard dự án Panel Plus","LongNT173"," ","K tìm thấy"]
["Mai Ngọc Tú","TuMN2","HCM","AI1","AI1 SOL","AI1 SOL TE"," "," ","Idle","Onboard dự án NUSKIN","LongNT173"," ","k tìm thấy"]
["Nguyễn Đăng Anh Vũ","VuNDA6","HN","AI1","AI1 SOL","AI1 SOL TE"," "," ","Idle","Onboard dự án Softbank CCTV","AnhMV4"," ","k tìm thấy "]
["Phạm Hữu Việt","VietPH6","HN","AI1","AI1 SOL","AI1 SOL TE","EDWARDS","AI1.SOL.EDWARDS_Translation","Allocated"," ","langpnn2"," "," "]
["Nguyễn Đoàn Tấn Anh","AnhNDT16","HN","AI1","AI1 SOL","AI1 SOL TE","SB","AI1.SOL.SBFJP","Allocated"," ","trangntm13"," "," "]
["Nguyễn Tuấn Anh","AnhNT446","HN","AI1","AI1 SOL","AI1 SOL TE","DMO-R&D","AI1.SOL.DMO.xMainframe","Allocated"," ","anhnt446"," "," "]
["Phạm Tuấn Anh","AnhPT95","HN","AI1","AI1 SOL","AI1 SOL TE","EDWARDS","AI1.SOL.EDWARDS_Translation","Allocated"," ","langpnn2"," "," "]
["Lê Nho Bách","BachLN2","HCM","AI1","AI1 SOL","AI1 SOL TE","Covestro","Covestro_CIM_PDM","Allocated"," ","TuanNT54"," "," "]
["Huỳnh Nhật Quốc Bảo","BaoHNQ1","HCM","AI1","AI1 SOL","AI1 SOL TE","DMO-G0IP","AI1.SOL.PET_POC","Allocated"," ","samcm1"," "," "]
["Phan Công Bình","BinhPC","HCM","AI1","AI1 SOL","AI1 SOL TE","FDX-GMD","AI1.SOL.GEMADEPT","Allocated"," ","tamnt17"," "," "]
["Lê Đức Cường","CuongLD9","HN","AI1","AI1 SOL","AI1 SOL TE","SonyGS","GenAI PF","Allocated"," ","anhmv4"," "," "]
["Nguyễn Chí Cường","CuongNC20","HCM","AI1","AI1 SOL","AI1 SOL TE","TMC","AI1.SOL.TMC_OSS","Allocated"," ","quynhntn1"," "," "]
["Trương Tấn Cường","CuongTT23","HCM","AI1","AI1 SOL","AI1 SOL TE","CISD","CISD GenerativeAI","Allocated"," ","duonght13"," "," "]
["Nguyễn Thị Anh Đào","DaoNTA7","HN","AI1","AI1 SOL","AI1 SOL TE","EDWARDS","AI1.SOL.EDWARDS_Translation","Allocated"," ","langpnn2"," "," "]
["Lương Tất Đạt","DatLT94","HCM","AI1","AI1 SOL","AI1 SOL TE","DMO-G0IP","AI1.SOL.PET_POC","Allocated"," ","samcm1"," "," "]
["Nguyễn Thành Đạt","DatNT279","HN","AI1","AI1 SOL","AI1 SOL TE","Covestro","Covestro_AI","Allocated"," ","TuanNT54"," "," "]
["Nguyễn Văn Đạt","DatNV54","HN","AI1","AI1 SOL","AI1 SOL TE","NTT-C","AI1.SOL.NTTC","Allocated"," ","trangntm13"," "," "]
["Phạm Trọng Đồng","DongPT11","HN","AI1","AI1 SOL","AI1 SOL TE","AMANO","AI1.SOL.AMANO_Yolo","Allocated"," ","dungnn31"," "," "]
["Nguyễn Thanh Đức","DucNT156","HN","AI1","AI1 SOL","AI1 SOL TE","PITS","AI DRBFM","Allocated"," ","tinhnt27","trungnd25"," "]
["Nguyễn Trọng Dũng","DungNT20","HN","AI1","AI1 SOL","AI1 SOL TE","Covestro","Covestro_MASS_2025","Allocated"," ","LanNTQ2"," "," "]
["Hoàng Thúy Hà","HaHT37","HN","AI1","AI1 SOL","AI1 SOL TE","Covestro","Covestro_AI","Allocated"," ","TuanNT54"," "," "]
["Tô Văn Hải","HaiTV23","HN","AI1","AI1 SOL","AI1 SOL TE"," "," ","Idle"," ","NganMTK2"," "," "]
["Lê Hoàng Minh Hà","HaLHM1","HN","AI1","AI1 SOL","AI1 SOL TE","CISD","CISD GenerativeAI","Allocated"," ","duonght13"," "," "]
["Tạ Vinh Hạnh","HanhTV3","HCM","AI1","AI1 SOL","AI1 SOL TE","HAL","HALCANN2","Allocated"," ","trungdvq"," "," "]
["Nguyễn Nguyên Hảo","HaoNN17","HN","AI1","AI1 SOL","AI1 SOL TE","CISD","CISD GenerativeAI","Allocated"," ","duonght13"," "," "]
["Nguyễn Minh Hiển","HienNM19","HN","AI1","AI1 SOL","AI1 SOL TE","SB","AI1.SOL.SBFJP","Allocated"," ","trangntm13"," "," "]
["Đào Trung Hiếu","HieuDT47","HN","AI1","AI1 SOL","AI1 SOL TE","DMO-R&D","AI1.SOL.DMO.xMainframe","Allocated"," ","anhnt446"," "," "]
["Lương Minh Hiệu","HieuLM27","HN","AI1","AI1 SOL","AI1 SOL TE","RNS-JP","AI1.SOL.RENESAS","Allocated"," ","trungnd25"," "," "]
["Lê Trung Hiếu","HieuLT44","HCM","AI1","AI1 SOL","AI1 SOL TE","NTT-C","AI1.SOL.NTT.Dsol","Allocated"," ","trungnd25"," "," "]
["Nguyễn Lê Hoàng","HoangNL10","HN","AI1","AI1 SOL","AI1 SOL TE","VILAF","Denso Tool Benchmark","Idle","Hoàn thiện Denso Tool Benchmark giữa tháng, move onboard dự án Panel Plus","DungNN31"," "," "]
["Phan Huy Hoàng","HoangPH25","HCM","AI1","AI1 SOL","AI1 SOL TE","MVP","AI Insight Engine","Allocated"," ","langpnn2"," "," "]
["Hồ Thịnh Hưng","HungHT34","HCM","AI1","AI1 SOL","AI1 SOL TE","AMANO","AI1.SOL.AMANO_Yolo","Allocated"," ","dungnn31"," "," "]
["Lộc Tuấn Hùng","HungLT128","HN","AI1","AI1 SOL","AI1 SOL TE","DMO-CDTO","AIC.SOL.E2E AI","Allocated"," ","tienvt4"," "," "]
["Nguyễn Lan Hương","HuongNL16","HN","AI1","AI1 SOL","AI1 SOL TE","Covestro","Covestro_AI","Allocated"," ","TuanNT54"," "," "]
["Bùi Khánh Huyền","HuyenBK2","HN","AI1","AI1 SOL","AI1 SOL TE","CISD","CISD GenerativeAI","Allocated"," ","duonght13"," "," "]
["Hoàng Đức Huy","HuyHD7","HCM","AI1","AI1 SOL","AI1 SOL TE","SCG-Chemical","AI1.SOL.TE.SCG_Chemical","Allocated"," ","samcm1"," "," "]
["Nguyễn Đức Huy","HuyND2190","HN","AI1","AI1 SOL","AI1 SOL TE","Covestro","Covestro_AI","Allocated"," ","TuanNT54"," "," "]
["Trần Huy","HuyT3","HCM","AI1","AI1 SOL","AI1 SOL TE","FRT-FQC","AIFarm","Un-Paid leave"," ","trungdvq"," "," "]
["Trần Quang Huy","HuyTQ130","HCM","AI1","AI1 SOL","AI1 SOL TE","TTS-JP","AI1.SOL.TMC_PinholeDetection","Allocated"," ","tunglt88 "," "," "]
["Châu Minh Khang","KhangCM2","HCM","AI1","AI1 SOL","AI1 SOL TE","CISD","CISD GenerativeAI","Allocated"," ","duonght13"," "," "]
["Phạm Đình Khánh","KhanhPD22","HN","AI1","AI1 SOL","AI1 SOL TE","Ackerton","ATSGROWTH2025","Allocated"," ","TrungND25"," "," "]
["Tạ Ngọc Khiêm","KhiemTN1","HCM","AI1","AI1 SOL","AI1 SOL TE","FDX-GMD","AI1.SOL.GEMADEPT","Allocated"," ","binhpc"," "," "]
["Hồ Anh Khoa","KhoaHA5","HCM","AI1","AI1 SOL","AI1 SOL TE","SCSK-I","ProbC2Java","Allocated"," ","huynn57","NhatNX1"," "]
["Nguyễn Toàn Khoa","KhoaNT30","HCM","AI1","AI1 SOL","AI1 SOL TE","VILAF","AIC SOL Multicustomer 2025","Allocated"," ","trangntm13"," "," "]
["Nguyễn Duy Khương","KhuongND6","HCM","AI1","AI1 LAB","AI1 LAB SC","NuSkin","AI1.SOL.NUSKIN_Phoenix","Allocated"," ","longnt173"," "," "]
["Bùi Tuấn Linh","LinhBT16","HN","AI1","AI1 SOL","AI1 SOL TE","HPI","HP PJ2 IvyChat","Idle","Onboard dự án Softbank CCTV","vivv2"," "," "]
["Nguyễn Đức Linh","LinhND77","HN","AI1","AI1 SOL","AI1 SOL TE","CISD","CISD GenerativeAI","Allocated"," ","duonght13"," "," "]
["Chương Hòa Lộc","LocCH","HCM","AI1","AI1 SOL","AI1 SOL TE","OddsPark","OPNEXT88","Allocated"," ","TrangNTM13"," "," "]
["Nguyễn Ngọc Long","LongNN48","HN","AI1","AI1 SOL","AI1 SOL TE","Covestro","Covestro_AI","Allocated"," ","TuanNT54"," "," "]
["Trần Hoàng Long","LongTH65","HCM","AI1","AI1 SOL","AI1 SOL TE"," "," ","Idle"," ","NganMTK2"," "," "]
["Đinh Thị Kim Mai","MaiDTK","HCM","AI1","AI1 SOL","AI1 SOL TE","NuSkin","AI1.SOL.NUSKIN_Phoenix","Allocated"," ","longnt173"," "," "]
["Nguyễn Văn Mạnh","ManhNV45","HCM","AI1","AI1 SOL","AI1 SOL TE","Kyndryl-US","AI1.SOL.KYNDRYL_AI Agent For Optimize Data Center Operation","Allocated"," ","trungdvq"," "," "]
["Bùi Trần Công Minh","MinhBTC","HCM","AI1","AI1 SOL","AI1 SOL TE","GE","GE Risk Management LLM","Allocated"," ","thopt1"," "," "]
["Hoàng Đức Nhật Minh","MinhHDN","HCM","AI1","AI1 SOL","AI1 SOL TE","GE","GE Risk Management LLM","Allocated"," ","thopt1"," "," "]
["Lê Ngọc Minh","MinhLN13","HN","AI1","AI1 SOL","AI1 SOL TE","HAL","HALCANN2","Allocated"," ","trungdvq"," "," "]
["Huỳnh Trung Nghĩa","NghiaHT5","HCM","AI1","AI1 SOL","AI1 SOL TE","SCG-Chemical","AI1.SOL.TE.SCG_Chemical","Allocated"," ","samcm1"," "," "]
["Thái Thành Nguyên","NguyenTT41","HCM","AI1","AI1 SOL","AI1 SOL TE","CISD","CISD GenerativeAI","Allocated"," ","duonght13"," "," "]
["Hà Thế Nhân","NhanHT37","HCM","AI1","AI1 SOL","AI1 SOL TE","NTT-C","AI1.SOL.NTTC","Allocated"," ","duonght13","Đã đổi "," "]
["Nguyễn Xuân Nhật","NhatNX1","HN","AI1","AI1 SOL","AI1 SOL TE","AMANO","AI1.SOL.AMANO_Yolo","Allocated"," ","dungnn31"," "," "]
["Ngô Phương Nhi","NhiNP11","HN","AI1","AI1 SOL","AI1 SOL TE","CISD","CISD GenerativeAI","Allocated"," ","duonght13"," "," "]
["Trần Ngọc Hùng Phong","PhongTNH","HN","AI1","AI1 SOL","AI1 SOL TE","IONITY","AI1.SOL.IONITY","Allocated"," ","dungnn31"," "," "]
["Nguyễn Ngọc Thiên Phú","PhuNNT3","HCM","AI1","AI1 SOL","AI1 SOL TE","NTT-C","AI1.SOL.NTT.Dsol","Allocated"," ","trungnd25"," "," "]
["Nguyễn Quang Phú","PhuNQ15","HCM","AI1","AI1 SOL","AI1 SOL TE","NuSkin","AI1.SOL.NUSKIN_Phoenix","Allocated"," ","longnt173"," "," "]
["Nguyễn Việt Phương","PhuongNV44","HCM","AI1","AI1 SOL","AI1 SOL TE","DMO-CDTO","AIC.SOL.E2E AI","Allocated"," ","tienvt4"," "," "]
["Lê Minh Quân","QuanLM51","HCM","AI1","AI1 SOL","AI1 SOL TE","SB","AI1.SOL.SB_Security","Allocated"," ","trangntm13"," "," "]
["Nguyễn Văn Quân","QuanNV61","HN","AI1","AI1 SOL","AI1 SOL TE","RNS-JP","AI1.SOL.RENESAS","Allocated"," ","trungnd25"," "," "]
["Lê Hạnh Quyên","QuyenLH2","HN","AI1","AI1 SOL","AI1 SOL TE"," "," ","Maternity"," ","Maternity Leave"," "," "]
["Hoàng Thái Sơn","SonHT35","HN","AI1","AI1 SOL","AI1 SOL TE","RNS-JP","AI1.SOL.RENESAS","Allocated"," ","trungnd25"," "," "]
["Nguyễn Duy Tân","TanND22","NT","AI1","AI1 SOL","AI1 SOL TE","CISD","CISD GenerativeAI","Allocated"," ","duonght13"," "," "]
["Nguyễn Phúc Tân","TanNP3","HN","AI1","AI1 SOL","AI1 SOL TE","Schaeffler Group","AI1.SOL.SCH_Teams Chatbot","Allocated"," ","thopt1"," "," "]
["Nguyễn Tiến Thái","ThaiNT13","HN","AI1","AI1 SOL","AI1 SOL TE","VILAF","AIC SOL Multicustomer 2025","Allocated"," ","trangntm13"," "," "]
["Dương Văn Thắng","ThangDV47","HCM","AI1","AI1 SOL","AI1 SOL TE","HPI","HP PJ2 IvyChat","Allocated"," ","duonght13"," "," "]
["Nguyễn Văn Thành","ThanhNV154","HN","AI1","AI1 SOL","AI1 SOL TE","AMANO","AI1.SOL.AMANO_Yolo","Idle","Onboard dự án SB CCTV","anhmv4"," "," "]
["Phạm Đình Thế","ThePD2","HN","AI1","AI1 SOL","AI1 SOL TE","DMO-CDTO","AIC.SOL.E2E AI","Allocated"," ","ViVV2"," "," "]
["Đỗ Văn Thuận","ThuanDV17","HN","AI1","AI1 SOL","AI1 SOL TE","SB","AI1.SOL.SB_Security","Allocated"," ","trangntm13"," "," "]
["Phạm Đình Thục","ThucPD6","HCM","AI1","AI1 LAB","AI1 LAB SC","CISD","CISD GenerativeAI","Allocated"," ","duonght13"," "," "]
["Lê Phạm Thủy Tiên","TienLPT1","HN","AI1","AI1 SOL","AI1 SOL TE","SB","AI1.SOL.SB_Security","Allocated"," ","trangntm13"," "," "]
["Nguyễn Đài Phương Trang","TrangNDP3","HCM","AI1","AI1 SOL","AI1 SOL TE","TTS-JP","AI1.SOL.TMC_PinholeDetection","Allocated"," ","tunglt88 "," "," "]
["Trần Tô Băng Trinh","TrinhTTB1","HCM","AI1","AI1 SOL","AI1 SOL TE","FRT-FQC","AIFarm","Allocated"," ","trungdvq"," "," "]
["Lê Hoàng Trung","TrungLH12","HCM","AI1","AI1 SOL","AI1 SOL TE","VILAF","AIC SOL Multicustomer 2025","Allocated"," ","trangntm13"," "," "]
["Nguyễn Thành Trung","TrungNT108","HN","AI1","AI1 SOL","AI1 SOL TE","Covestro","Covestro_AI","Allocated"," ","TuanNT54"," "," "]
["Hoàng Văn Trưởng","TruongHV1","HCM","AI1","AI1 LAB","AI1 LAB SC","DMO-G0IP","AI1.SOL.PET_POC","Idle","Nhân sự của AI1 LAB SC","samcm1"," "," "]
["Bùi Anh Tuấn","TuanBA22","HCM","AI1","AI1 SOL","AI1 SOL TE","AMP","AI1.SOL.AMP","Allocated"," ","trangntm13"," "," "]
["Nguyễn Sĩ Tuấn","TuanNS1","HN","AI1","AI1 SOL","AI1 SOL TE","CISD","CISD GenerativeAI","Allocated"," ","duonght13"," "," "]
["Hồ Thanh Tùng","TungHT41","HCM","AI1","AI1 SOL","AI1 SOL TE","SB","AI1.SOL.SB_Security","Allocated"," ","trangntm13"," "," "]
["Nguyễn Sơn Tùng","TungNS35","HCM","AI1","AI1 SOL","AI1 SOL TE","CISD","CISD GenerativeAI","Allocated"," ","duonght13"," "," "]
["Nguyễn Sơn Tùng","TungNS41","HN","AI1","AI1 SOL","AI1 SOL TE","Schaeffler Group","AI1.SOL.SCH_Teams Chatbot","Allocated"," ","thopt1"," "," "]
["Trần Quốc Việt","VietTQ57","HCM","AI1","AI1 SOL","AI1 SOL TE","FDX-GMD","AI1.SOL.GEMADEPT","Allocated"," ","binhpc"," "," "]
["Đỗ Quang Vinh","VinhDQ15","HN","AI1","AI1 SOL","AI1 SOL TE","Covestro","Covestro_AI","Allocated"," ","TuanNT54"," "," "]
["Đặng Quang Vinh","VinhDQ21","HN","AI1","AI1 SOL","AI1 SOL TE","VILAF","AIC SOL Multicustomer 2025","Allocated"," ","trangntm13"," "," "]
["Phạm Vĩ","ViP1","HCM","AI1","AI1 SOL","AI1 SOL TE","SCG-Chemical","AI1.SOL.TE.SCG_Chemical","Allocated"," ","samcm1"," "," "]
["Vũ Vương Vĩ","ViVV2","HCM","AI1","AI1 SOL","AI1 SOL TE","VILAF","AIC SOL Multicustomer 2025","Allocated"," ","trangntm13",null,"đổi sang HieuTT50"]
["Huỳnh Tuấn Đạt","DatHT22","HCM","AI1","AI1 SOL","AI1 SOL TE","SCSK-I","ProbC2Java","Allocated"," ","binhpc","Đã đổi "," "]
["Nguyễn Ngọc Dũng","DungNN31","HN","AI1","AI1 SOL","AI1 SOL TE","AMANO","AI1.SOL.AMANO_Yolo","Allocated"," ","tamnt17"," "," "]
["Huỳnh Tấn Dưỡng","DuongHT13","HCM","AI1","AI1 SOL","AI1 SOL TE","HPI","HP PJ2 IvyChat","Idle"," ","tamnt17"," "," "]
["Hứa Thu Hằng","HANGHT","HN","AI1","AI1 SOL","AI1 SOL TE","CISD","CISD GenerativeAI","Allocated"," ","duonght13"," "," "]
["Thân Trọng Kính","KinhTT","HCM","AI1","AI1 SOL","AI1 SOL TE","GE","GE Risk Management LLM","Allocated"," ","thopt1"," "," "]
["Nguyễn Thành Long","LongNT173","HN","AI1","AI1 SOL","AI1 SOL TE","NuSkin","AI1.SOL.NUSKIN_Phoenix","Allocated"," ","longnt173"," "," "]
["Nguyễn Thanh Tâm","TamNT17","HCM","AI1","AI1 SOL","AI1 SOL TE","SUNLIFE-PH","AI1.SOL.SUNLIFE_PH","Overhead"," ","trangntm13"," ","PhongNX1"]
["Phạm Thị Tho","ThoPT1","HCM","AI1","AI1 SOL","AI1 SOL TE","GE","AI1.SOL.AI Risk Review LLM","Allocated"," ","TamNT17"," "," "]
["Vũ Thanh Tiến","TienVT4","HL","AI1","AI1 SOL","AI1 SOL TE","DMO-CDTO","AIC.SOL.E2E AI","Allocated"," ","tamnt17","Đã đổi "," "]
["Tạ Văn Toàn","ToanTV26","HN","AI1","AI1 SOL","AI1 SOL TE","RNS-JP","AI1.SOL.RENESAS","Allocated"," ","trungnd25"," "," "]
["Đinh Vũ Quốc Trung","TrungDVQ","HCM","AI1","AI1 SOL","AI1 SOL TE","HAL","HALCANN2","Allocated"," ","trungdvq"," "," "]
["Hoàng Duy Trung","TrungHD8","HN","AI1","AI1 SOL","AI1 SOL TE","TP-M","Toppan Jokomi","Allocated"," ","anhmv4"," "," "]
["Nguyễn Đình Trung","TrungND25","HN","AI1","AI1 SOL","AI1 SOL TE","RNS-JP","AI1.SOL.RENESAS","Allocated"," ","tamnt17"," "," "]
["Dương Thành Duy","DuyDT14","HCM","AI1","AI1 SOL","AI1 SOL TE","MVP","AIC.SOL.MDDI","Allocated"," ","langpnn2"," "," "]
["Phan Thị Ngọc Trinh","TrinhPTN","DN","AI1","AI1 SOL","AI1 SOL TE","NuSkin","AI1.SOL.NUSKIN_Phoenix","Allocated"," ","longnt173"," "," "]
["Nguyễn Quang Vũ","VuNQ7","HCM","AI1","AI1 SOL","AI1 SOL TE","MVP","AIC.SOL.MDDI","Allocated"," ","langpnn2"," "," "]
["Đinh Ngọc Ân","AnDN2","HCM","AI1","AI1 SOL","AI1 SOL TE","DMO-CDTO","AIC.SOL.E2E AI","Idle","Chuyển sang Lab SC Ivy Product","duonght13"," "," "]
["Mai Việt Anh","AnhMV4","HL","AI1","AI1 SOL","AI1 SOL TE","SonyGS","GenAI PF","Allocated"," ","anhmv4"," "," "]
["Vũ Thị Hân","HanVT2","HN","AI1","AI1 LAB","AI1 LAB SC","RNS-JP","AI1.SOL.RENESAS","Idle"," ","ngocltb1"," "," "]
["Nguyễn Sông Hương","HuongNS","HL","AI1","AI1 SOL","AI1 SOL TE"," "," ","Idle"," ","TamNT17"," "," "]
["Cù Phúc Khang","KhangCP","HN","AI1","AI1 SOL","AI1 SOL TE","GE","GE Risk Management LLM","Allocated"," ","thopt1"," "," "]
["Phan Nguyễn Nhất Lang","LangPNN2","HCM","AI1","AI1 SOL","AI1 SOL TE","EDWARDS","AI1.SOL.EDWARDS_Translation","Allocated"," ","tamnt17"," "," "]
["Phạm Ngọc Hải Nam","NamPNH2","HCM","AI1","AI1 SOL","AI1 SOL TE","PITS","AI DRBFM","Allocated"," ","tinhnt27","trungnd25"," "]
["Mai Thị Kim Ngân","NganMTK2","HCM","AI1","AI1 SOL","AI1 SOL BD","VILAF","AIC SOL Multicustomer 2025","Idle"," ","lanntq2"," "," "]
["Lê Phước Nguyên","NguyenLP11","CT","AI1","AI1 SOL","AI1 SOL TE","DMO-R&D","AI1.SOL.DMO.xMainframe","Allocated"," ","anhnt446"," "," "]
["Hoàng Quyền","QuyenH","HN","AI1","AI1 SOL","AI1 SOL TE","Covestro","Covestro_AI","Allocated"," ","TuanNT54"," "," "]
["Chiếng Mành Sâm","SamCM1","HCM","AI1","AI1 SOL","AI1 SOL TE","SCG-Chemical","AI1.SOL.TE.SCG_Chemical","Allocated"," ","tamnt17"," "," "]
["Trịnh Văn Thắng","ThangTV45","HN","AI1","AI1 SOL","AI1 SOL TE","RNS-JP","AI1.SOL.RENESAS","Allocated"," ","trungnd25"," "," "]
["Trương Trọng Tiến","TienTT8","HCM","AI1","AI1 SOL","AI1 SOL TE","FRT-FQC","AIFarm","Allocated"," ","trungdvq"," "," "]
["Nguyễn Thị Mai Trang","TrangNTM13","HCM","AI1","AI1 SOL","AI1 SOL TE","SUNLIFE-PH","AI1.SOL.SUNLIFE_PH","Allocated"," ","tamnt17"," "," "]
["Hoàng Quốc Trung","TrungHQ14","HCM","AI1","AI1 SOL","AI1 SOL TE","U-VN","UVNAPS","Allocated"," ","TrungDVQ"," "," "]
["Đỗ Văn Tuấn","TuanDV54","HN","AI1","AI1 SOL","AI1 SOL TE","CISD","CISD GenerativeAI","Allocated"," ","duonght13"," "," "]
["Cấn Tường An","AnCT5","HL","AI1","AI1 SOL","AI1 SOL TE","CISD","CISD GenerativeAI","Allocated"," ","lanntq2","Đã đổi "," "]
["Lương Xuân Hoàng","HoangLX2","HN","AI1","AI1 SOL","AI1 SOL TE","GE","GE Risk Management LLM","Allocated"," ","thopt1"," "," "]
["Vũ Nam Hưng","HungVN6","HN","AI1","AI1 SOL","AI1 SOL TE","CISD","CISD GenerativeAI","Allocated"," ","duonght13"," "," "]
["Chu Tuấn Thông","ThongCT2","HN","AI1","AI1 SOL","AI1 SOL TE","HPI","HP PJ2 IvyChat","Allocated"," ","duonght13"," "," "]
["Phan Anh Tú","TuPA7","HCM","AI1","AI1 SOL","AI1 SOL TE","FDX-GMD","AI1.SOL.GEMADEPT","Allocated"," ","binhpc"," "," "]
["Nguyễn Thị Vân","VanNT8","HN","AI1","AI1 SOL","AI1 SOL TE","HPI","HP PJ2 IvyChat","Allocated"," ","duonght13"," "," "]
["Tạ Hoàng Việt","VietTH18","HN","AI1","AI1 SOL","AI1 SOL TE","TP-M","Toppan Jokomi","Allocated"," ","anhmv4"," "," "]

{"sheet":"RA tháng 12_SOL","index":3,"n_rows":148,"n_cols":9,"rows_kept":148,"cut":false,"hidden":true,"merged":[]}
["#","Account","Full Name","Head","Department","On-going Project","On-going Project 1","PM_DB.PM","MSC rating"]
[1,"AnCT5","Cấn Tường An","LanNTQ2","AI1 SOL TE",2,"CISD GenerativeAI","duonght13","lanntq2"]
[2,"AnDN2","Đinh Ngọc Ân","HaiTV23","AI1 SOL TE",0,"","DuongHT13","DuongHT13"]
[4,"AnhMV4","Mai Việt Anh","TamNT17","AI1 SOL TE",3,"Toppan Jokomi","duonght13","duonght13"]
[4,"AnhMV4","Mai Việt Anh","TamNT17","AI1 SOL TE",3,"Toppan Jokomi","anhmv4","TamNT17"]
[5,"AnhNDT16","Nguyễn Đoàn Tấn Anh",0,"AI1 SOL TE",1,"AI1.SOL.SB_Security","tungndt4","TrangNTM13"]
[8,"AnhNT446","Nguyễn Tuấn Anh","TungNT181","AI1 SOL TE",1,"AI1.SOL.DMO.xMainframe","HungNV31","TungNT181"]
[10,"AnhPT95","Phạm Tuấn Anh","KhoaNT30","AI1 SOL TE",1,"AI1.SOL.EDWARDS_Translation","langpnn2","langpnn2"]
[13,"BachLN2","Lê Nho Bách","TuanNT54","AI1 SOL TE",1,"Covestro_CIM_PDM","tuannt54","tuannt54"]
[14,"BaoHNQ1","Huỳnh Nhật Quốc Bảo",0,"AI1 SOL TE",1,"AI1.SOL.PET_POC","trungdvq","trungdvq"]
[16,"BinhPC","Phan Công Bình","TamNT17","AI1 SOL TE",2,"Multi Internal Customer","duonght13","duonght13"]
[19,"ChuongTN2","Trần Ngọc Chương",0,"AI1 SOL TE",1,"AI1.SOL.PNP","longnt173","longnt173"]
[23,"CuongNC20","Nguyễn Chí Cường",0,"AI1 SOL TE",2,"AI1.SOL.TMC_OSS","quynhntn1","quynhntn1"]
[26,"CuongTT23","Trương Tấn Cường","NhiNP11","AI1 SOL TE",1,"CISD GenerativeAI","duonght13","duonght13"]
[28,"DaoNTA7","Nguyễn Thị Anh Đào",0,"AI1 SOL TE",1,"AI1.SOL.EDWARDS_Translation","langpnn2","langpnn2"]
[31,"DatHT22","Huỳnh Tuấn Đạt","BinhPC","AI1 SOL TE",2,"AI1.SOL.TE.SCG_Chemical","trungdvq","trungdvq"]
[32,"DatLT94","Lương Tất Đạt",0,"AI1 SOL TE",1,"AI1.SOL.PET_POC","trungdvq","trungdvq"]
[34,"DatNT279","Nguyễn Thành Đạt","TuanNT54","AI1 SOL TE",1,"Covestro_AI","tuannt54","tuannt54"]
[34,"DatNT279","Nguyễn Thành Đạt","TuanNT54","AI1 SOL TE",1,"Covestro_AI","trangntm13","TuanNT54"]
[35,"DatNV54","Nguyễn Văn Đạt",0,"AI1 SOL TE",1,"AI1.SOL.NTTC","trangntm13","tuannt54"]
[36,"DongPT11","Phạm Trọng Đồng","NhatNX1","AI1 SOL TE",1,"AI1.SOL.AMANO_Yolo","dungnn31","dungnn31"]
[38,"DucNT156","Nguyễn Thanh Đức","NhatNX1","AI1 SOL TE",1,"AI DRBFM","tinhnt27","TrungND25"]
[40,"DungNN31","Nguyễn Ngọc Dũng","TamNT17","AI1 SOL TE",3,"AI1.SOL.AMANO_Yolo","dungnn31","TamNT17"]
[41,"DungNT20","Nguyễn Trọng Dũng",0,"AI1 SOL TE",0,"","LanNTQ2","LanNTQ2"]
[42,"DuongHT13","Huỳnh Tấn Dưỡng","TamNT17","AI1 SOL TE",3,"HP PJ2 IvyChat","duonght13","duonght13"]
[45,"DuyDT14","Dương Thành Duy","VuNQ7","AI1 SOL TE",1,"AIC.SOL.MDDI","langpnn2","langpnn2"]
[47,"HaHT37","Hoàng Thúy Hà","TuanNT54","AI1 SOL TE",1,"Covestro_AI","trangntm13","TuanNT54"]
[47,"HaHT37","Hoàng Thúy Hà","TuanNT54","AI1 SOL TE",1,"Covestro_AI","tuannt54","tuannt54"]
[48,"HaiLT61","Lê Trung Hải","HaiTV23","AI1 SOL TE",0,"","DuongHT13","DuongHT13"]
[49,"HaiTV23","Tô Văn Hải","NganMTK2","AI1 SOL TE",0,"","DuongHT13","DuongHT13"]
[50,"HaLHM1","Lê Hoàng Minh Hà","NhiNP11","AI1 SOL TE",1,"CISD GenerativeAI","duonght13","duonght13"]
[51,"HANGHT","Hứa Thu Hằng","NhiNP11","AI1 SOL TE",1,"CISD GenerativeAI","duonght13","duonght13"]
[53,"HanhTV3","Tạ Vinh Hạnh",0,"AI1 SOL TE",1,"HALCANN2","trungdvq","trungdvq"]
[55,"HaoNN17","Nguyễn Nguyên Hảo","NhiNP11","AI1 SOL TE",1,"CISD GenerativeAI","duonght13","duonght13"]
[57,"HenryB1","Bùi Henry","AnhNT446","AI1 SOL TE",1,"AI1.SOL.DMO.xMainframe","HungNV31","AnhNT446"]
[58,"HienDH4","Đoàn Huy Hiên","TrungDVQ","AI1 SOL TE",1,"AI1.SOL.PET_POC","trungdvq","trungdvq"]
[60,"HienNM19","Nguyễn Minh Hiển",0,"AI1 SOL TE",1,"AI1.SOL.SB_Security","tungndt4","trangntm13"]
[63,"HieuDT47","Đào Trung Hiếu","AnhNT446","AI1 SOL TE",1,"AI1.SOL.DMO.xMainframe","HungNV31","AnhNT446"]
[64,"HieuLM27","Lương Minh Hiệu","NhatNX1","AI1 SOL TE",1,"AI1.SOL.RENESAS","trungnd25","trungnd25"]
[69,"HoangLX2","Lương Xuân Hoàng",0,"AI1 SOL TE",1,"AI1.SOL.AI Risk Review LLM","thopt1","thopt1"]
[70,"HoangNL10","Nguyễn Lê Hoàng","NhatNX1","AI1 SOL TE",1,"AI1.SOL.PNP","longnt173","longnt173"]
[71,"HoangPH25","Phan Huy Hoàng",0,"AI1 SOL TE",1,"AI Insight Engine","langpnn2","langpnn2"]
[73,"HungHT34","Hồ Thịnh Hưng","KhoaNT30","AI1 SOL TE",1,"AI1.SOL.AMANO_Yolo","dungnn31","dungnn31"]
[74,"HungLT128","Lộc Tuấn Hùng",0,"AI1 SOL TE",1,"AIC.SOL.E2E AI","tienvt4","tienvt4"]
[76,"HungVN6","Vũ Nam Hưng","NhiNP11","AI1 SOL TE",1,"CISD GenerativeAI","duonght13","duonght13"]
[77,"HuongNL16","Nguyễn Lan Hương","TuanNT54","AI1 SOL TE",1,"Covestro_AI","tuannt54","tuannt54"]
[77,"HuongNL16","Nguyễn Lan Hương","TuanNT54","AI1 SOL TE",1,"Covestro_AI","trangntm13","TuanNT54"]
[78,"HuongNS","Nguyễn Sông Hương","TamNT17","AI1 SOL TE",1,"CODEVISTA2025","TamNT1","TamNT1"]
[80,"HuyenBK2","Bùi Khánh Huyền","NhiNP11","AI1 SOL TE",1,"CISD GenerativeAI","duonght13","duonght13"]
[81,"HuyHD7","Hoàng Đức Huy","NganMTK2","AI1 SOL TE",1,"AI1.SOL.TTS_AI Email Agent","trungdvq","trungdvq"]
[82,"HuyND2190","Nguyễn Đức Huy","TuanNT54","AI1 SOL TE",1,"Covestro_AI","trangntm13","TuanNT54"]
[82,"HuyND2190","Nguyễn Đức Huy","TuanNT54","AI1 SOL TE",1,"Covestro_AI","tuannt54","tuannt54"]
[84,"HuyT3","Trần Huy",0,"AI1 SOL TE",1,"UVNAPS","trungdvq","trungdvq"]
[85,"HuyTQ130","Trần Quang Huy","NhatNX1","AI1 SOL TE",1,"AI1.SOL.TMC_PinholeDetection","tunglt88 ","TrungND25"]
[87,"KhangCM2","Châu Minh Khang","NhiNP11","AI1 SOL TE",1,"CISD GenerativeAI","duonght13","duonght13"]
[88,"KhangCP","Cù Phúc Khang","NhatNX1","AI1 SOL TE",1,"AI1.SOL.AI Risk Review LLM","thopt1","thopt1"]
[89,"KhanhPD22","Phạm Đình Khánh","LanNTQ2","AI1 SOL TE",1,"ATSGROWTH2025","phuongnth","phuongnth"]
[91,"KhiemTN1","Tạ Ngọc Khiêm","BinhPC","AI1 SOL TE",1,"AI1.SOL.SN_Document Extraction","BinhPC","BinhPC"]
[92,"KhoaHA5","Hồ Anh Khoa","NhatNX1","AI1 SOL TE",1,"AIC SOL Multicustomer 2025","TrangNTM13","TrangNTM13"]
[93,"KhoaNT30","Nguyễn Toàn Khoa","TamNT17","AI1 SOL TE",1,"AIC SOL Multicustomer 2025","trangntm13","NhatNX1"]
[95,"KinhTT","Thân Trọng Kính","TamNT17","AI1 SOL TE",1,"AI1.SOL.TE.SCG_Chemical","trungdvq","trungdvq"]
[96,"LangPNN2","Phan Nguyễn Nhất Lang","TamNT17","AI1 SOL TE",3,"AIC.SOL.MDDI","langpnn2","tamnt17"]
[98,"LinhBT16","Bùi Tuấn Linh","ViVV2","AI1 SOL TE",0,"",null,"ViVV2"]
[99,"LinhND77","Nguyễn Đức Linh","NhiNP11","AI1 SOL TE",1,"CISD GenerativeAI","duonght13","duonght13"]
[100,"LocCH","Chương Hòa Lộc",0,"AI1 SOL TE",1,"OPNEXT88","trangntm13","trangntm13"]
[101,"LongNN48","Nguyễn Ngọc Long","TuanNT54","AI1 SOL TE",1,"Covestro_AI","tuannt54","tuannt54"]
[101,"LongNN48","Nguyễn Ngọc Long","TuanNT54","AI1 SOL TE",1,"Covestro_AI","trangntm13","TuanNT54"]
[102,"LongNT173","Nguyễn Thành Long","TamNT17","AI1 SOL TE",2,"AI1.SOL.NUSKIN_Phoenix","longnt173","tamnt17"]
[103,"LongTH65","Trần Hoàng Long","NganMTK2","AI1 SOL TE",0,"",null,"DuongHT13"]
[107,"MaiDTK","Đinh Thị Kim Mai","NganMTK2","AI1 SOL TE",1,"AI1.SOL.NUSKIN_Phoenix","longnt173","longnt173"]
[109,"ManhND105","Nguyễn Đông Mạnh","NhatNX1","AI1 SOL TE",1,"AI1.SOL.PNP","longnt173","longnt173"]
[110,"ManhNV45","Nguyễn Văn Mạnh","VuNQ7","AI1 SOL TE",1,"AI1.SOL.NESAgenticAI","tunglt88 ","NghiaHT5"]
[112,"MinhBTC","Bùi Trần Công Minh","TamNT17","AI1 SOL TE",1,"AI1.SOL.AI Risk Review LLM","thopt1","thopt1"]
[113,"MinhHDN","Hoàng Đức Nhật Minh","MinhBTC","AI1 SOL TE",1,"AI1.SOL.AI Risk Review LLM","thopt1","thopt1"]
[114,"MinhLN13","Lê Ngọc Minh",0,"AI1 SOL TE",1,"HALCANN2","trungdvq","trungdvq"]
[119,"NamPNH2","Phạm Ngọc Hải Nam","NhatNX1","AI1 SOL TE",1,"AIC SOL Multicustomer 2025","trangntm13","trangntm13"]
[121,"NghiaHT5","Huỳnh Trung Nghĩa","TamNT17","AI1 SOL TE",1,"AI1.SOL.NESAgenticAI","tunglt88 ","TrungND25"]
[123,"NguyenLP11","Lê Phước Nguyên","AnhNT446","AI1 SOL TE",1,"AI1.SOL.DMO.xMainframe","HungNV31","ANHNT446"]
[125,"NguyenTT41","Thái Thành Nguyên","NhiNP11","AI1 SOL TE",1,"CISD GenerativeAI","duonght13","duonght13"]
[127,"NhanHT37","Hà Thế Nhân",0,"AI1 SOL TE",2,"Multi Internal Customer","duonght13","duonght13"]
[128,"NhatNX1","Nguyễn Xuân Nhật","TamNT17","AI1 SOL TE",1,"AI1.SOL.AMANO_Yolo","dungnn31","dungnn31"]
[129,"NhiNP11","Ngô Phương Nhi","TamNT17","AI1 SOL TE",1,"CISD GenerativeAI","duonght13","duonght13"]
[132,"PhongTNH","Trần Ngọc Hùng Phong","TuanNT54","AI1 SOL TE",1,"AI1.SOL.IONITY","dungnn31","dungnn31"]
[134,"PhuNNT3","Nguyễn Ngọc Thiên Phú","HaiTV23","AI1 SOL TE",1,"Multi Internal Customer","quynhntn1","haitv23"]
[135,"PhuNQ15","Nguyễn Quang Phú","KhuongND6","AI1 SOL TE",1,"AI1.SOL.NUSKIN_Phoenix","longnt173","longnt173"]
[136,"PhuongNV44","Nguyễn Việt Phương","NghiaHT5","AI1 SOL TE",2,"AIC.SOL.E2E AI","tienvt4","tienvt4"]
[140,"QuanLM51","Lê Minh Quân","TuanNT54","AI1 SOL TE",1,"Covestro_AI","trangntm13","TuanNT54"]
[140,"QuanLM51","Lê Minh Quân","TuanNT54","AI1 SOL TE",1,"Covestro_AI","tuannt54","tuannt54"]
[141,"QuanNV61","Nguyễn Văn Quân",0,"AI1 SOL TE",1,"AI1.SOL.RENESAS","trungnd25","trungnd25"]
[142,"QuyenH","Hoàng Quyền","TuanNT54","AI1 SOL TE",1,"Covestro_AI","trangntm13","TuanNT54"]
[142,"QuyenH","Hoàng Quyền","TuanNT54","AI1 SOL TE",1,"Covestro_AI","tuannt54","tuannt54"]
[143,"QuyenLH2","Lê Hạnh Quyên","NganMTK2","AI1 SOL TE",0,"",null,"NganMTK2"]
[145,"SamCM1","Chiếng Mành Sâm","TamNT17","AI1 SOL TE",0,"",null,"TamNT17"]
[147,"SonHT35","Hoàng Thái Sơn",0,"AI1 SOL TE",1,"AI1.SOL.RENESAS","trungnd25","trungnd25"]
[149,"TamNT17","Nguyễn Thanh Tâm","LanNTQ2","AI1 SOL TE",1,"AI1.SOL.SUNLIFE_PH","trangntm13","trangntm13"]
[150,"TanND22","Nguyễn Duy Tân","NhiNP11","AI1 SOL TE",1,"CISD GenerativeAI","duonght13","duonght13"]
[151,"TanNP3","Nguyễn Phúc Tân","TuanNT54","AI1 SOL TE",1,"AI1.SOL.SCH_Teams Chatbot","thopt1","thopt1"]
[153,"ThaiNT13","Nguyễn Tiến Thái","KhoaNT30","AI1 SOL TE",1,"AIC SOL Multicustomer 2025","trangntm13","trangntm13"]
[153,"ThaiNT13","Nguyễn Tiến Thái","KhoaNT30","AI1 SOL TE",1,"AIC SOL Multicustomer 2025","DungNN31","DungNN31"]
[154,"ThangDV47","Dương Văn Thắng","NghiaHT5","AI1 SOL TE",1,"HP PJ2 IvyChat","duonght13","duonght13"]
[156,"ThangTV45","Trịnh Văn Thắng",0,"AI1 SOL TE",1,"AI1.SOL.RENESAS","trungnd25","trungnd25"]
[157,"ThanhNV154","Nguyễn Văn Thành","NhatNX1","AI1 SOL TE",1,"AI1.SOL.CCTV","AnhMV4","TrungND25"]
[160,"ThePD2","Phạm Đình Thế","ViVV2","AI1 SOL TE",2,"AIC.SOL.E2E AI","tienvt4","tienvt4"]
[162,"ThongCT2","Chu Tuấn Thông",0,"AI1 SOL TE",2,"HP PJ2 IvyChat","duonght13","duonght13"]
[163,"ThoPT1","Phạm Thị Tho","TamNT17","AI1 SOL TE",2,"AI1.SOL.SCH_Teams Chatbot","thopt1","thopt1"]
[164,"ThuanDV17","Đỗ Văn Thuận",0,"AI1 SOL TE",1,"AIC SOL Multicustomer 2025","trangntm13","trangntm13"]
[167,"TienLPT1","Lê Phạm Thủy Tiên",0,"AI1 SOL TE",1,"AI1.SOL.NESAgenticAI","tunglt88 ","NghiaHT5"]
[169,"TienTT8","Trương Trọng Tiến",0,"AI1 SOL TE",1,"AIFarm","trungdvq","trungdvq"]
[170,"TienVT4","Vũ Thanh Tiến","TamNT17","AI1 SOL TE",5,"AIC.SOL.E2E AI","tienvt4","tienvt4"]
[171,"ToanTV26","Tạ Văn Toàn",0,"AI1 SOL TE",1,"AI1.SOL.RENESAS","trungnd25","trungnd25"]
[172,"TrangNDP3","Nguyễn Đài Phương Trang","NhatNX1","AI1 SOL TE",1,"AI1.SOL.TMC_PinholeDetection","tunglt88 ","TrungND25"]
[173,"TrangNTM13","Nguyễn Thị Mai Trang","TamNT17","AI1 SOL TE",6,"AI1.SOL.NTTC","trangntm13","trangntm13"]
[177,"TrinhPTN","Phan Thị Ngọc Trinh","TamNT17","AI1 SOL TE",2,"AI Insight Engine","langpnn2","langpnn2"]
[178,"TrinhTTB1","Trần Tô Băng Trinh",0,"AI1 SOL TE",1,"AIFarm","trungdvq","trungdvq"]
[181,"TrungDVQ","Đinh Vũ Quốc Trung","TamNT17","AI1 SOL TE",4,"AIFarm","trungdvq","trungdvq"]
[182,"TrungHD8","Hoàng Duy Trung",0,"AI1 SOL TE",2,"Toppan Jokomi/Edwards","langpnn2","langpnn2"]
[183,"TrungHQ14","Hoàng Quốc Trung",0,"AI1 SOL TE",1,"AI1.SOL.TTS_AI Email Agent","trungdvq","trungdvq"]
[184,"TrungLH12","Lê Hoàng Trung","KhoaNT30","AI1 SOL TE",1,"AIC SOL Multicustomer 2025","trangntm13","trangntm13"]
[184,"TrungLH12","Lê Hoàng Trung","KhoaNT30","AI1 SOL TE",1,"AIC SOL Multicustomer 2025","DungNN31","DungNN31"]
[185,"TrungND25","Nguyễn Đình Trung","TamNT17","AI1 SOL TE",1,"AI1.SOL.RENESAS","trungnd25","trungnd25"]
[186,"TrungNT108","Nguyễn Thành Trung","TuanNT54","AI1 SOL TE",1,"Covestro_AI","trangntm13","TuanNT54"]
[186,"TrungNT108","Nguyễn Thành Trung","TuanNT54","AI1 SOL TE",1,"Covestro_AI","tuannt54","tuannt54"]
[190,"TuanBA22","Bùi Anh Tuấn","LanNTQ2","AI1 SOL TE",1,"AI1.SOL.AMP","trangntm13","trangntm13"]
[192,"TuanDV54","Đỗ Văn Tuấn","NhiNP11","AI1 SOL TE",1,"CISD GenerativeAI","duonght13","duonght13"]
[194,"TuanNS1","Nguyễn Sĩ Tuấn","NhiNP11","AI1 SOL TE",1,"CISD GenerativeAI","duonght13","duonght13"]
[196,"TuMN2","Mai Ngọc Tú",0,"AI1 SOL TE",1,"AI1.SOL.NUSKIN_Phoenix","longnt173","longnt173"]
[197,"TungHT41","Hồ Thanh Tùng",0,"AI1 SOL TE",1,"AI1.SOL.SB_Security","tungndt4","trangntm13"]
[199,"TungNS35","Nguyễn Sơn Tùng","NhiNP11","AI1 SOL TE",1,"CISD GenerativeAI","duonght13","duonght13"]
[200,"TungNS41","Nguyễn Sơn Tùng","TuanNT54","AI1 SOL TE",1,"AI1.SOL.SCH_Teams Chatbot","thopt1","thopt1"]
[206,"TuPA7","Phan Anh Tú","BinhPC","AI1 SOL TE",3,"AI1.SOL.GEMADEPT","quynhntn1","quynhntn1"]
[209,"VanNT8","Nguyễn Thị Vân","VietTH18","AI1 SOL TE",2,"HP Japan","DuongHT13","DuongHT13"]
[212,"VietPH6","Phạm Hữu Việt",0,"AI1 SOL TE",1,"AI1.SOL.EDWARDS_Translation","langpnn2","langpnn2"]
[213,"VietTH18","Tạ Hoàng Việt",0,"AI1 SOL TE",2,"Toppan Jokomi + HP Japan","duonght13","duonght13"]
[213,"VietTH18","Tạ Hoàng Việt",0,"AI1 SOL TE",2,"Toppan Jokomi","anhmv4","anhmv4"]
[214,"VietTQ57","Trần Quốc Việt","BinhPC","AI1 SOL TE",1,"AI1.SOL.GEMADEPT","quynhntn1","quynhntn1"]
[215,"VinhDQ15","Đỗ Quang Vinh","TuanNT54","AI1 SOL TE",1,"Covestro_AI","trangntm13","TuanNT54"]
[215,"VinhDQ15","Đỗ Quang Vinh","TuanNT54","AI1 SOL TE",1,"Covestro_AI","tuannt54","tuannt54"]
[216,"VinhDQ21","Đặng Quang Vinh","KhoaNT30","AI1 SOL TE",0,"",null,"KhoaNT30"]
[217,"ViP1","Phạm Vĩ","HaiTV23","AI1 SOL TE",1,"AI1.SOL.TE.SCG_Chemical","trungdvq","trungdvq"]
[218,"ViVV2","Vũ Vương Vĩ","ViVV2","AI1 SOL TE",1,"AIC SOL Multicustomer 2025","trangntm13","trangntm13"]
[218,"ViVV2","Vũ Vương Vĩ","ViVV2","AI1 SOL TE",1,"AIC SOL Multicustomer 2025","LanNTQ2","LanNTQ2"]
[219,"VuNDA6","Nguyễn Đăng Anh Vũ","NhatNX1","AI1 SOL TE",1,"AI1.SOL.CCTV","AnhMV4","TrungND25"]
[220,"VuNQ7","Nguyễn Quang Vũ","TamNT17","AI1 SOL TE",1,"AIC.SOL.MDDI","langpnn2","langpnn2"]
["New member","DaoTC2","Trần Công Đạo","NhatNX1","AI1 SOL TE",1,"AI1.SOL.CCTV","AnhMV4","TrungND25"]
["New member","LyBM","Bùi Minh Lý","TruongHV1","AI1 SOL TE",1,"AI1.SOL.PET_POC","trungdvq","trungdvq"]
["New member","ThoLD10","Lê Đức Thọ","NghiaHT5","AI1 SOL TE",1,"AI1.SOL.NESAgenticAI","tunglt88 ","NghiaHT5"]
["New member","ThucLTT1","Lê Trần Trí Thức","KhuongND6","AI1 SOL TE",1,"C99","thopt1","khuongnd6"]
["New member","AnhNV190","Nguyễn Việt Anh",0,"AI1 SOL TE",1,"AIFarm","trungdvq","trungdvq"]

{"sheet":"RA tháng 12_AI4SE","index":4,"n_rows":31,"n_cols":7,"rows_kept":31,"cut":false,"hidden":true,"merged":[]}
["#","Account","Full Name","Site","Head","Job title","Department"]
[9,"AnhPD23","Phạm Duy Anh","HN","ThienN","AI Engineer","AI1 AI4SE"]
[20,"CongNM8","Nguyễn Minh Công","HL","NguyetNTA8","Developer","AI1 AI4SE"]
[25,"CuongNN12","Nguyễn Như Cương","HN","MinhVTN","Developer","AI1 AI4SE"]
[27,"DangVQM","Vũ Quốc Minh Đăng","HCM","ThienN","AI Engineer","AI1 AI4SE"]
[43,"DuongLLD","Lâm Lữ Đức Dương","HCM","TrinhVC3","Data Engineer","AI1 AI4SE"]
[44,"DuongNH59","Nguyễn Hải Dương","HN","MinhVTN","AI Engineer","AI1 AI4SE"]
[66,"HieuPT65","Phùng Thanh Hiếu","HN","MinhVTN","Developer","AI1 AI4SE"]
[68,"HieuTT50","Trần Trung Hiếu","HCM","TungNT181","Engineering Manager","AI1 AI4SE"]
[75,"HungPV65","Phạm Vũ Hùng","HN","TrinhVC3","AI Engineer","AI1 AI4SE"]
[79,"HuuTQ2","Trần Quang Hữu","HCM","TrinhVC3","Developer","AI1 AI4SE"]
[86,"HuyVN11","Võ Nhật Huy","HCM","TrinhVC3","Developer","AI1 AI4SE"]
[90,"KhanhPL2","Phạm Long Khánh","HCM","ThienN","AI Engineer","AI1 AI4SE"]
[104,"LuanNV31","Nguyễn Văn Luân","HN","ThienN","Developer","AI1 AI4SE"]
[111,"ManhPHD","Phạm Hoàng Đức Mạnh","HN","ThienN","Developer","AI1 AI4SE"]
[115,"MinhNL11","Nguyễn Lê Minh","HN","NguyetNTA8","AI Engineer","AI1 AI4SE"]
[117,"MinhVTN","Vương Thị Ngọc Minh","HN","TungNT181","Business Development Manager","AI1 AI4SE"]
[124,"NguyenNH25","Nguyễn Hoàng Nguyên","HCM","NguyetNTA8","AI Engineer","AI1 AI4SE"]
[126,"NguyetNTA8","Nguyễn Thị Ánh Nguyệt","HN","TungNT181","Project Manager","AI1 AI4SE"]
[130,"PhatMT3","Mai Tấn Phát","HCM","NguyetNTA8","Business Analyst","AI1 AI4SE"]
[133,"PHUCVH12","Võ Hoàng Phúc","CT","TrinhVC3","Solution Architect","AI1 AI4SE"]
[155,"ThangLV4","Lê Việt Thắng","HCM","AnhNT446","AI Engineer","AI1 AI4SE"]
[161,"ThienN","Nghiêm Thiện","HCM","TungNT181","Project Manager","AI1 AI4SE"]
[175,"TrangTNT9","Trần Ngọc Thanh Trang","HN","TrinhVC3","AI Engineer","AI1 AI4SE"]
[179,"TrinhVC3","Võ Công Trình","HCM","TungNT181","Project Manager","AI1 AI4SE"]
[189,"TruongTQ20","Trương Quốc Trưởng","HN","NguyetNTA8","Developer","AI1 AI4SE"]
[191,"TuanDC6","Đinh Công Tuân","HN","TungNT181","Business Analyst","AI1 AI4SE"]
[201,"TungNT181","Nguyễn Thanh Tùng","HCM","PhongNX1","AI Scientist","AI1 AI4SE"]
[202,"TungNV33","Nguyễn Văn Tung","HN","TrinhVC3","Developer","AI1 AI4SE"]
[211,"VietNQ52","Nguyễn Quốc Việt","HN","ThienN","Developer","AI1 AI4SE"]
[null,"DucNH82","Nguyễn Huỳnh Đức","HN","ViVV2","DevOps Engineer","AI1 AI4SE"]

{"sheet":"RA tháng 12_LAB SC","index":5,"n_rows":22,"n_cols":7,"rows_kept":22,"cut":false,"hidden":true,"merged":[]}
["#","Account","Full Name","Site","Head","Job title","MSC"]
[3,"AnhBT57","Bùi Tuấn Anh","HCM","HaiTV23","AI Engineer","DuongHT13"]
[17,"C-TienNN","Nguyen Nhut Tien","USA","VanNTH19","Developer","VanNTH19"]
[30,"DatDT67","Đỗ Thành Đạt","HN","HaiTV23","Developer","DuongHT13"]
[54,"HanVT2","Vũ Thị Hân","HN","NgocLTB1","UI/UX Designer","NgocLTB1"]
[56,"HaVH12","Vũ Hải Hà","HN","HaiTV23","Developer","DuongHT13"]
[59,"HienDT65","Đỗ Thu Hiền","HN","MaiTTQ","Executive Assistant","MaiTTQ"]
[67,"HieuTH7","Thân Huy Hiệu","HCM","HaiTV23","Developer","DuongHT13"]
[94,"KhuongND6","Nguyễn Duy Khương","HCM","PhongNX1","Data Scientist","PhongNX1"]
[105,"LuongPTT","Phạm Trần Trung Lượng","HCM","HaiTV23","AI Engineer","DuongHT13"]
[108,"MaiTTQ","Trần Thị Quỳnh Mai","HL","PhongNX1","HRBP","PhongNX1"]
[122,"NgocLTB1","Lê Thị Bích Ngọc","NT","HaiTV23","UI/UX Designer","DuongHT13"]
[146,"SinhNTA2","Nguyễn Thị Anh Sinh","HCM","NganMTK2","AI Engineer","DuongHT13"]
[165,"ThucPD6","Phạm Đình Thục","HCM","NhiNP11","AI Engineer","DuongHT13"]
[168,"TienPTA3","Phạm Trần Anh Tiên","HCM","HaiTV23","Developer","DuongHT13"]
[174,"TrangTNQ1","Trịnh Ngọc Quỳnh Trang","HCM","PhongNX1","Marketing Officer","PhongNX1"]
[187,"TruongHV1","Hoàng Văn Trưởng","HCM","VanNTH19","AI Scientist","VanNTH19"]
[188,"TruongPX16","Phạm Xuân Trường","HN","TrungDVQ","AI Engineer","TrungDVQ"]
[205,"TuNT82","Nguyễn Trọng Tú","HN","PhongNX1","Solution Architect","PhongNX1"]
[207,"TuTC6","Trịnh Cẩm Tú","HN","PhongNX1","Marketing Officer","PhongNX1"]
[210,"VanNTH19","Nguyễn Thị Hồng Vân","HCM","PhongNX1","AI Scientist","PhongNX1"]
[221,"YenDTM3","Đặng Thục Minh Yến","HN","MaiTTQ","Marketing Officer","MaiTTQ"]

{"sheet":"RA tháng 2_SOL","index":6,"n_rows":129,"n_cols":11,"rows_kept":129,"cut":false,"hidden":false,"merged":[]}
["#","Account","Full Name","Department","On-going Project","On-going Project 1","PM_DB.PM","PM_DB. AI1 PM","MSC tháng 2 ","MSC tháng 1","Matching Status"]
[1,"AnCT5","Cấn Tường An","AI1 SOL TE",2,"CISD GenerativeAI","duonght13","duonght13",{"$f":"IFERROR(VLOOKUP(Table10[[#This Row],[Account]],Table6[[#All],[Account]:[MSC PIC]],9,FALSE), \"New Hire\")","v":"LanNTQ2"},{"$f":"IFERROR(VLOOKUP(Table10[[#This Row],[Account]],Table6[[#All],[Account]:[MSC PIC]],9,FALSE), \"New Hire\")","v":"LanNTQ2"},{"$f":"IF(Table10[[#This Row],[MSC tháng 1]]=\"New Hire\", \"New Hire\", IF(Table10[[#This Row],[MSC tháng 2 ]]=Table10[[#This Row],[MSC tháng 1]],\"Match\",\"New Project or New PM\"))","v":"Match"}]
[2,"AnDN2","Đinh Ngọc Ân","AI1 SOL TE",0,"",null,null,"HaiTV23",{"$f":"IFERROR(VLOOKUP(Table10[[#This Row],[Account]],Table6[[#All],[Account]:[MSC PIC]],9,FALSE), \"New Hire\")","v":"HaiTV23"},{"$f":"IF(Table10[[#This Row],[MSC tháng 1]]=\"New Hire\", \"New Hire\", IF(Table10[[#This Row],[MSC tháng 2 ]]=Table10[[#This Row],[MSC tháng 1]],\"Match\",\"New Project or New PM\"))","v":"Match"}]
[3,"AnhNT446","Nguyễn Tuấn Anh","AI1 SOL TE",2,"",null,null,"trangntm13",{"$f":"IFERROR(VLOOKUP(Table10[[#This Row],[Account]],Table6[[#All],[Account]:[MSC PIC]],9,FALSE), \"New Hire\")","v":"trangntm13"},{"$f":"IF(Table10[[#This Row],[MSC tháng 1]]=\"New Hire\", \"New Hire\", IF(Table10[[#This Row],[MSC tháng 2 ]]=Table10[[#This Row],[MSC tháng 1]],\"Match\",\"New Project or New PM\"))","v":"Match"}]
[4,"AnhNV190","Nguyễn Việt Anh","AI1 SOL TE",1,"AIFarm","trungdvq","trungdvq","trungdvq",{"$f":"IFERROR(VLOOKUP(Table10[[#This Row],[Account]],Table6[[#All],[Account]:[MSC PIC]],9,FALSE), \"New Hire\")","v":"trungdvq"},{"$f":"IF(Table10[[#This Row],[MSC tháng 1]]=\"New Hire\", \"New Hire\", IF(Table10[[#This Row],[MSC tháng 2 ]]=Table10[[#This Row],[MSC tháng 1]],\"Match\",\"New Project or New PM\"))","v":"Match"}]
[5,"AnhPT95","Phạm Tuấn Anh","AI1 SOL TE",1,"AI DRBFM","tinhnt27","trungnd25","trungnd25",{"$f":"IFERROR(VLOOKUP(Table10[[#This Row],[Account]],Table6[[#All],[Account]:[MSC PIC]],9,FALSE), \"New Hire\")","v":"trungnd25"},{"$f":"IF(Table10[[#This Row],[MSC tháng 1]]=\"New Hire\", \"New Hire\", IF(Table10[[#This Row],[MSC tháng 2 ]]=Table10[[#This Row],[MSC tháng 1]],\"Match\",\"New Project or New PM\"))","v":"Match"}]
[6,"AnhTQ7116","Trần Quang Anh","AI1 SOL TE",0,"",null,null,"KhuongND6",{"$f":"IFERROR(VLOOKUP(Table10[[#This Row],[Account]],Table6[[#All],[Account]:[MSC PIC]],9,FALSE), \"New Hire\")","v":"KhuongND6"},{"$f":"IF(Table10[[#This Row],[MSC tháng 1]]=\"New Hire\", \"New Hire\", IF(Table10[[#This Row],[MSC tháng 2 ]]=Table10[[#This Row],[MSC tháng 1]],\"Match\",\"New Project or New PM\"))","v":"Match"}]
[7,"BaoHNQ1","Huỳnh Nhật Quốc Bảo","AI1 SOL TE",1,"AI1.SOL.PET_POC","trungdvq","trungdvq","trungdvq",{"$f":"IFERROR(VLOOKUP(Table10[[#This Row],[Account]],Table6[[#All],[Account]:[MSC PIC]],9,FALSE), \"New Hire\")","v":"trungdvq"},{"$f":"IF(Table10[[#This Row],[MSC tháng 1]]=\"New Hire\", \"New Hire\", IF(Table10[[#This Row],[MSC tháng 2 ]]=Table10[[#This Row],[MSC tháng 1]],\"Match\",\"New Project or New PM\"))","v":"Match"}]
[8,"BinhPC","Phan Công Bình","AI1 SOL TE",1,"TESTVISTA2026",null,null,"TungNT181",{"$f":"IFERROR(VLOOKUP(Table10[[#This Row],[Account]],Table6[[#All],[Account]:[MSC PIC]],9,FALSE), \"New Hire\")","v":"trungnd25"},{"$f":"IF(Table10[[#This Row],[MSC tháng 1]]=\"New Hire\", \"New Hire\", IF(Table10[[#This Row],[MSC tháng 2 ]]=Table10[[#This Row],[MSC tháng 1]],\"Match\",\"New Project or New PM\"))","v":"New Project or New PM"}]
[9,"ChuongTN2","Trần Ngọc Chương","AI1 SOL TE",1,"AI1.SOL.PNP","longnt173","longnt173","longnt173",{"$f":"IFERROR(VLOOKUP(Table10[[#This Row],[Account]],Table6[[#All],[Account]:[MSC PIC]],9,FALSE), \"New Hire\")","v":"longnt173"},{"$f":"IF(Table10[[#This Row],[MSC tháng 1]]=\"New Hire\", \"New Hire\", IF(Table10[[#This Row],[MSC tháng 2 ]]=Table10[[#This Row],[MSC tháng 1]],\"Match\",\"New Project or New PM\"))","v":"Match"}]
[10,"CuongDD21","Đỗ Đăng Cường","AI1 SOL TE",1,"AI1.SOL.IONITY",null,null,"tamnt17",{"$f":"IFERROR(VLOOKUP(Table10[[#This Row],[Account]],Table6[[#All],[Account]:[MSC PIC]],9,FALSE), \"New Hire\")","v":"New Hire"},{"$f":"IF(Table10[[#This Row],[MSC tháng 1]]=\"New Hire\", \"New Hire\", IF(Table10[[#This Row],[MSC tháng 2 ]]=Table10[[#This Row],[MSC tháng 1]],\"Match\",\"New Project or New PM\"))","v":"New Hire"}]
[11,"CuongNC20","Nguyễn Chí Cường","AI1 SOL TE",2,"AI1.SOL.TMC_OSS","nguyenndd1","nguyenndd1","nguyenndd1",{"$f":"IFERROR(VLOOKUP(Table10[[#This Row],[Account]],Table6[[#All],[Account]:[MSC PIC]],9,FALSE), \"New Hire\")","v":"trungnd25"},{"$f":"IF(Table10[[#This Row],[MSC tháng 1]]=\"New Hire\", \"New Hire\", IF(Table10[[#This Row],[MSC tháng 2 ]]=Table10[[#This Row],[MSC tháng 1]],\"Match\",\"New Project or New PM\"))","v":"New Project or New PM"}]
[12,"CuongTT23","Trương Tấn Cường","AI1 SOL TE",1,"CISD GenerativeAI","duonght13","duonght13","duonght13",{"$f":"IFERROR(VLOOKUP(Table10[[#This Row],[Account]],Table6[[#All],[Account]:[MSC PIC]],9,FALSE), \"New Hire\")","v":"duonght13"},{"$f":"IF(Table10[[#This Row],[MSC tháng 1]]=\"New Hire\", \"New Hire\", IF(Table10[[#This Row],[MSC tháng 2 ]]=Table10[[#This Row],[MSC tháng 1]],\"Match\",\"New Project or New PM\"))","v":"Match"}]
[13,"DangVQM","Vũ Quốc Minh Đăng","AI1 SOL TE",1,"AI1.SOL Multicustomer 2026","trangntm13","trangntm13",{"$f":"IFERROR(VLOOKUP(Table10[[#This Row],[Account]],Table6[[#All],[Account]:[MSC PIC]],9,FALSE), \"New Hire\")","v":"LanNTQ2"},{"$f":"IFERROR(VLOOKUP(Table10[[#This Row],[Account]],Table6[[#All],[Account]:[MSC PIC]],9,FALSE), \"New Hire\")","v":"LanNTQ2"},{"$f":"IF(Table10[[#This Row],[MSC tháng 1]]=\"New Hire\", \"New Hire\", IF(Table10[[#This Row],[MSC tháng 2 ]]=Table10[[#This Row],[MSC tháng 1]],\"Match\",\"New Project or New PM\"))","v":"Match"}]
[14,"DaoNTA7","Nguyễn Thị Anh Đào","AI1 SOL TE",1,"AI1.SOL.EDWARDS_Translation","langpnn2","langpnn2","langpnn2",{"$f":"IFERROR(VLOOKUP(Table10[[#This Row],[Account]],Table6[[#All],[Account]:[MSC PIC]],9,FALSE), \"New Hire\")","v":"langpnn2"},{"$f":"IF(Table10[[#This Row],[MSC tháng 1]]=\"New Hire\", \"New Hire\", IF(Table10[[#This Row],[MSC tháng 2 ]]=Table10[[#This Row],[MSC tháng 1]],\"Match\",\"New Project or New PM\"))","v":"Match"}]
[15,"DaoTC2","Trần Công Đạo","AI1 SOL TE",1,"AI1.SOL.CCTV","trungnd25","trungnd25","trungnd25",{"$f":"IFERROR(VLOOKUP(Table10[[#This Row],[Account]],Table6[[#All],[Account]:[MSC PIC]],9,FALSE), \"New Hire\")","v":"trungnd25"},{"$f":"IF(Table10[[#This Row],[MSC tháng 1]]=\"New Hire\", \"New Hire\", IF(Table10[[#This Row],[MSC tháng 2 ]]=Table10[[#This Row],[MSC tháng 1]],\"Match\",\"New Project or New PM\"))","v":"Match"}]
[16,"DatHT22","Huỳnh Tuấn Đạt","AI1 SOL TE",1,"AI1.SOL.DMO.xMainframe","hungnv31","trangntm13","binhpc",{"$f":"IFERROR(VLOOKUP(Table10[[#This Row],[Account]],Table6[[#All],[Account]:[MSC PIC]],9,FALSE), \"New Hire\")","v":"binhpc"},{"$f":"IF(Table10[[#This Row],[MSC tháng 1]]=\"New Hire\", \"New Hire\", IF(Table10[[#This Row],[MSC tháng 2 ]]=Table10[[#This Row],[MSC tháng 1]],\"Match\",\"New Project or New PM\"))","v":"Match"}]
[17,"DatLT94","Lương Tất Đạt","AI1 SOL TE",1,"AI1.SOL.PET_POC","trungdvq","trungdvq","trungdvq",{"$f":"IFERROR(VLOOKUP(Table10[[#This Row],[Account]],Table6[[#All],[Account]:[MSC PIC]],9,FALSE), \"New Hire\")","v":"trungdvq"},{"$f":"IF(Table10[[#This Row],[MSC tháng 1]]=\"New Hire\", \"New Hire\", IF(Table10[[#This Row],[MSC tháng 2 ]]=Table10[[#This Row],[MSC tháng 1]],\"Match\",\"New Project or New PM\"))","v":"Match"}]
[18,"DatNT279","Nguyễn Thành Đạt","AI1 SOL TE",1,"AI1.SOL.CVT_AI","tuannt54","tuannt54","tuannt54",{"$f":"IFERROR(VLOOKUP(Table10[[#This Row],[Account]],Table6[[#All],[Account]:[MSC PIC]],9,FALSE), \"New Hire\")","v":"tuannt54"},{"$f":"IF(Table10[[#This Row],[MSC tháng 1]]=\"New Hire\", \"New Hire\", IF(Table10[[#This Row],[MSC tháng 2 ]]=Table10[[#This Row],[MSC tháng 1]],\"Match\",\"New Project or New PM\"))","v":"Match"}]
[19,"DatNV54","Nguyễn Văn Đạt","AI1 SOL TE",1,"NTTC_Java_Migration_POC4","not AI1","trangntm13","trangntm13",{"$f":"IFERROR(VLOOKUP(Table10[[#This Row],[Account]],Table6[[#All],[Account]:[MSC PIC]],9,FALSE), \"New Hire\")","v":"trangntm13"},{"$f":"IF(Table10[[#This Row],[MSC tháng 1]]=\"New Hire\", \"New Hire\", IF(Table10[[#This Row],[MSC tháng 2 ]]=Table10[[#This Row],[MSC tháng 1]],\"Match\",\"New Project or New PM\"))","v":"Match"}]
[20,"DongPT11","Phạm Trọng Đồng","AI1 SOL TE",1,"AI1.SOL.DS_AI","nguyenndd1","nguyenndd1","nguyenndd1",{"$f":"IFERROR(VLOOKUP(Table10[[#This Row],[Account]],Table6[[#All],[Account]:[MSC PIC]],9,FALSE), \"New Hire\")","v":"dungnn31"},{"$f":"IF(Table10[[#This Row],[MSC tháng 1]]=\"New Hire\", \"New Hire\", IF(Table10[[#This Row],[MSC tháng 2 ]]=Table10[[#This Row],[MSC tháng 1]],\"Match\",\"New Project or New PM\"))","v":"New Project or New PM"}]
[21,"DucNT156","Nguyễn Thanh Đức","AI1 SOL TE",1,"AI DRBFM","tinhnt27","trungnd25","trungnd25",{"$f":"IFERROR(VLOOKUP(Table10[[#This Row],[Account]],Table6[[#All],[Account]:[MSC PIC]],9,FALSE), \"New Hire\")","v":"trungnd25"},{"$f":"IF(Table10[[#This Row],[MSC tháng 1]]=\"New Hire\", \"New Hire\", IF(Table10[[#This Row],[MSC tháng 2 ]]=Table10[[#This Row],[MSC tháng 1]],\"Match\",\"New Project or New PM\"))","v":"Match"}]
[22,"DuongHT13","Huỳnh Tấn Dưỡng","AI1 SOL TE",3,"HP PJ2 IvyChat","duonght13","duonght13","TamNT17",{"$f":"IFERROR(VLOOKUP(Table10[[#This Row],[Account]],Table6[[#All],[Account]:[MSC PIC]],9,FALSE), \"New Hire\")","v":"TamNT17"},{"$f":"IF(Table10[[#This Row],[MSC tháng 1]]=\"New Hire\", \"New Hire\", IF(Table10[[#This Row],[MSC tháng 2 ]]=Table10[[#This Row],[MSC tháng 1]],\"Match\",\"New Project or New PM\"))","v":"Match"}]
[23,"DuyDT14","Dương Thành Duy","AI1 SOL TE",1,"AI1.SOL Multicustomer 2026","trangntm13","trangntm13","vunq7",{"$f":"IFERROR(VLOOKUP(Table10[[#This Row],[Account]],Table6[[#All],[Account]:[MSC PIC]],9,FALSE), \"New Hire\")","v":"langpnn2"},{"$f":"IF(Table10[[#This Row],[MSC tháng 1]]=\"New Hire\", \"New Hire\", IF(Table10[[#This Row],[MSC tháng 2 ]]=Table10[[#This Row],[MSC tháng 1]],\"Match\",\"New Project or New PM\"))","v":"New Project or New PM"}]
[24,"HaHT37","Hoàng Thúy Hà","AI1 SOL TE",1,"AI1.SOL.CVT_AI","tuannt54","tuannt54","tuannt54",{"$f":"IFERROR(VLOOKUP(Table10[[#This Row],[Account]],Table6[[#All],[Account]:[MSC PIC]],9,FALSE), \"New Hire\")","v":"tuannt54"},{"$f":"IF(Table10[[#This Row],[MSC tháng 1]]=\"New Hire\", \"New Hire\", IF(Table10[[#This Row],[MSC tháng 2 ]]=Table10[[#This Row],[MSC tháng 1]],\"Match\",\"New Project or New PM\"))","v":"Match"}]
[25,"HaiLT61","Lê Trung Hải","AI1 SOL TE",0,"",null,null,"HaiTV23",{"$f":"IFERROR(VLOOKUP(Table10[[#This Row],[Account]],Table6[[#All],[Account]:[MSC PIC]],9,FALSE), \"New Hire\")","v":"HaiTV23"},{"$f":"IF(Table10[[#This Row],[MSC tháng 1]]=\"New Hire\", \"New Hire\", IF(Table10[[#This Row],[MSC tháng 2 ]]=Table10[[#This Row],[MSC tháng 1]],\"Match\",\"New Project or New PM\"))","v":"Match"}]
[26,"HaiTV23","Tô Văn Hải","AI1 SOL TE",0,"",null,null,"NganMTK2",{"$f":"IFERROR(VLOOKUP(Table10[[#This Row],[Account]],Table6[[#All],[Account]:[MSC PIC]],9,FALSE), \"New Hire\")","v":"NganMTK2"},{"$f":"IF(Table10[[#This Row],[MSC tháng 1]]=\"New Hire\", \"New Hire\", IF(Table10[[#This Row],[MSC tháng 2 ]]=Table10[[#This Row],[MSC tháng 1]],\"Match\",\"New Project or New PM\"))","v":"Match"}]
[27,"HaLHM1","Lê Hoàng Minh Hà","AI1 SOL TE",1,"CISD GenerativeAI","duonght13","duonght13","duonght13",{"$f":"IFERROR(VLOOKUP(Table10[[#This Row],[Account]],Table6[[#All],[Account]:[MSC PIC]],9,FALSE), \"New Hire\")","v":"duonght13"},{"$f":"IF(Table10[[#This Row],[MSC tháng 1]]=\"New Hire\", \"New Hire\", IF(Table10[[#This Row],[MSC tháng 2 ]]=Table10[[#This Row],[MSC tháng 1]],\"Match\",\"New Project or New PM\"))","v":"Match"}]
[28,"HANGHT","Hứa Thu Hằng","AI1 SOL TE",1,"CISD GenerativeAI","duonght13","duonght13","duonght13",{"$f":"IFERROR(VLOOKUP(Table10[[#This Row],[Account]],Table6[[#All],[Account]:[MSC PIC]],9,FALSE), \"New Hire\")","v":"duonght13"},{"$f":"IF(Table10[[#This Row],[MSC tháng 1]]=\"New Hire\", \"New Hire\", IF(Table10[[#This Row],[MSC tháng 2 ]]=Table10[[#This Row],[MSC tháng 1]],\"Match\",\"New Project or New PM\"))","v":"Match"}]
[29,"HanhTV3","Tạ Vinh Hạnh","AI1 SOL TE",1,"HALCANN2","trungdvq","trungdvq","trungdvq",{"$f":"IFERROR(VLOOKUP(Table10[[#This Row],[Account]],Table6[[#All],[Account]:[MSC PIC]],9,FALSE), \"New Hire\")","v":"trungdvq"},{"$f":"IF(Table10[[#This Row],[MSC tháng 1]]=\"New Hire\", \"New Hire\", IF(Table10[[#This Row],[MSC tháng 2 ]]=Table10[[#This Row],[MSC tháng 1]],\"Match\",\"New Project or New PM\"))","v":"Match"}]
[30,"HaoNN17","Nguyễn Nguyên Hảo","AI1 SOL TE",1,"CISD GenerativeAI","duonght13","duonght13","duonght13",{"$f":"IFERROR(VLOOKUP(Table10[[#This Row],[Account]],Table6[[#All],[Account]:[MSC PIC]],9,FALSE), \"New Hire\")","v":"duonght13"},{"$f":"IF(Table10[[#This Row],[MSC tháng 1]]=\"New Hire\", \"New Hire\", IF(Table10[[#This Row],[MSC tháng 2 ]]=Table10[[#This Row],[MSC tháng 1]],\"Match\",\"New Project or New PM\"))","v":"Match"}]
[31,"HenryB1","Bùi Henry","AI1 SOL TE",1,"AI1.SOL.DMO.xMainframe","hungnv31","trangntm13","anhnt446",{"$f":"IFERROR(VLOOKUP(Table10[[#This Row],[Account]],Table6[[#All],[Account]:[MSC PIC]],9,FALSE), \"New Hire\")","v":"anhnt446"},{"$f":"IF(Table10[[#This Row],[MSC tháng 1]]=\"New Hire\", \"New Hire\", IF(Table10[[#This Row],[MSC tháng 2 ]]=Table10[[#This Row],[MSC tháng 1]],\"Match\",\"New Project or New PM\"))","v":"Match"}]
[32,"HienDH4","Đoàn Huy Hiên","AI1 SOL TE",1,"AI1.SOL.PET_POC","trungdvq","trungdvq","trungdvq",{"$f":"IFERROR(VLOOKUP(Table10[[#This Row],[Account]],Table6[[#All],[Account]:[MSC PIC]],9,FALSE), \"New Hire\")","v":"trungdvq"},{"$f":"IF(Table10[[#This Row],[MSC tháng 1]]=\"New Hire\", \"New Hire\", IF(Table10[[#This Row],[MSC tháng 2 ]]=Table10[[#This Row],[MSC tháng 1]],\"Match\",\"New Project or New PM\"))","v":"Match"}]
[33,"HienNM19","Nguyễn Minh Hiển","AI1 SOL TE",1,"AI1.SOL.SB_Security","tungndt4","trungnd25","trungnd25",{"$f":"IFERROR(VLOOKUP(Table10[[#This Row],[Account]],Table6[[#All],[Account]:[MSC PIC]],9,FALSE), \"New Hire\")","v":"trungnd25"},{"$f":"IF(Table10[[#This Row],[MSC tháng 1]]=\"New Hire\", \"New Hire\", IF(Table10[[#This Row],[MSC tháng 2 ]]=Table10[[#This Row],[MSC tháng 1]],\"Match\",\"New Project or New PM\"))","v":"Match"}]
[34,"HieuDT47","Đào Trung Hiếu","AI1 SOL TE",1,"AI1.SOL.DMO.xMainframe","hungnv31","trangntm13","anhnt446",{"$f":"IFERROR(VLOOKUP(Table10[[#This Row],[Account]],Table6[[#All],[Account]:[MSC PIC]],9,FALSE), \"New Hire\")","v":"anhnt446"},{"$f":"IF(Table10[[#This Row],[MSC tháng 1]]=\"New Hire\", \"New Hire\", IF(Table10[[#This Row],[MSC tháng 2 ]]=Table10[[#This Row],[MSC tháng 1]],\"Match\",\"New Project or New PM\"))","v":"Match"}]
[35,"HieuLM27","Lương Minh Hiệu","AI1 SOL TE",1,"AI1.SOL.RMV_Lens","trangntm13","trangntm13","trangntm13",{"$f":"IFERROR(VLOOKUP(Table10[[#This Row],[Account]],Table6[[#All],[Account]:[MSC PIC]],9,FALSE), \"New Hire\")","v":"TrangNTM13"},{"$f":"IF(Table10[[#This Row],[MSC tháng 1]]=\"New Hire\", \"New Hire\", IF(Table10[[#This Row],[MSC tháng 2 ]]=Table10[[#This Row],[MSC tháng 1]],\"Match\",\"New Project or New PM\"))","v":"Match"}]
[36,"HoangLX2","Lương Xuân Hoàng","AI1 SOL TE",1,"AI1.SOL.AI Risk Review LLM","thopt1","thopt1","thopt1",{"$f":"IFERROR(VLOOKUP(Table10[[#This Row],[Account]],Table6[[#All],[Account]:[MSC PIC]],9,FALSE), \"New Hire\")","v":"thopt1"},{"$f":"IF(Table10[[#This Row],[MSC tháng 1]]=\"New Hire\", \"New Hire\", IF(Table10[[#This Row],[MSC tháng 2 ]]=Table10[[#This Row],[MSC tháng 1]],\"Match\",\"New Project or New PM\"))","v":"Match"}]
[37,"HoangNL10","Nguyễn Lê Hoàng","AI1 SOL TE",1,"AI1.SOL.PNP","longnt173","longnt173","longnt173",{"$f":"IFERROR(VLOOKUP(Table10[[#This Row],[Account]],Table6[[#All],[Account]:[MSC PIC]],9,FALSE), \"New Hire\")","v":"longnt173"},{"$f":"IF(Table10[[#This Row],[MSC tháng 1]]=\"New Hire\", \"New Hire\", IF(Table10[[#This Row],[MSC tháng 2 ]]=Table10[[#This Row],[MSC tháng 1]],\"Match\",\"New Project or New PM\"))","v":"Match"}]
[38,"HoangPH25","Phan Huy Hoàng","AI1 SOL TE",1,"AI Insight Engine","langpnn2","langpnn2","langpnn2",{"$f":"IFERROR(VLOOKUP(Table10[[#This Row],[Account]],Table6[[#All],[Account]:[MSC PIC]],9,FALSE), \"New Hire\")","v":"langpnn2"},{"$f":"IF(Table10[[#This Row],[MSC tháng 1]]=\"New Hire\", \"New Hire\", IF(Table10[[#This Row],[MSC tháng 2 ]]=Table10[[#This Row],[MSC tháng 1]],\"Match\",\"New Project or New PM\"))","v":"Match"}]
[39,"HungLT128","Lộc Tuấn Hùng","AI1 SOL TE",2,"AIC.SOL.E2E AI","tienvt4","tienvt4","tienvt4",{"$f":"IFERROR(VLOOKUP(Table10[[#This Row],[Account]],Table6[[#All],[Account]:[MSC PIC]],9,FALSE), \"New Hire\")","v":"tienvt4"},{"$f":"IF(Table10[[#This Row],[MSC tháng 1]]=\"New Hire\", \"New Hire\", IF(Table10[[#This Row],[MSC tháng 2 ]]=Table10[[#This Row],[MSC tháng 1]],\"Match\",\"New Project or New PM\"))","v":"Match"}]
[40,"HungVN6","Vũ Nam Hưng","AI1 SOL TE",1,"CISD GenerativeAI","duonght13","duonght13","duonght13",{"$f":"IFERROR(VLOOKUP(Table10[[#This Row],[Account]],Table6[[#All],[Account]:[MSC PIC]],9,FALSE), \"New Hire\")","v":"duonght13"},{"$f":"IF(Table10[[#This Row],[MSC tháng 1]]=\"New Hire\", \"New Hire\", IF(Table10[[#This Row],[MSC tháng 2 ]]=Table10[[#This Row],[MSC tháng 1]],\"Match\",\"New Project or New PM\"))","v":"Match"}]
[41,"HuongNL16","Nguyễn Lan Hương","AI1 SOL TE",1,"AI1.SOL.CVT_AI","tuannt54","tuannt54","tuannt54",{"$f":"IFERROR(VLOOKUP(Table10[[#This Row],[Account]],Table6[[#All],[Account]:[MSC PIC]],9,FALSE), \"New Hire\")","v":"tuannt54"},{"$f":"IF(Table10[[#This Row],[MSC tháng 1]]=\"New Hire\", \"New Hire\", IF(Table10[[#This Row],[MSC tháng 2 ]]=Table10[[#This Row],[MSC tháng 1]],\"Match\",\"New Project or New PM\"))","v":"Match"}]
[42,"HuongNS","Nguyễn Sông Hương","AI1 SOL TE",0,"",null,null,"TamNT17",{"$f":"IFERROR(VLOOKUP(Table10[[#This Row],[Account]],Table6[[#All],[Account]:[MSC PIC]],9,FALSE), \"New Hire\")","v":"TamNT17"},{"$f":"IF(Table10[[#This Row],[MSC tháng 1]]=\"New Hire\", \"New Hire\", IF(Table10[[#This Row],[MSC tháng 2 ]]=Table10[[#This Row],[MSC tháng 1]],\"Match\",\"New Project or New PM\"))","v":"Match"}]
[43,"HuyenBK2","Bùi Khánh Huyền","AI1 SOL TE",1,"CISD GenerativeAI","duonght13","duonght13","duonght13",{"$f":"IFERROR(VLOOKUP(Table10[[#This Row],[Account]],Table6[[#All],[Account]:[MSC PIC]],9,FALSE), \"New Hire\")","v":"duonght13"},{"$f":"IF(Table10[[#This Row],[MSC tháng 1]]=\"New Hire\", \"New Hire\", IF(Table10[[#This Row],[MSC tháng 2 ]]=Table10[[#This Row],[MSC tháng 1]],\"Match\",\"New Project or New PM\"))","v":"Match"}]
[44,"HuyHD7","Hoàng Đức Huy","AI1 SOL TE",2,"AI1.SOL.NTT.Dsol","tienhn5","trungnd25","trungdvq",{"$f":"IFERROR(VLOOKUP(Table10[[#This Row],[Account]],Table6[[#All],[Account]:[MSC PIC]],9,FALSE), \"New Hire\")","v":"trungdvq"},{"$f":"IF(Table10[[#This Row],[MSC tháng 1]]=\"New Hire\", \"New Hire\", IF(Table10[[#This Row],[MSC tháng 2 ]]=Table10[[#This Row],[MSC tháng 1]],\"Match\",\"New Project or New PM\"))","v":"Match"}]
[45,"HuyND2190","Nguyễn Đức Huy","AI1 SOL TE",1,"AI1.SOL.CVT_AI","tuannt54","tuannt54","tuannt54",{"$f":"IFERROR(VLOOKUP(Table10[[#This Row],[Account]],Table6[[#All],[Account]:[MSC PIC]],9,FALSE), \"New Hire\")","v":"tuannt54"},{"$f":"IF(Table10[[#This Row],[MSC tháng 1]]=\"New Hire\", \"New Hire\", IF(Table10[[#This Row],[MSC tháng 2 ]]=Table10[[#This Row],[MSC tháng 1]],\"Match\",\"New Project or New PM\"))","v":"Match"}]
[46,"HuyT3","Trần Huy","AI1 SOL TE",1,"UVNAPS","trungdvq","trungdvq","trungdvq",{"$f":"IFERROR(VLOOKUP(Table10[[#This Row],[Account]],Table6[[#All],[Account]:[MSC PIC]],9,FALSE), \"New Hire\")","v":"trungdvq"},{"$f":"IF(Table10[[#This Row],[MSC tháng 1]]=\"New Hire\", \"New Hire\", IF(Table10[[#This Row],[MSC tháng 2 ]]=Table10[[#This Row],[MSC tháng 1]],\"Match\",\"New Project or New PM\"))","v":"Match"}]
[47,"HuyTQ130","Trần Quang Huy","AI1 SOL TE",1,"AI1.SOL.TMC_PinholeDetection","nguyenndd1","trungnd25","nguyenndd1",{"$f":"IFERROR(VLOOKUP(Table10[[#This Row],[Account]],Table6[[#All],[Account]:[MSC PIC]],9,FALSE), \"New Hire\")","v":"trungnd25"},{"$f":"IF(Table10[[#This Row],[MSC tháng 1]]=\"New Hire\", \"New Hire\", IF(Table10[[#This Row],[MSC tháng 2 ]]=Table10[[#This Row],[MSC tháng 1]],\"Match\",\"New Project or New PM\"))","v":"New Project or New PM"}]
[48,"KhangCM2","Châu Minh Khang","AI1 SOL TE",1,"CISD GenerativeAI","duonght13","duonght13","duonght13",{"$f":"IFERROR(VLOOKUP(Table10[[#This Row],[Account]],Table6[[#All],[Account]:[MSC PIC]],9,FALSE), \"New Hire\")","v":"duonght13"},{"$f":"IF(Table10[[#This Row],[MSC tháng 1]]=\"New Hire\", \"New Hire\", IF(Table10[[#This Row],[MSC tháng 2 ]]=Table10[[#This Row],[MSC tháng 1]],\"Match\",\"New Project or New PM\"))","v":"Match"}]
[49,"KhangCP","Cù Phúc Khang","AI1 SOL TE",1,"AI1.SOL.AI Risk Review LLM","thopt1","thopt1","thopt1",{"$f":"IFERROR(VLOOKUP(Table10[[#This Row],[Account]],Table6[[#All],[Account]:[MSC PIC]],9,FALSE), \"New Hire\")","v":"thopt1"},{"$f":"IF(Table10[[#This Row],[MSC tháng 1]]=\"New Hire\", \"New Hire\", IF(Table10[[#This Row],[MSC tháng 2 ]]=Table10[[#This Row],[MSC tháng 1]],\"Match\",\"New Project or New PM\"))","v":"Match"}]
[50,"KhanhPD22","Phạm Đình Khánh","AI1 SOL TE",1,"AI1.SOL Multicustomer 2026","trangntm13","trangntm13","LanNTQ2",{"$f":"IFERROR(VLOOKUP(Table10[[#This Row],[Account]],Table6[[#All],[Account]:[MSC PIC]],9,FALSE), \"New Hire\")","v":"LanNTQ2"},{"$f":"IF(Table10[[#This Row],[MSC tháng 1]]=\"New Hire\", \"New Hire\", IF(Table10[[#This Row],[MSC tháng 2 ]]=Table10[[#This Row],[MSC tháng 1]],\"Match\",\"New Project or New PM\"))","v":"Match"}]
[51,"KhiemTN1","Tạ Ngọc Khiêm","AI1 SOL TE",0,"",null,null,"BinhPC",{"$f":"IFERROR(VLOOKUP(Table10[[#This Row],[Account]],Table6[[#All],[Account]:[MSC PIC]],9,FALSE), \"New Hire\")","v":"BinhPC"},{"$f":"IF(Table10[[#This Row],[MSC tháng 1]]=\"New Hire\", \"New Hire\", IF(Table10[[#This Row],[MSC tháng 2 ]]=Table10[[#This Row],[MSC tháng 1]],\"Match\",\"New Project or New PM\"))","v":"Match"}]
[52,"KhoaNT30","Nguyễn Toàn Khoa","AI1 SOL TE",1,"AI1.SOL Multicustomer 2026","trangntm13","trangntm13","lanntq2",{"$f":"IFERROR(VLOOKUP(Table10[[#This Row],[Account]],Table6[[#All],[Account]:[MSC PIC]],9,FALSE), \"New Hire\")","v":"lanntq2"},{"$f":"IF(Table10[[#This Row],[MSC tháng 1]]=\"New Hire\", \"New Hire\", IF(Table10[[#This Row],[MSC tháng 2 ]]=Table10[[#This Row],[MSC tháng 1]],\"Match\",\"New Project or New PM\"))","v":"Match"}]
[53,"KinhTT","Thân Trọng Kính","AI1 SOL TE",1,"AI1.SOL.TE.SCG_Chemical","trungdvq","trungdvq","trungdvq",{"$f":"IFERROR(VLOOKUP(Table10[[#This Row],[Account]],Table6[[#All],[Account]:[MSC PIC]],9,FALSE), \"New Hire\")","v":"trungdvq"},{"$f":"IF(Table10[[#This Row],[MSC tháng 1]]=\"New Hire\", \"New Hire\", IF(Table10[[#This Row],[MSC tháng 2 ]]=Table10[[#This Row],[MSC tháng 1]],\"Match\",\"New Project or New PM\"))","v":"Match"}]
[54,"LangPNN2","Phan Nguyễn Nhất Lang","AI1 SOL TE",2,"AI1.SOL.EDWARDS_Translation","langpnn2","langpnn2","TamNT17",{"$f":"IFERROR(VLOOKUP(Table10[[#This Row],[Account]],Table6[[#All],[Account]:[MSC PIC]],9,FALSE), \"New Hire\")","v":"TamNT17"},{"$f":"IF(Table10[[#This Row],[MSC tháng 1]]=\"New Hire\", \"New Hire\", IF(Table10[[#This Row],[MSC tháng 2 ]]=Table10[[#This Row],[MSC tháng 1]],\"Match\",\"New Project or New PM\"))","v":"Match"}]
[55,"LinhBT16","Bùi Tuấn Linh","AI1 SOL TE",1,"AI1.SOL.NESAgenticAI","hoanglh19","trungnd25","vivv2",{"$f":"IFERROR(VLOOKUP(Table10[[#This Row],[Account]],Table6[[#All],[Account]:[MSC PIC]],9,FALSE), \"New Hire\")","v":"ViVV2"},{"$f":"IF(Table10[[#This Row],[MSC tháng 1]]=\"New Hire\", \"New Hire\", IF(Table10[[#This Row],[MSC tháng 2 ]]=Table10[[#This Row],[MSC tháng 1]],\"Match\",\"New Project or New PM\"))","v":"Match"}]
[56,"LinhND77","Nguyễn Đức Linh","AI1 SOL TE",1,"CISD GenerativeAI","duonght13","duonght13","duonght13",{"$f":"IFERROR(VLOOKUP(Table10[[#This Row],[Account]],Table6[[#All],[Account]:[MSC PIC]],9,FALSE), \"New Hire\")","v":"duonght13"},{"$f":"IF(Table10[[#This Row],[MSC tháng 1]]=\"New Hire\", \"New Hire\", IF(Table10[[#This Row],[MSC tháng 2 ]]=Table10[[#This Row],[MSC tháng 1]],\"Match\",\"New Project or New PM\"))","v":"Match"}]
[57,"LocCH","Chương Hòa Lộc","AI1 SOL TE",1,"OPNEXT88","FHM","trangntm13","trangntm13",{"$f":"IFERROR(VLOOKUP(Table10[[#This Row],[Account]],Table6[[#All],[Account]:[MSC PIC]],9,FALSE), \"New Hire\")","v":"trangntm13"},{"$f":"IF(Table10[[#This Row],[MSC tháng 1]]=\"New Hire\", \"New Hire\", IF(Table10[[#This Row],[MSC tháng 2 ]]=Table10[[#This Row],[MSC tháng 1]],\"Match\",\"New Project or New PM\"))","v":"Match"}]
[58,"LongNN48","Nguyễn Ngọc Long","AI1 SOL TE",1,"AItomatic Cyber Security","tuannt54","tuannt54","tuannt54",{"$f":"IFERROR(VLOOKUP(Table10[[#This Row],[Account]],Table6[[#All],[Account]:[MSC PIC]],9,FALSE), \"New Hire\")","v":"tuannt54"},{"$f":"IF(Table10[[#This Row],[MSC tháng 1]]=\"New Hire\", \"New Hire\", IF(Table10[[#This Row],[MSC tháng 2 ]]=Table10[[#This Row],[MSC tháng 1]],\"Match\",\"New Project or New PM\"))","v":"Match"}]
[59,"LongNT173","Nguyễn Thành Long","AI1 SOL TE",2,"AI1.SOL.NUSKIN_Phoenix","longnt173","longnt173","TamNT17",{"$f":"IFERROR(VLOOKUP(Table10[[#This Row],[Account]],Table6[[#All],[Account]:[MSC PIC]],9,FALSE), \"New Hire\")","v":"TamNT17"},{"$f":"IF(Table10[[#This Row],[MSC tháng 1]]=\"New Hire\", \"New Hire\", IF(Table10[[#This Row],[MSC tháng 2 ]]=Table10[[#This Row],[MSC tháng 1]],\"Match\",\"New Project or New PM\"))","v":"Match"}]
[60,"LyBM","Bùi Minh Lý","AI1 SOL TE",1,"AI1.SOL.PET_POC","trungdvq","trungdvq","trungdvq",{"$f":"IFERROR(VLOOKUP(Table10[[#This Row],[Account]],Table6[[#All],[Account]:[MSC PIC]],9,FALSE), \"New Hire\")","v":"trungdvq"},{"$f":"IF(Table10[[#This Row],[MSC tháng 1]]=\"New Hire\", \"New Hire\", IF(Table10[[#This Row],[MSC tháng 2 ]]=Table10[[#This Row],[MSC tháng 1]],\"Match\",\"New Project or New PM\"))","v":"Match"}]
[61,"MaiDTK","Đinh Thị Kim Mai","AI1 SOL TE",1,"AI1.SOL.NUSKIN_Phoenix","longnt173","longnt173","longnt173",{"$f":"IFERROR(VLOOKUP(Table10[[#This Row],[Account]],Table6[[#All],[Account]:[MSC PIC]],9,FALSE), \"New Hire\")","v":"longnt173"},{"$f":"IF(Table10[[#This Row],[MSC tháng 1]]=\"New Hire\", \"New Hire\", IF(Table10[[#This Row],[MSC tháng 2 ]]=Table10[[#This Row],[MSC tháng 1]],\"Match\",\"New Project or New PM\"))","v":"Match"}]
[62,"ManhND105","Nguyễn Đông Mạnh","AI1 SOL TE",1,"AI1.SOL.PNP","longnt173","longnt173","longnt173",{"$f":"IFERROR(VLOOKUP(Table10[[#This Row],[Account]],Table6[[#All],[Account]:[MSC PIC]],9,FALSE), \"New Hire\")","v":"longnt173"},{"$f":"IF(Table10[[#This Row],[MSC tháng 1]]=\"New Hire\", \"New Hire\", IF(Table10[[#This Row],[MSC tháng 2 ]]=Table10[[#This Row],[MSC tháng 1]],\"Match\",\"New Project or New PM\"))","v":"Match"}]
[63,"ManhNV45","Nguyễn Văn Mạnh","AI1 SOL TE",1,"AI1.SOL.NESAgenticAI","hoanglh19","trungnd25","nghiaht5",{"$f":"IFERROR(VLOOKUP(Table10[[#This Row],[Account]],Table6[[#All],[Account]:[MSC PIC]],9,FALSE), \"New Hire\")","v":"nghiaht5"},{"$f":"IF(Table10[[#This Row],[MSC tháng 1]]=\"New Hire\", \"New Hire\", IF(Table10[[#This Row],[MSC tháng 2 ]]=Table10[[#This Row],[MSC tháng 1]],\"Match\",\"New Project or New PM\"))","v":"Match"}]
[64,"MinhBTC","Bùi Trần Công Minh","AI1 SOL TE",1,"AI1.SOL.AI Risk Review LLM","thopt1","thopt1","thopt1",{"$f":"IFERROR(VLOOKUP(Table10[[#This Row],[Account]],Table6[[#All],[Account]:[MSC PIC]],9,FALSE), \"New Hire\")","v":"thopt1"},{"$f":"IF(Table10[[#This Row],[MSC tháng 1]]=\"New Hire\", \"New Hire\", IF(Table10[[#This Row],[MSC tháng 2 ]]=Table10[[#This Row],[MSC tháng 1]],\"Match\",\"New Project or New PM\"))","v":"Match"}]
[65,"MinhLN13","Lê Ngọc Minh","AI1 SOL TE",1,"HALCANN2","trungdvq","trungdvq","trungdvq","trungdvq",{"$f":"IF(Table10[[#This Row],[MSC tháng 1]]=\"New Hire\", \"New Hire\", IF(Table10[[#This Row],[MSC tháng 2 ]]=Table10[[#This Row],[MSC tháng 1]],\"Match\",\"New Project or New PM\"))","v":"Match"}]
[66,"NamPNH2","Phạm Ngọc Hải Nam","AI1 SOL TE",1,"AI1.SOL Multicustomer 2026","trangntm13","trangntm13","trangntm13",{"$f":"IFERROR(VLOOKUP(Table10[[#This Row],[Account]],Table6[[#All],[Account]:[MSC PIC]],9,FALSE), \"New Hire\")","v":"trangntm13"},{"$f":"IF(Table10[[#This Row],[MSC tháng 1]]=\"New Hire\", \"New Hire\", IF(Table10[[#This Row],[MSC tháng 2 ]]=Table10[[#This Row],[MSC tháng 1]],\"Match\",\"New Project or New PM\"))","v":"Match"}]
[67,"NghiaHT5","Huỳnh Trung Nghĩa","AI1 SOL TE",1,"AI1.SOL.NESAgenticAI","hoanglh19","trungnd25","trungnd25",{"$f":"IFERROR(VLOOKUP(Table10[[#This Row],[Account]],Table6[[#All],[Account]:[MSC PIC]],9,FALSE), \"New Hire\")","v":"trungnd25"},{"$f":"IF(Table10[[#This Row],[MSC tháng 1]]=\"New Hire\", \"New Hire\", IF(Table10[[#This Row],[MSC tháng 2 ]]=Table10[[#This Row],[MSC tháng 1]],\"Match\",\"New Project or New PM\"))","v":"Match"}]
[68,"NguyenLP11","Lê Phước Nguyên","AI1 SOL TE",1,"AI1.SOL.DMO.xMainframe","hungnv31","trangntm13","anhnt446",{"$f":"IFERROR(VLOOKUP(Table10[[#This Row],[Account]],Table6[[#All],[Account]:[MSC PIC]],9,FALSE), \"New Hire\")","v":"anhnt446"},{"$f":"IF(Table10[[#This Row],[MSC tháng 1]]=\"New Hire\", \"New Hire\", IF(Table10[[#This Row],[MSC tháng 2 ]]=Table10[[#This Row],[MSC tháng 1]],\"Match\",\"New Project or New PM\"))","v":"Match"}]
[69,"NguyenNDD1","Nguyễn Dương Duy Nguyên","AI1 SOL TE",3,"AI1.SOL.TMC_PinholeDetection","tamnt17","tamnt17","tamnt17",{"$f":"IFERROR(VLOOKUP(Table10[[#This Row],[Account]],Table6[[#All],[Account]:[MSC PIC]],9,FALSE), \"New Hire\")","v":"New Hire"},{"$f":"IF(Table10[[#This Row],[MSC tháng 1]]=\"New Hire\", \"New Hire\", IF(Table10[[#This Row],[MSC tháng 2 ]]=Table10[[#This Row],[MSC tháng 1]],\"Match\",\"New Project or New PM\"))","v":"New Hire"}]
[70,"NguyenTT41","Thái Thành Nguyên","AI1 SOL TE",1,"CISD GenerativeAI","duonght13","duonght13","duonght13",{"$f":"IFERROR(VLOOKUP(Table10[[#This Row],[Account]],Table6[[#All],[Account]:[MSC PIC]],9,FALSE), \"New Hire\")","v":"duonght13"},{"$f":"IF(Table10[[#This Row],[MSC tháng 1]]=\"New Hire\", \"New Hire\", IF(Table10[[#This Row],[MSC tháng 2 ]]=Table10[[#This Row],[MSC tháng 1]],\"Match\",\"New Project or New PM\"))","v":"Match"}]
[71,"NhanHT37","Hà Thế Nhân","AI1 SOL TE",1,"AI1.SOL.NEC","duonght13","duonght13","duonght13",{"$f":"IFERROR(VLOOKUP(Table10[[#This Row],[Account]],Table6[[#All],[Account]:[MSC PIC]],9,FALSE), \"New Hire\")","v":"duonght13"},{"$f":"IF(Table10[[#This Row],[MSC tháng 1]]=\"New Hire\", \"New Hire\", IF(Table10[[#This Row],[MSC tháng 2 ]]=Table10[[#This Row],[MSC tháng 1]],\"Match\",\"New Project or New PM\"))","v":"Match"}]
[72,"NhatNX1","Nguyễn Xuân Nhật","AI1 SOL TE",1,"AI1.SOL.RMV_Lens","trangntm13","trangntm13","trangntm13",{"$f":"IFERROR(VLOOKUP(Table10[[#This Row],[Account]],Table6[[#All],[Account]:[MSC PIC]],9,FALSE), \"New Hire\")","v":"trungnd25"},{"$f":"IF(Table10[[#This Row],[MSC tháng 1]]=\"New Hire\", \"New Hire\", IF(Table10[[#This Row],[MSC tháng 2 ]]=Table10[[#This Row],[MSC tháng 1]],\"Match\",\"New Project or New PM\"))","v":"New Project or New PM"}]
[73,"NhiNP11","Ngô Phương Nhi","AI1 SOL TE",1,"CISD GenerativeAI","duonght13","duonght13","duonght13",{"$f":"IFERROR(VLOOKUP(Table10[[#This Row],[Account]],Table6[[#All],[Account]:[MSC PIC]],9,FALSE), \"New Hire\")","v":"duonght13"},{"$f":"IF(Table10[[#This Row],[MSC tháng 1]]=\"New Hire\", \"New Hire\", IF(Table10[[#This Row],[MSC tháng 2 ]]=Table10[[#This Row],[MSC tháng 1]],\"Match\",\"New Project or New PM\"))","v":"Match"}]
[74,"PhongTNH","Trần Ngọc Hùng Phong","AI1 SOL TE",1,"AI1.SOL.IONITY","cuongdd12","cuongdd12","cuongdd12",{"$f":"IFERROR(VLOOKUP(Table10[[#This Row],[Account]],Table6[[#All],[Account]:[MSC PIC]],9,FALSE), \"New Hire\")","v":"dungnn31"},{"$f":"IF(Table10[[#This Row],[MSC tháng 1]]=\"New Hire\", \"New Hire\", IF(Table10[[#This Row],[MSC tháng 2 ]]=Table10[[#This Row],[MSC tháng 1]],\"Match\",\"New Project or New PM\"))","v":"New Project or New PM"}]
[75,"PhuNNT3","Nguyễn Ngọc Thiên Phú","AI1 SOL TE",1,"AI1.SOL.NTT.Dsol","tienhn5","trungnd25","trungnd25",{"$f":"IFERROR(VLOOKUP(Table10[[#This Row],[Account]],Table6[[#All],[Account]:[MSC PIC]],9,FALSE), \"New Hire\")","v":"haitv23"},{"$f":"IF(Table10[[#This Row],[MSC tháng 1]]=\"New Hire\", \"New Hire\", IF(Table10[[#This Row],[MSC tháng 2 ]]=Table10[[#This Row],[MSC tháng 1]],\"Match\",\"New Project or New PM\"))","v":"New Project or New PM"}]
[76,"PhuNQ15","Nguyễn Quang Phú","AI1 SOL TE",1,"AI1.SOL.NUSKIN_Phoenix","longnt173","longnt173","longnt173",{"$f":"IFERROR(VLOOKUP(Table10[[#This Row],[Account]],Table6[[#All],[Account]:[MSC PIC]],9,FALSE), \"New Hire\")","v":"longnt173"},{"$f":"IF(Table10[[#This Row],[MSC tháng 1]]=\"New Hire\", \"New Hire\", IF(Table10[[#This Row],[MSC tháng 2 ]]=Table10[[#This Row],[MSC tháng 1]],\"Match\",\"New Project or New PM\"))","v":"Match"}]
[77,"PhuongNV44","Nguyễn Việt Phương","AI1 SOL TE",1,"EDT.PaiS","FHN Trung","langpnn2",{"$f":"IFERROR(VLOOKUP(Table10[[#This Row],[Account]],Table6[[#All],[Account]:[MSC PIC]],9,FALSE), \"New Hire\")","v":"tuannt54"},{"$f":"IFERROR(VLOOKUP(Table10[[#This Row],[Account]],Table6[[#All],[Account]:[MSC PIC]],9,FALSE), \"New Hire\")","v":"tuannt54"},{"$f":"IF(Table10[[#This Row],[MSC tháng 1]]=\"New Hire\", \"New Hire\", IF(Table10[[#This Row],[MSC tháng 2 ]]=Table10[[#This Row],[MSC tháng 1]],\"Match\",\"New Project or New PM\"))","v":"Match"}]
[78,"QuanLM51","Lê Minh Quân","AI1 SOL TE",1,"AI1.SOL.CVT_AI","tuannt54","tuannt54","tuannt54",{"$f":"IFERROR(VLOOKUP(Table10[[#This Row],[Account]],Table6[[#All],[Account]:[MSC PIC]],9,FALSE), \"New Hire\")","v":"tuannt54"},{"$f":"IF(Table10[[#This Row],[MSC tháng 1]]=\"New Hire\", \"New Hire\", IF(Table10[[#This Row],[MSC tháng 2 ]]=Table10[[#This Row],[MSC tháng 1]],\"Match\",\"New Project or New PM\"))","v":"Match"}]
[79,"QuyenH","Hoàng Quyền","AI1 SOL TE",1,"AI1.SOL.CVT_AI","tuannt54","tuannt54","tuannt54",{"$f":"IFERROR(VLOOKUP(Table10[[#This Row],[Account]],Table6[[#All],[Account]:[MSC PIC]],9,FALSE), \"New Hire\")","v":"tuannt54"},{"$f":"IF(Table10[[#This Row],[MSC tháng 1]]=\"New Hire\", \"New Hire\", IF(Table10[[#This Row],[MSC tháng 2 ]]=Table10[[#This Row],[MSC tháng 1]],\"Match\",\"New Project or New PM\"))","v":"Match"}]
[80,"SonHT35","Hoàng Thái Sơn","AI1 SOL TE",0,"",null,null,"TrungND25",{"$f":"IFERROR(VLOOKUP(Table10[[#This Row],[Account]],Table6[[#All],[Account]:[MSC PIC]],9,FALSE), \"New Hire\")","v":"trungnd25"},{"$f":"IF(Table10[[#This Row],[MSC tháng 1]]=\"New Hire\", \"New Hire\", IF(Table10[[#This Row],[MSC tháng 2 ]]=Table10[[#This Row],[MSC tháng 1]],\"Match\",\"New Project or New PM\"))","v":"Match"}]
[81,"TamNT17","Nguyễn Thanh Tâm","AI1 SOL TE",0,"",null,null,"LanNTQ2",{"$f":"IFERROR(VLOOKUP(Table10[[#This Row],[Account]],Table6[[#All],[Account]:[MSC PIC]],9,FALSE), \"New Hire\")","v":"LanNTQ2"},{"$f":"IF(Table10[[#This Row],[MSC tháng 1]]=\"New Hire\", \"New Hire\", IF(Table10[[#This Row],[MSC tháng 2 ]]=Table10[[#This Row],[MSC tháng 1]],\"Match\",\"New Project or New PM\"))","v":"Match"}]
[82,"TanND22","Nguyễn Duy Tân","AI1 SOL TE",1,"CISD GenerativeAI","duonght13","duonght13","duonght13",{"$f":"IFERROR(VLOOKUP(Table10[[#This Row],[Account]],Table6[[#All],[Account]:[MSC PIC]],9,FALSE), \"New Hire\")","v":"duonght13"},{"$f":"IF(Table10[[#This Row],[MSC tháng 1]]=\"New Hire\", \"New Hire\", IF(Table10[[#This Row],[MSC tháng 2 ]]=Table10[[#This Row],[MSC tháng 1]],\"Match\",\"New Project or New PM\"))","v":"Match"}]
[83,"TanNH19","Nguyễn Hoàng Tân","AI1 SOL TE",0,"",null,null,"VietTH18",{"$f":"IFERROR(VLOOKUP(Table10[[#This Row],[Account]],Table6[[#All],[Account]:[MSC PIC]],9,FALSE), \"New Hire\")","v":"New Hire"},{"$f":"IF(Table10[[#This Row],[MSC tháng 1]]=\"New Hire\", \"New Hire\", IF(Table10[[#This Row],[MSC tháng 2 ]]=Table10[[#This Row],[MSC tháng 1]],\"Match\",\"New Project or New PM\"))","v":"New Hire"}]
[84,"TanNP3","Nguyễn Phúc Tân","AI1 SOL TE",1,"EDT.PaiS","FHN Trung","langpnn2","tuannt54",{"$f":"IFERROR(VLOOKUP(Table10[[#This Row],[Account]],Table6[[#All],[Account]:[MSC PIC]],9,FALSE), \"New Hire\")","v":"thopt1"},{"$f":"IF(Table10[[#This Row],[MSC tháng 1]]=\"New Hire\", \"New Hire\", IF(Table10[[#This Row],[MSC tháng 2 ]]=Table10[[#This Row],[MSC tháng 1]],\"Match\",\"New Project or New PM\"))","v":"New Project or New PM"}]
[85,"ThaiNT13","Nguyễn Tiến Thái","AI1 SOL TE",1,"AI1.SOL.CosmosFT","trungnd25","trungnd25","trungnd25",{"$f":"IFERROR(VLOOKUP(Table10[[#This Row],[Account]],Table6[[#All],[Account]:[MSC PIC]],9,FALSE), \"New Hire\")","v":"trungnd25"},{"$f":"IF(Table10[[#This Row],[MSC tháng 1]]=\"New Hire\", \"New Hire\", IF(Table10[[#This Row],[MSC tháng 2 ]]=Table10[[#This Row],[MSC tháng 1]],\"Match\",\"New Project or New PM\"))","v":"Match"}]
[86,"ThangDV47","Dương Văn Thắng","AI1 SOL TE",1,"AI1.SOL Multicustomer 2026","trangntm13","trangntm13","nganmtk2",{"$f":"IFERROR(VLOOKUP(Table10[[#This Row],[Account]],Table6[[#All],[Account]:[MSC PIC]],9,FALSE), \"New Hire\")","v":"duonght13"},{"$f":"IF(Table10[[#This Row],[MSC tháng 1]]=\"New Hire\", \"New Hire\", IF(Table10[[#This Row],[MSC tháng 2 ]]=Table10[[#This Row],[MSC tháng 1]],\"Match\",\"New Project or New PM\"))","v":"New Project or New PM"}]
[87,"ThangTV45","Trịnh Văn Thắng","AI1 SOL TE",1,"AI1.SOL.NESAgenticAI","hoanglh19","trungnd25","nghiaht5",{"$f":"IFERROR(VLOOKUP(Table10[[#This Row],[Account]],Table6[[#All],[Account]:[MSC PIC]],9,FALSE), \"New Hire\")","v":"nghiaht5"},{"$f":"IF(Table10[[#This Row],[MSC tháng 1]]=\"New Hire\", \"New Hire\", IF(Table10[[#This Row],[MSC tháng 2 ]]=Table10[[#This Row],[MSC tháng 1]],\"Match\",\"New Project or New PM\"))","v":"Match"}]
[88,"ThanhNV154","Nguyễn Văn Thành","AI1 SOL TE",1,"AI1.SOL.CCTV","trungnd25","trungnd25","trungnd25",{"$f":"IFERROR(VLOOKUP(Table10[[#This Row],[Account]],Table6[[#All],[Account]:[MSC PIC]],9,FALSE), \"New Hire\")","v":"TrungND25"},{"$f":"IF(Table10[[#This Row],[MSC tháng 1]]=\"New Hire\", \"New Hire\", IF(Table10[[#This Row],[MSC tháng 2 ]]=Table10[[#This Row],[MSC tháng 1]],\"Match\",\"New Project or New PM\"))","v":"Match"}]
[89,"ThePD2","Phạm Đình Thế","AI1 SOL TE",2,"AI1.SOL Multicustomer 2026","trangntm13","trangntm13","vivv2","vivv2",{"$f":"IF(Table10[[#This Row],[MSC tháng 1]]=\"New Hire\", \"New Hire\", IF(Table10[[#This Row],[MSC tháng 2 ]]=Table10[[#This Row],[MSC tháng 1]],\"Match\",\"New Project or New PM\"))","v":"Match"}]
[90,"ThoLD10","Lê Đức Thọ","AI1 SOL TE",1,"AI1.SOL.NESAgenticAI","hoanglh19","trungnd25","nghiaht5",{"$f":"IFERROR(VLOOKUP(Table10[[#This Row],[Account]],Table6[[#All],[Account]:[MSC PIC]],9,FALSE), \"New Hire\")","v":"nghiaht5"},{"$f":"IF(Table10[[#This Row],[MSC tháng 1]]=\"New Hire\", \"New Hire\", IF(Table10[[#This Row],[MSC tháng 2 ]]=Table10[[#This Row],[MSC tháng 1]],\"Match\",\"New Project or New PM\"))","v":"Match"}]
[91,"ThongCT2","Chu Tuấn Thông","AI1 SOL TE",1,"AI1.SOL Multicustomer 2026","trangntm13","trangntm13","trungdvq",{"$f":"IFERROR(VLOOKUP(Table10[[#This Row],[Account]],Table6[[#All],[Account]:[MSC PIC]],9,FALSE), \"New Hire\")","v":"trungdvq"},{"$f":"IF(Table10[[#This Row],[MSC tháng 1]]=\"New Hire\", \"New Hire\", IF(Table10[[#This Row],[MSC tháng 2 ]]=Table10[[#This Row],[MSC tháng 1]],\"Match\",\"New Project or New PM\"))","v":"Match"}]
[92,"ThoPT1","Phạm Thị Tho","AI1 SOL TE",1,"AI1.SOL.AI Risk Review LLM","thopt1","thopt1","thopt1",{"$f":"IFERROR(VLOOKUP(Table10[[#This Row],[Account]],Table6[[#All],[Account]:[MSC PIC]],9,FALSE), \"New Hire\")","v":"TamNT17"},{"$f":"IF(Table10[[#This Row],[MSC tháng 1]]=\"New Hire\", \"New Hire\", IF(Table10[[#This Row],[MSC tháng 2 ]]=Table10[[#This Row],[MSC tháng 1]],\"Match\",\"New Project or New PM\"))","v":"New Project or New PM"}]
[93,"ThuanDV17","Đỗ Văn Thuận","AI1 SOL TE",1,"AI1.SOL.NEC","duonght13","duonght13","duonght13",{"$f":"IFERROR(VLOOKUP(Table10[[#This Row],[Account]],Table6[[#All],[Account]:[MSC PIC]],9,FALSE), \"New Hire\")","v":"duonght13"},{"$f":"IF(Table10[[#This Row],[MSC tháng 1]]=\"New Hire\", \"New Hire\", IF(Table10[[#This Row],[MSC tháng 2 ]]=Table10[[#This Row],[MSC tháng 1]],\"Match\",\"New Project or New PM\"))","v":"Match"}]
[94,"ThucLTT1","Lê Trần Trí Thức","AI1 SOL TE",1,"ASY_AILAB","trangntm13","trangntm13","trangntm13",{"$f":"IFERROR(VLOOKUP(Table10[[#This Row],[Account]],Table6[[#All],[Account]:[MSC PIC]],9,FALSE), \"New Hire\")","v":"trangntm13"},{"$f":"IF(Table10[[#This Row],[MSC tháng 1]]=\"New Hire\", \"New Hire\", IF(Table10[[#This Row],[MSC tháng 2 ]]=Table10[[#This Row],[MSC tháng 1]],\"Match\",\"New Project or New PM\"))","v":"Match"}]
[95,"TienLPT1","Lê Phạm Thủy Tiên","AI1 SOL TE",1,"AI1.SOL.NESAgenticAI","hoanglh19","trungnd25","nghiaht5",{"$f":"IFERROR(VLOOKUP(Table10[[#This Row],[Account]],Table6[[#All],[Account]:[MSC PIC]],9,FALSE), \"New Hire\")","v":"nghiaht5"},{"$f":"IF(Table10[[#This Row],[MSC tháng 1]]=\"New Hire\", \"New Hire\", IF(Table10[[#This Row],[MSC tháng 2 ]]=Table10[[#This Row],[MSC tháng 1]],\"Match\",\"New Project or New PM\"))","v":"Match"}]
[96,"TienTT8","Trương Trọng Tiến","AI1 SOL TE",1,"AIFarm","trungdvq","trungdvq","trungdvq",{"$f":"IFERROR(VLOOKUP(Table10[[#This Row],[Account]],Table6[[#All],[Account]:[MSC PIC]],9,FALSE), \"New Hire\")","v":"trungdvq"},{"$f":"IF(Table10[[#This Row],[MSC tháng 1]]=\"New Hire\", \"New Hire\", IF(Table10[[#This Row],[MSC tháng 2 ]]=Table10[[#This Row],[MSC tháng 1]],\"Match\",\"New Project or New PM\"))","v":"Match"}]
[97,"TienVT4","Vũ Thanh Tiến","AI1 SOL TE",2,"AIC.SOL.E2E AI","tienvt4","tienvt4","TamNT17",{"$f":"IFERROR(VLOOKUP(Table10[[#This Row],[Account]],Table6[[#All],[Account]:[MSC PIC]],9,FALSE), \"New Hire\")","v":"TamNT17"},{"$f":"IF(Table10[[#This Row],[MSC tháng 1]]=\"New Hire\", \"New Hire\", IF(Table10[[#This Row],[MSC tháng 2 ]]=Table10[[#This Row],[MSC tháng 1]],\"Match\",\"New Project or New PM\"))","v":"Match"}]
[98,"ToanTV26","Tạ Văn Toàn","AI1 SOL TE",1,"AI1.SOL.NESAgenticAI","hoanglh19","trungnd25","nghiaht5",{"$f":"IFERROR(VLOOKUP(Table10[[#This Row],[Account]],Table6[[#All],[Account]:[MSC PIC]],9,FALSE), \"New Hire\")","v":"nghiaht5"},{"$f":"IF(Table10[[#This Row],[MSC tháng 1]]=\"New Hire\", \"New Hire\", IF(Table10[[#This Row],[MSC tháng 2 ]]=Table10[[#This Row],[MSC tháng 1]],\"Match\",\"New Project or New PM\"))","v":"Match"}]
[99,"TrangNDP3","Nguyễn Đài Phương Trang","AI1 SOL TE",1,"AI1.SOL.TMC_PinholeDetection","nguyenndd1","nguyenndd1","nguyenndd1",{"$f":"IFERROR(VLOOKUP(Table10[[#This Row],[Account]],Table6[[#All],[Account]:[MSC PIC]],9,FALSE), \"New Hire\")","v":"trungnd25"},{"$f":"IF(Table10[[#This Row],[MSC tháng 1]]=\"New Hire\", \"New Hire\", IF(Table10[[#This Row],[MSC tháng 2 ]]=Table10[[#This Row],[MSC tháng 1]],\"Match\",\"New Project or New PM\"))","v":"New Project or New PM"}]
[100,"TrangNTM13","Nguyễn Thị Mai Trang","AI1 SOL TE",5,"AI1.SOL.RMV_Lens","trangntm13","trangntm13","TamNT17",{"$f":"IFERROR(VLOOKUP(Table10[[#This Row],[Account]],Table6[[#All],[Account]:[MSC PIC]],9,FALSE), \"New Hire\")","v":"TamNT17"},{"$f":"IF(Table10[[#This Row],[MSC tháng 1]]=\"New Hire\", \"New Hire\", IF(Table10[[#This Row],[MSC tháng 2 ]]=Table10[[#This Row],[MSC tháng 1]],\"Match\",\"New Project or New PM\"))","v":"Match"}]
[101,"TrinhPTN","Phan Thị Ngọc Trinh","AI1 SOL TE",2,"AI Insight Engine","langpnn2","langpnn2","langpnn2",{"$f":"IFERROR(VLOOKUP(Table10[[#This Row],[Account]],Table6[[#All],[Account]:[MSC PIC]],9,FALSE), \"New Hire\")","v":"langpnn2"},{"$f":"IF(Table10[[#This Row],[MSC tháng 1]]=\"New Hire\", \"New Hire\", IF(Table10[[#This Row],[MSC tháng 2 ]]=Table10[[#This Row],[MSC tháng 1]],\"Match\",\"New Project or New PM\"))","v":"Match"}]
[102,"TrinhTTB1","Trần Tô Băng Trinh","AI1 SOL TE",1,"AIFarm","trungdvq","trungdvq","trungdvq",{"$f":"IFERROR(VLOOKUP(Table10[[#This Row],[Account]],Table6[[#All],[Account]:[MSC PIC]],9,FALSE), \"New Hire\")","v":"trungdvq"},{"$f":"IF(Table10[[#This Row],[MSC tháng 1]]=\"New Hire\", \"New Hire\", IF(Table10[[#This Row],[MSC tháng 2 ]]=Table10[[#This Row],[MSC tháng 1]],\"Match\",\"New Project or New PM\"))","v":"Match"}]
[103,"TrungDVQ","Đinh Vũ Quốc Trung","AI1 SOL TE",5,"UVNAPS","trungdvq","trungdvq","TamNT17",{"$f":"IFERROR(VLOOKUP(Table10[[#This Row],[Account]],Table6[[#All],[Account]:[MSC PIC]],9,FALSE), \"New Hire\")","v":"TamNT17"},{"$f":"IF(Table10[[#This Row],[MSC tháng 1]]=\"New Hire\", \"New Hire\", IF(Table10[[#This Row],[MSC tháng 2 ]]=Table10[[#This Row],[MSC tháng 1]],\"Match\",\"New Project or New PM\"))","v":"Match"}]
[104,"TrungHD8","Hoàng Duy Trung","AI1 SOL TE",3,"Toppan Jokomi","trungnd25","trungnd25","langpnn2",{"$f":"IFERROR(VLOOKUP(Table10[[#This Row],[Account]],Table6[[#All],[Account]:[MSC PIC]],9,FALSE), \"New Hire\")","v":"langpnn2"},{"$f":"IF(Table10[[#This Row],[MSC tháng 1]]=\"New Hire\", \"New Hire\", IF(Table10[[#This Row],[MSC tháng 2 ]]=Table10[[#This Row],[MSC tháng 1]],\"Match\",\"New Project or New PM\"))","v":"Match"}]
[105,"TrungHQ14","Hoàng Quốc Trung","AI1 SOL TE",1,"AI1.SOL.NEC","duonght13","duonght13","duonght13",{"$f":"IFERROR(VLOOKUP(Table10[[#This Row],[Account]],Table6[[#All],[Account]:[MSC PIC]],9,FALSE), \"New Hire\")","v":"duonght13"},{"$f":"IF(Table10[[#This Row],[MSC tháng 1]]=\"New Hire\", \"New Hire\", IF(Table10[[#This Row],[MSC tháng 2 ]]=Table10[[#This Row],[MSC tháng 1]],\"Match\",\"New Project or New PM\"))","v":"Match"}]
[106,"TrungLH12","Lê Hoàng Trung","AI1 SOL TE",1,"AI1.SOL.CosmosFT","trungnd25","trungnd25","trungnd25",{"$f":"IFERROR(VLOOKUP(Table10[[#This Row],[Account]],Table6[[#All],[Account]:[MSC PIC]],9,FALSE), \"New Hire\")","v":"trungnd25"},{"$f":"IF(Table10[[#This Row],[MSC tháng 1]]=\"New Hire\", \"New Hire\", IF(Table10[[#This Row],[MSC tháng 2 ]]=Table10[[#This Row],[MSC tháng 1]],\"Match\",\"New Project or New PM\"))","v":"Match"}]
[107,"TrungND25","Nguyễn Đình Trung","AI1 SOL TE",3,"",null,null,"TamNT17",{"$f":"IFERROR(VLOOKUP(Table10[[#This Row],[Account]],Table6[[#All],[Account]:[MSC PIC]],9,FALSE), \"New Hire\")","v":"TamNT17"},{"$f":"IF(Table10[[#This Row],[MSC tháng 1]]=\"New Hire\", \"New Hire\", IF(Table10[[#This Row],[MSC tháng 2 ]]=Table10[[#This Row],[MSC tháng 1]],\"Match\",\"New Project or New PM\"))","v":"Match"}]
[108,"TrungNT108","Nguyễn Thành Trung","AI1 SOL TE",1,"AI1.SOL.CVT_AI","tuannt54","tuannt54","tuannt54",{"$f":"IFERROR(VLOOKUP(Table10[[#This Row],[Account]],Table6[[#All],[Account]:[MSC PIC]],9,FALSE), \"New Hire\")","v":"tuannt54"},{"$f":"IF(Table10[[#This Row],[MSC tháng 1]]=\"New Hire\", \"New Hire\", IF(Table10[[#This Row],[MSC tháng 2 ]]=Table10[[#This Row],[MSC tháng 1]],\"Match\",\"New Project or New PM\"))","v":"Match"}]
[109,"TuanBA22","Bùi Anh Tuấn","AI1 SOL TE",1,"AI1.SOL.AMP","trangntm13","trangntm13","trangntm13",{"$f":"IFERROR(VLOOKUP(Table10[[#This Row],[Account]],Table6[[#All],[Account]:[MSC PIC]],9,FALSE), \"New Hire\")","v":"trangntm13"},{"$f":"IF(Table10[[#This Row],[MSC tháng 1]]=\"New Hire\", \"New Hire\", IF(Table10[[#This Row],[MSC tháng 2 ]]=Table10[[#This Row],[MSC tháng 1]],\"Match\",\"New Project or New PM\"))","v":"Match"}]
[110,"TuanDV54","Đỗ Văn Tuấn","AI1 SOL TE",1,"CISD GenerativeAI","duonght13","duonght13","duonght13",{"$f":"IFERROR(VLOOKUP(Table10[[#This Row],[Account]],Table6[[#All],[Account]:[MSC PIC]],9,FALSE), \"New Hire\")","v":"duonght13"},{"$f":"IF(Table10[[#This Row],[MSC tháng 1]]=\"New Hire\", \"New Hire\", IF(Table10[[#This Row],[MSC tháng 2 ]]=Table10[[#This Row],[MSC tháng 1]],\"Match\",\"New Project or New PM\"))","v":"Match"}]
[111,"TuanNS1","Nguyễn Sĩ Tuấn","AI1 SOL TE",1,"CISD GenerativeAI","duonght13","duonght13","duonght13",{"$f":"IFERROR(VLOOKUP(Table10[[#This Row],[Account]],Table6[[#All],[Account]:[MSC PIC]],9,FALSE), \"New Hire\")","v":"duonght13"},{"$f":"IF(Table10[[#This Row],[MSC tháng 1]]=\"New Hire\", \"New Hire\", IF(Table10[[#This Row],[MSC tháng 2 ]]=Table10[[#This Row],[MSC tháng 1]],\"Match\",\"New Project or New PM\"))","v":"Match"}]
[112,"TuMN2","Mai Ngọc Tú","AI1 SOL TE",1,"AI1.SOL.NUSKIN_Phoenix","longnt173","longnt173","longnt173",{"$f":"IFERROR(VLOOKUP(Table10[[#This Row],[Account]],Table6[[#All],[Account]:[MSC PIC]],9,FALSE), \"New Hire\")","v":"longnt173"},{"$f":"IF(Table10[[#This Row],[MSC tháng 1]]=\"New Hire\", \"New Hire\", IF(Table10[[#This Row],[MSC tháng 2 ]]=Table10[[#This Row],[MSC tháng 1]],\"Match\",\"New Project or New PM\"))","v":"Match"}]
[113,"TungHT41","Hồ Thanh Tùng","AI1 SOL TE",1,"AI1.SOL.SB_Security","tungndt4","trungnd25","trungnd25",{"$f":"IFERROR(VLOOKUP(Table10[[#This Row],[Account]],Table6[[#All],[Account]:[MSC PIC]],9,FALSE), \"New Hire\")","v":"trungnd25"},{"$f":"IF(Table10[[#This Row],[MSC tháng 1]]=\"New Hire\", \"New Hire\", IF(Table10[[#This Row],[MSC tháng 2 ]]=Table10[[#This Row],[MSC tháng 1]],\"Match\",\"New Project or New PM\"))","v":"Match"}]
[114,"TungNS35","Nguyễn Sơn Tùng","AI1 SOL TE",1,"CISD GenerativeAI","duonght13","duonght13","duonght13",{"$f":"IFERROR(VLOOKUP(Table10[[#This Row],[Account]],Table6[[#All],[Account]:[MSC PIC]],9,FALSE), \"New Hire\")","v":"duonght13"},{"$f":"IF(Table10[[#This Row],[MSC tháng 1]]=\"New Hire\", \"New Hire\", IF(Table10[[#This Row],[MSC tháng 2 ]]=Table10[[#This Row],[MSC tháng 1]],\"Match\",\"New Project or New PM\"))","v":"Match"}]
[115,"TungNS41","Nguyễn Sơn Tùng","AI1 SOL TE",0,"",null,null,"tuannt54",{"$f":"IFERROR(VLOOKUP(Table10[[#This Row],[Account]],Table6[[#All],[Account]:[MSC PIC]],9,FALSE), \"New Hire\")","v":"thopt1"},{"$f":"IF(Table10[[#This Row],[MSC tháng 1]]=\"New Hire\", \"New Hire\", IF(Table10[[#This Row],[MSC tháng 2 ]]=Table10[[#This Row],[MSC tháng 1]],\"Match\",\"New Project or New PM\"))","v":"New Project or New PM"}]
[116,"TuPA7","Phan Anh Tú","AI1 SOL TE",1,"AI1.SOL.NESAgenticAI","hoanglh19","trungnd25","nghiaht5",{"$f":"IFERROR(VLOOKUP(Table10[[#This Row],[Account]],Table6[[#All],[Account]:[MSC PIC]],9,FALSE), \"New Hire\")","v":"nghiaht5"},{"$f":"IF(Table10[[#This Row],[MSC tháng 1]]=\"New Hire\", \"New Hire\", IF(Table10[[#This Row],[MSC tháng 2 ]]=Table10[[#This Row],[MSC tháng 1]],\"Match\",\"New Project or New PM\"))","v":"Match"}]
[117,"VanNT8","Nguyễn Thị Vân","AI1 SOL TE",2,"AI1.SOL.TE.SCG_Chemical","trungdvq","trungdvq","trungdvq",{"$f":"IFERROR(VLOOKUP(Table10[[#This Row],[Account]],Table6[[#All],[Account]:[MSC PIC]],9,FALSE), \"New Hire\")","v":"DuongHT13"},{"$f":"IF(Table10[[#This Row],[MSC tháng 1]]=\"New Hire\", \"New Hire\", IF(Table10[[#This Row],[MSC tháng 2 ]]=Table10[[#This Row],[MSC tháng 1]],\"Match\",\"New Project or New PM\"))","v":"New Project or New PM"}]
[118,"VietLD4","Lê Đức Việt","AI1 SOL TE",0,"",null,null,"vietth18",{"$f":"IFERROR(VLOOKUP(Table10[[#This Row],[Account]],Table6[[#All],[Account]:[MSC PIC]],9,FALSE), \"New Hire\")","v":"New Hire"},{"$f":"IF(Table10[[#This Row],[MSC tháng 1]]=\"New Hire\", \"New Hire\", IF(Table10[[#This Row],[MSC tháng 2 ]]=Table10[[#This Row],[MSC tháng 1]],\"Match\",\"New Project or New PM\"))","v":"New Hire"}]
[119,"VietPH6","Phạm Hữu Việt","AI1 SOL TE",1,"AI1.SOL.EDWARDS_Translation","langpnn2","langpnn2","langpnn2",{"$f":"IFERROR(VLOOKUP(Table10[[#This Row],[Account]],Table6[[#All],[Account]:[MSC PIC]],9,FALSE), \"New Hire\")","v":"langpnn2"},{"$f":"IF(Table10[[#This Row],[MSC tháng 1]]=\"New Hire\", \"New Hire\", IF(Table10[[#This Row],[MSC tháng 2 ]]=Table10[[#This Row],[MSC tháng 1]],\"Match\",\"New Project or New PM\"))","v":"Match"}]
[120,"VietTH18","Tạ Hoàng Việt","AI1 SOL TE",2,"Toppan Jokomi","trungnd25","trungnd25","duonght13",{"$f":"IFERROR(VLOOKUP(Table10[[#This Row],[Account]],Table6[[#All],[Account]:[MSC PIC]],9,FALSE), \"New Hire\")","v":"duonght13"},{"$f":"IF(Table10[[#This Row],[MSC tháng 1]]=\"New Hire\", \"New Hire\", IF(Table10[[#This Row],[MSC tháng 2 ]]=Table10[[#This Row],[MSC tháng 1]],\"Match\",\"New Project or New PM\"))","v":"Match"}]
[121,"VietTH18","Tạ Hoàng Việt","AI1 SOL TE",2,"Toppan Jokomi","duonght13","duonght13","duonght13",{"$f":"IFERROR(VLOOKUP(Table10[[#This Row],[Account]],Table6[[#All],[Account]:[MSC PIC]],9,FALSE), \"New Hire\")","v":"duonght13"},{"$f":"IF(Table10[[#This Row],[MSC tháng 1]]=\"New Hire\", \"New Hire\", IF(Table10[[#This Row],[MSC tháng 2 ]]=Table10[[#This Row],[MSC tháng 1]],\"Match\",\"New Project or New PM\"))","v":"Match"}]
[122,"VietTQ57","Trần Quốc Việt","AI1 SOL TE",1,"SFL2025","Not AI1","trangntm13","binhpc",{"$f":"IFERROR(VLOOKUP(Table10[[#This Row],[Account]],Table6[[#All],[Account]:[MSC PIC]],9,FALSE), \"New Hire\")","v":"trungnd25"},{"$f":"IF(Table10[[#This Row],[MSC tháng 1]]=\"New Hire\", \"New Hire\", IF(Table10[[#This Row],[MSC tháng 2 ]]=Table10[[#This Row],[MSC tháng 1]],\"Match\",\"New Project or New PM\"))","v":"New Project or New PM"}]
[123,"VinhDQ15","Đỗ Quang Vinh","AI1 SOL TE",1,"AI1.SOL.CVT_AI","tuannt54","tuannt54","tuannt54",{"$f":"IFERROR(VLOOKUP(Table10[[#This Row],[Account]],Table6[[#All],[Account]:[MSC PIC]],9,FALSE), \"New Hire\")","v":"tuannt54"},{"$f":"IF(Table10[[#This Row],[MSC tháng 1]]=\"New Hire\", \"New Hire\", IF(Table10[[#This Row],[MSC tháng 2 ]]=Table10[[#This Row],[MSC tháng 1]],\"Match\",\"New Project or New PM\"))","v":"Match"}]
[124,"ViP1","Phạm Vĩ","AI1 SOL TE",1,"AI1.SOL.TE.SCG_Chemical","trungdvq","trungdvq","trungdvq",{"$f":"IFERROR(VLOOKUP(Table10[[#This Row],[Account]],Table6[[#All],[Account]:[MSC PIC]],9,FALSE), \"New Hire\")","v":"trungdvq"},{"$f":"IF(Table10[[#This Row],[MSC tháng 1]]=\"New Hire\", \"New Hire\", IF(Table10[[#This Row],[MSC tháng 2 ]]=Table10[[#This Row],[MSC tháng 1]],\"Match\",\"New Project or New PM\"))","v":"Match"}]
[125,"ViVV2","Vũ Vương Vĩ","AI1 SOL TE",1,"AI1.SOL Multicustomer 2026","trangntm13","trangntm13","phongnx1","phongnx1",{"$f":"IF(Table10[[#This Row],[MSC tháng 1]]=\"New Hire\", \"New Hire\", IF(Table10[[#This Row],[MSC tháng 2 ]]=Table10[[#This Row],[MSC tháng 1]],\"Match\",\"New Project or New PM\"))","v":"Match"}]
[126,"VuNDA6","Nguyễn Đăng Anh Vũ","AI1 SOL TE",1,"AI1.SOL.CCTV","trungnd25","trungnd25","trungnd25",{"$f":"IFERROR(VLOOKUP(Table10[[#This Row],[Account]],Table6[[#All],[Account]:[MSC PIC]],9,FALSE), \"New Hire\")","v":"TrungND25"},{"$f":"IF(Table10[[#This Row],[MSC tháng 1]]=\"New Hire\", \"New Hire\", IF(Table10[[#This Row],[MSC tháng 2 ]]=Table10[[#This Row],[MSC tháng 1]],\"Match\",\"New Project or New PM\"))","v":"Match"}]
[127,"VuNQ7","Nguyễn Quang Vũ","AI1 SOL TE",1,"AIC.SOL.MDDI","langpnn2","langpnn2","TamNT17",{"$f":"IFERROR(VLOOKUP(Table10[[#This Row],[Account]],Table6[[#All],[Account]:[MSC PIC]],9,FALSE), \"New Hire\")","v":"TamNT17"},{"$f":"IF(Table10[[#This Row],[MSC tháng 1]]=\"New Hire\", \"New Hire\", IF(Table10[[#This Row],[MSC tháng 2 ]]=Table10[[#This Row],[MSC tháng 1]],\"Match\",\"New Project or New PM\"))","v":"Match"}]
[128,"VyNK14","Nguyễn Khắc Vỹ","AI1 SOL TE",1,"AI1.SOL.RMV_Lens","trangntm13","trangntm13","trangntm13",{"$f":"IFERROR(VLOOKUP(Table10[[#This Row],[Account]],Table6[[#All],[Account]:[MSC PIC]],9,FALSE), \"New Hire\")","v":"TrangNTM13"},{"$f":"IF(Table10[[#This Row],[MSC tháng 1]]=\"New Hire\", \"New Hire\", IF(Table10[[#This Row],[MSC tháng 2 ]]=Table10[[#This Row],[MSC tháng 1]],\"Match\",\"New Project or New PM\"))","v":"Match"}]

{"sheet":"RA tháng 2_LAB SC","index":7,"n_rows":24,"n_cols":10,"rows_kept":24,"cut":false,"hidden":false,"merged":[]}
["#","Account","Full Name","Site","Head","Job title","Job Rank","MSC","MSC tháng 1","Matching Status"]
[1,"AnhBT57","Bùi Tuấn Anh","HCM","HaiTV23","AI Engineer","AIEN02","DuongHT13",{"$f":"IFERROR(VLOOKUP(Table12[[#This Row],[Account]],Detail_NV__28[[#All],[Account]:[MSC PIC]],6,FALSE), \"New Hire\")","v":"DuongHT13"},{"$f":"IF(Table12[[#This Row],[MSC tháng 1]]=\"New Hire\", \"New Hire\", IF(Table12[[#This Row],[MSC tháng 1]]=Table12[[#This Row],[MSC]],\"Match\",\"New Project or New PM\"))","v":"Match"}]
[2,"C-TienNN","Nguyen Nhut Tien","USA","VanNTH19","Developer","DEVE01","KhuongND6",{"$f":"IFERROR(VLOOKUP(Table12[[#This Row],[Account]],Detail_NV__28[[#All],[Account]:[MSC PIC]],6,FALSE), \"New Hire\")","v":"VanNTH19"},{"$f":"IF(Table12[[#This Row],[MSC tháng 1]]=\"New Hire\", \"New Hire\", IF(Table12[[#This Row],[MSC tháng 1]]=Table12[[#This Row],[MSC]],\"Match\",\"New Project or New PM\"))","v":"New Project or New PM"}]
[3,"DatDT67","Đỗ Thành Đạt","HN","HaiTV23","Developer","DEVE04","DuongHT13",{"$f":"IFERROR(VLOOKUP(Table12[[#This Row],[Account]],Detail_NV__28[[#All],[Account]:[MSC PIC]],6,FALSE), \"New Hire\")","v":"DuongHT13"},{"$f":"IF(Table12[[#This Row],[MSC tháng 1]]=\"New Hire\", \"New Hire\", IF(Table12[[#This Row],[MSC tháng 1]]=Table12[[#This Row],[MSC]],\"Match\",\"New Project or New PM\"))","v":"Match"}]
[4,"HanVT2","Vũ Thị Hân","HN","NgocLTB1","Designer","UIUX03","NgocLTB1",{"$f":"IFERROR(VLOOKUP(Table12[[#This Row],[Account]],Detail_NV__28[[#All],[Account]:[MSC PIC]],6,FALSE), \"New Hire\")","v":"NgocLTB1"},{"$f":"IF(Table12[[#This Row],[MSC tháng 1]]=\"New Hire\", \"New Hire\", IF(Table12[[#This Row],[MSC tháng 1]]=Table12[[#This Row],[MSC]],\"Match\",\"New Project or New PM\"))","v":"Match"}]
[5,"HaVH12","Vũ Hải Hà","HN","HaiTV23","Developer","DEVE04","DuongHT13",{"$f":"IFERROR(VLOOKUP(Table12[[#This Row],[Account]],Detail_NV__28[[#All],[Account]:[MSC PIC]],6,FALSE), \"New Hire\")","v":"DuongHT13"},{"$f":"IF(Table12[[#This Row],[MSC tháng 1]]=\"New Hire\", \"New Hire\", IF(Table12[[#This Row],[MSC tháng 1]]=Table12[[#This Row],[MSC]],\"Match\",\"New Project or New PM\"))","v":"Match"}]
[6,"HienDT65","Đỗ Thu Hiền","HN","MaiTTQ","Executive Assistant","PSLO01","MaiTTQ",{"$f":"IFERROR(VLOOKUP(Table12[[#This Row],[Account]],Detail_NV__28[[#All],[Account]:[MSC PIC]],6,FALSE), \"New Hire\")","v":"MaiTTQ"},{"$f":"IF(Table12[[#This Row],[MSC tháng 1]]=\"New Hire\", \"New Hire\", IF(Table12[[#This Row],[MSC tháng 1]]=Table12[[#This Row],[MSC]],\"Match\",\"New Project or New PM\"))","v":"Match"}]
[7,"HieuTH7","Thân Huy Hiệu","HCM","HaiTV23","Developer","DEVE04","DuongHT13",{"$f":"IFERROR(VLOOKUP(Table12[[#This Row],[Account]],Detail_NV__28[[#All],[Account]:[MSC PIC]],6,FALSE), \"New Hire\")","v":"DuongHT13"},{"$f":"IF(Table12[[#This Row],[MSC tháng 1]]=\"New Hire\", \"New Hire\", IF(Table12[[#This Row],[MSC tháng 1]]=Table12[[#This Row],[MSC]],\"Match\",\"New Project or New PM\"))","v":"Match"}]
[8,"KhuongND6","Nguyễn Duy Khương","HCM","PhongNX1","Data Scientist","DASC05","PhongNX1",{"$f":"IFERROR(VLOOKUP(Table12[[#This Row],[Account]],Detail_NV__28[[#All],[Account]:[MSC PIC]],6,FALSE), \"New Hire\")","v":"PhongNX1"},{"$f":"IF(Table12[[#This Row],[MSC tháng 1]]=\"New Hire\", \"New Hire\", IF(Table12[[#This Row],[MSC tháng 1]]=Table12[[#This Row],[MSC]],\"Match\",\"New Project or New PM\"))","v":"Match"}]
[9,"LuongPTT","Phạm Trần Trung Lượng","HCM","HaiTV23","AI Engineer","AIEN02","DuongHT13",{"$f":"IFERROR(VLOOKUP(Table12[[#This Row],[Account]],Detail_NV__28[[#All],[Account]:[MSC PIC]],6,FALSE), \"New Hire\")","v":"DuongHT13"},{"$f":"IF(Table12[[#This Row],[MSC tháng 1]]=\"New Hire\", \"New Hire\", IF(Table12[[#This Row],[MSC tháng 1]]=Table12[[#This Row],[MSC]],\"Match\",\"New Project or New PM\"))","v":"Match"}]
[10,"MaiTTQ","Trần Thị Quỳnh Mai","HL","PhongNX1","HRBP","HRGE01","PhongNX1",{"$f":"IFERROR(VLOOKUP(Table12[[#This Row],[Account]],Detail_NV__28[[#All],[Account]:[MSC PIC]],6,FALSE), \"New Hire\")","v":"PhongNX1"},{"$f":"IF(Table12[[#This Row],[MSC tháng 1]]=\"New Hire\", \"New Hire\", IF(Table12[[#This Row],[MSC tháng 1]]=Table12[[#This Row],[MSC]],\"Match\",\"New Project or New PM\"))","v":"Match"}]
[11,"NghiBDQ","Bùi Duy Quốc Nghị","HCM","","AI Scientist","AISC02","KhuongND6",{"$f":"IFERROR(VLOOKUP(Table12[[#This Row],[Account]],Detail_NV__28[[#All],[Account]:[MSC PIC]],6,FALSE), \"New Hire\")","v":"New Hire"},{"$f":"IF(Table12[[#This Row],[MSC tháng 1]]=\"New Hire\", \"New Hire\", IF(Table12[[#This Row],[MSC tháng 1]]=Table12[[#This Row],[MSC]],\"Match\",\"New Project or New PM\"))","v":"New Hire"}]
[12,"NgocLTB1","Lê Thị Bích Ngọc","HN","HaiTV23","UI/UX Designer","DESI03",{"$f":"IFERROR(VLOOKUP(Table12[[#This Row],[Account]],Detail_NV__28[[#All],[Account]:[MSC PIC]],6,FALSE), \"New Hire\")","v":"HaiTV23"},{"$f":"IFERROR(VLOOKUP(Table12[[#This Row],[Account]],Detail_NV__28[[#All],[Account]:[MSC PIC]],6,FALSE), \"New Hire\")","v":"HaiTV23"},{"$f":"IF(Table12[[#This Row],[MSC tháng 1]]=\"New Hire\", \"New Hire\", IF(Table12[[#This Row],[MSC tháng 1]]=Table12[[#This Row],[MSC]],\"Match\",\"New Project or New PM\"))","v":"Match"}]
[13,"SinhNTA2","Nguyễn Thị Anh Sinh","HCM","NganMTK2","AI Engineer","AIEN02",{"$f":"IFERROR(VLOOKUP(Table12[[#This Row],[Account]],Detail_NV__28[[#All],[Account]:[MSC PIC]],6,FALSE), \"New Hire\")","v":"DuongHT13"},{"$f":"IFERROR(VLOOKUP(Table12[[#This Row],[Account]],Detail_NV__28[[#All],[Account]:[MSC PIC]],6,FALSE), \"New Hire\")","v":"DuongHT13"},{"$f":"IF(Table12[[#This Row],[MSC tháng 1]]=\"New Hire\", \"New Hire\", IF(Table12[[#This Row],[MSC tháng 1]]=Table12[[#This Row],[MSC]],\"Match\",\"New Project or New PM\"))","v":"Match"}]
[14,"ThucPD6","Phạm Đình Thục","HCM","NhiNP11","AI Engineer","AIEN02","DuongHT13",{"$f":"IFERROR(VLOOKUP(Table12[[#This Row],[Account]],Detail_NV__28[[#All],[Account]:[MSC PIC]],6,FALSE), \"New Hire\")","v":"DuongHT13"},{"$f":"IF(Table12[[#This Row],[MSC tháng 1]]=\"New Hire\", \"New Hire\", IF(Table12[[#This Row],[MSC tháng 1]]=Table12[[#This Row],[MSC]],\"Match\",\"New Project or New PM\"))","v":"Match"}]
[15,"TienPTA3","Phạm Trần Anh Tiên","HCM","HaiTV23","Developer","DEVE02","DuongHT13",{"$f":"IFERROR(VLOOKUP(Table12[[#This Row],[Account]],Detail_NV__28[[#All],[Account]:[MSC PIC]],6,FALSE), \"New Hire\")","v":"DuongHT13"},{"$f":"IF(Table12[[#This Row],[MSC tháng 1]]=\"New Hire\", \"New Hire\", IF(Table12[[#This Row],[MSC tháng 1]]=Table12[[#This Row],[MSC]],\"Match\",\"New Project or New PM\"))","v":"Match"}]
[16,"TrangTNQ1","Trịnh Ngọc Quỳnh Trang","HCM","PhongNX1","Marketing Officer","MKTO01","PhongNX1",{"$f":"IFERROR(VLOOKUP(Table12[[#This Row],[Account]],Detail_NV__28[[#All],[Account]:[MSC PIC]],6,FALSE), \"New Hire\")","v":"PhongNX1"},{"$f":"IF(Table12[[#This Row],[MSC tháng 1]]=\"New Hire\", \"New Hire\", IF(Table12[[#This Row],[MSC tháng 1]]=Table12[[#This Row],[MSC]],\"Match\",\"New Project or New PM\"))","v":"Match"}]
[17,"TruongHV1","Hoàng Văn Trưởng","HCM","VanNTH19","AI Scientist","AISC03","KhuongND6",{"$f":"IFERROR(VLOOKUP(Table12[[#This Row],[Account]],Detail_NV__28[[#All],[Account]:[MSC PIC]],6,FALSE), \"New Hire\")","v":"VanNTH19"},{"$f":"IF(Table12[[#This Row],[MSC tháng 1]]=\"New Hire\", \"New Hire\", IF(Table12[[#This Row],[MSC tháng 1]]=Table12[[#This Row],[MSC]],\"Match\",\"New Project or New PM\"))","v":"New Project or New PM"}]
[18,"TruongPX16","Phạm Xuân Trường","HN","TrungDVQ","AI Engineer","AIEN02","TrungDVQ",{"$f":"IFERROR(VLOOKUP(Table12[[#This Row],[Account]],Detail_NV__28[[#All],[Account]:[MSC PIC]],6,FALSE), \"New Hire\")","v":"TrungDVQ"},{"$f":"IF(Table12[[#This Row],[MSC tháng 1]]=\"New Hire\", \"New Hire\", IF(Table12[[#This Row],[MSC tháng 1]]=Table12[[#This Row],[MSC]],\"Match\",\"New Project or New PM\"))","v":"Match"}]
[19,"TuanTNA1","Trần Nguyễn Anh Tuấn","HCM","KhuongND6","AI Scientist","AISC02","KhuongND6",{"$f":"IFERROR(VLOOKUP(Table12[[#This Row],[Account]],Detail_NV__28[[#All],[Account]:[MSC PIC]],6,FALSE), \"New Hire\")","v":"New Hire"},{"$f":"IF(Table12[[#This Row],[MSC tháng 1]]=\"New Hire\", \"New Hire\", IF(Table12[[#This Row],[MSC tháng 1]]=Table12[[#This Row],[MSC]],\"Match\",\"New Project or New PM\"))","v":"New Hire"}]
[20,"TuNT82","Nguyễn Trọng Tú","HN","PhongNX1","Solution Architect","SARE03","PhongNX1",{"$f":"IFERROR(VLOOKUP(Table12[[#This Row],[Account]],Detail_NV__28[[#All],[Account]:[MSC PIC]],6,FALSE), \"New Hire\")","v":"PhongNX1"},{"$f":"IF(Table12[[#This Row],[MSC tháng 1]]=\"New Hire\", \"New Hire\", IF(Table12[[#This Row],[MSC tháng 1]]=Table12[[#This Row],[MSC]],\"Match\",\"New Project or New PM\"))","v":"Match"}]
[21,"TuTC6","Trịnh Cẩm Tú","HN","PhongNX1","Marketing Officer","MKTO01","PhongNX1",{"$f":"IFERROR(VLOOKUP(Table12[[#This Row],[Account]],Detail_NV__28[[#All],[Account]:[MSC PIC]],6,FALSE), \"New Hire\")","v":"PhongNX1"},{"$f":"IF(Table12[[#This Row],[MSC tháng 1]]=\"New Hire\", \"New Hire\", IF(Table12[[#This Row],[MSC tháng 1]]=Table12[[#This Row],[MSC]],\"Match\",\"New Project or New PM\"))","v":"Match"}]
[22,"VanNTH19","Nguyễn Thị Hồng Vân","HCM","PhongNX1","AI Scientist","AISC05","PhongNX1",{"$f":"IFERROR(VLOOKUP(Table12[[#This Row],[Account]],Detail_NV__28[[#All],[Account]:[MSC PIC]],6,FALSE), \"New Hire\")","v":"PhongNX1"},{"$f":"IF(Table12[[#This Row],[MSC tháng 1]]=\"New Hire\", \"New Hire\", IF(Table12[[#This Row],[MSC tháng 1]]=Table12[[#This Row],[MSC]],\"Match\",\"New Project or New PM\"))","v":"Match"}]
[23,"YenDTM3","Đặng Thục Minh Yến","HN","MaiTTQ","Marketing Officer","MKTO01","MaiTTQ",{"$f":"IFERROR(VLOOKUP(Table12[[#This Row],[Account]],Detail_NV__28[[#All],[Account]:[MSC PIC]],6,FALSE), \"New Hire\")","v":"MaiTTQ"},{"$f":"IF(Table12[[#This Row],[MSC tháng 1]]=\"New Hire\", \"New Hire\", IF(Table12[[#This Row],[MSC tháng 1]]=Table12[[#This Row],[MSC]],\"Match\",\"New Project or New PM\"))","v":"Match"}]

{"sheet":"RA tháng 2_AI4SE","index":8,"n_rows":29,"n_cols":12,"rows_kept":29,"cut":false,"hidden":false,"merged":[]}
["#","Account","Full Name","Special Status","Site","Head","Job title","Job Rank","Department","MSC ","MSC tháng 1","Matching Status"]
[1,"AnhPD23","Phạm Duy Anh","Active","HN","ThienN","AI Engineer","AIEN02","AI1 AI4SE","BinhPC",{"$f":"IFERROR(VLOOKUP(Table13[[#This Row],[Account]],Detail_NV__39[[Account]:[MSC PIC]],6,FALSE), \"New Hire\")","v":"ThienN"},{"$f":"IF(Table13[[#This Row],[MSC tháng 1]]=\"New Hire\", \"New Hire\", IF(Table13[[#This Row],[MSC ]]=Table13[[#This Row],[MSC tháng 1]],\"Match\",\"New Project or New PM\"))","v":"New Project or New PM"}]
[2,"CongNM8","Nguyễn Minh Công","Active","HL","NguyetNTA8","Developer","DEVE02","AI1 AI4SE",{"$f":"Table13[[#This Row],[MSC tháng 1]]","v":"NguyetNTA8"},{"$f":"IFERROR(VLOOKUP(Table13[[#This Row],[Account]],Detail_NV__39[[Account]:[MSC PIC]],6,FALSE), \"New Hire\")","v":"NguyetNTA8"},{"$f":"IF(Table13[[#This Row],[MSC tháng 1]]=\"New Hire\", \"New Hire\", IF(Table13[[#This Row],[MSC ]]=Table13[[#This Row],[MSC tháng 1]],\"Match\",\"New Project or New PM\"))","v":"Match"}]
[3,"CuongNN12","Nguyễn Như Cương","Active","HN","MinhVTN","Developer","DEVE03","AI1 AI4SE",{"$f":"Table13[[#This Row],[MSC tháng 1]]","v":"MinhVTN"},{"$f":"IFERROR(VLOOKUP(Table13[[#This Row],[Account]],Detail_NV__39[[Account]:[MSC PIC]],6,FALSE), \"New Hire\")","v":"MinhVTN"},{"$f":"IF(Table13[[#This Row],[MSC tháng 1]]=\"New Hire\", \"New Hire\", IF(Table13[[#This Row],[MSC ]]=Table13[[#This Row],[MSC tháng 1]],\"Match\",\"New Project or New PM\"))","v":"Match"}]
[4,"DucNH82","Nguyễn Huỳnh Đức","Active","HN","ViVV2","DevOps Engineer","DEVO03","AI1 AI4SE",{"$f":"Table13[[#This Row],[MSC tháng 1]]","v":"ViVV2"},{"$f":"IFERROR(VLOOKUP(Table13[[#This Row],[Account]],Detail_NV__39[[Account]:[MSC PIC]],6,FALSE), \"New Hire\")","v":"ViVV2"},{"$f":"IF(Table13[[#This Row],[MSC tháng 1]]=\"New Hire\", \"New Hire\", IF(Table13[[#This Row],[MSC ]]=Table13[[#This Row],[MSC tháng 1]],\"Match\",\"New Project or New PM\"))","v":"Match"}]
[5,"DuongLLD","Lâm Lữ Đức Dương","Active","HCM","TrinhVC3","Data Engineer","DSEN03","AI1 AI4SE","AnhNT446",{"$f":"IFERROR(VLOOKUP(Table13[[#This Row],[Account]],Detail_NV__39[[Account]:[MSC PIC]],6,FALSE), \"New Hire\")","v":"TrinhVC3"},{"$f":"IF(Table13[[#This Row],[MSC tháng 1]]=\"New Hire\", \"New Hire\", IF(Table13[[#This Row],[MSC ]]=Table13[[#This Row],[MSC tháng 1]],\"Match\",\"New Project or New PM\"))","v":"New Project or New PM"}]
[6,"DuongNH59","Nguyễn Hải Dương","Active","HN","MinhVTN","AI Engineer","AIEN03","AI1 AI4SE",{"$f":"Table13[[#This Row],[MSC tháng 1]]","v":"MinhVTN"},{"$f":"IFERROR(VLOOKUP(Table13[[#This Row],[Account]],Detail_NV__39[[Account]:[MSC PIC]],6,FALSE), \"New Hire\")","v":"MinhVTN"},{"$f":"IF(Table13[[#This Row],[MSC tháng 1]]=\"New Hire\", \"New Hire\", IF(Table13[[#This Row],[MSC ]]=Table13[[#This Row],[MSC tháng 1]],\"Match\",\"New Project or New PM\"))","v":"Match"}]
[7,"HieuPT65","Phùng Thanh Hiếu","Active","HN","MinhVTN","Developer","DEVE04","AI1 AI4SE",{"$f":"Table13[[#This Row],[MSC tháng 1]]","v":"MinhVTN"},{"$f":"IFERROR(VLOOKUP(Table13[[#This Row],[Account]],Detail_NV__39[[Account]:[MSC PIC]],6,FALSE), \"New Hire\")","v":"MinhVTN"},{"$f":"IF(Table13[[#This Row],[MSC tháng 1]]=\"New Hire\", \"New Hire\", IF(Table13[[#This Row],[MSC ]]=Table13[[#This Row],[MSC tháng 1]],\"Match\",\"New Project or New PM\"))","v":"Match"}]
[8,"HieuTT50","Trần Trung Hiếu","Active","HCM","TungNT181","Engineering Manager","CPMA05","AI1 AI4SE",{"$f":"Table13[[#This Row],[MSC tháng 1]]","v":"TungNT181"},{"$f":"IFERROR(VLOOKUP(Table13[[#This Row],[Account]],Detail_NV__39[[Account]:[MSC PIC]],6,FALSE), \"New Hire\")","v":"TungNT181"},{"$f":"IF(Table13[[#This Row],[MSC tháng 1]]=\"New Hire\", \"New Hire\", IF(Table13[[#This Row],[MSC ]]=Table13[[#This Row],[MSC tháng 1]],\"Match\",\"New Project or New PM\"))","v":"Match"}]
[9,"HungPV65","Phạm Vũ Hùng","Active","HN","TrinhVC3","AI Engineer","AIEN03","AI1 AI4SE","AnhNT446",{"$f":"IFERROR(VLOOKUP(Table13[[#This Row],[Account]],Detail_NV__39[[Account]:[MSC PIC]],6,FALSE), \"New Hire\")","v":"TrinhVC3"},{"$f":"IF(Table13[[#This Row],[MSC tháng 1]]=\"New Hire\", \"New Hire\", IF(Table13[[#This Row],[MSC ]]=Table13[[#This Row],[MSC tháng 1]],\"Match\",\"New Project or New PM\"))","v":"New Project or New PM"}]
[10,"HuuTQ2","Trần Quang Hữu","Active","HCM","TrinhVC3","Developer","DEVE05","AI1 AI4SE","AnhNT446",{"$f":"IFERROR(VLOOKUP(Table13[[#This Row],[Account]],Detail_NV__39[[Account]:[MSC PIC]],6,FALSE), \"New Hire\")","v":"TrinhVC3"},{"$f":"IF(Table13[[#This Row],[MSC tháng 1]]=\"New Hire\", \"New Hire\", IF(Table13[[#This Row],[MSC ]]=Table13[[#This Row],[MSC tháng 1]],\"Match\",\"New Project or New PM\"))","v":"New Project or New PM"}]
[11,"HuyVN11","Võ Nhật Huy","Active","HCM","TrinhVC3","Developer","DEVE03","AI1 AI4SE","AnhNT446",{"$f":"IFERROR(VLOOKUP(Table13[[#This Row],[Account]],Detail_NV__39[[Account]:[MSC PIC]],6,FALSE), \"New Hire\")","v":"TrinhVC3"},{"$f":"IF(Table13[[#This Row],[MSC tháng 1]]=\"New Hire\", \"New Hire\", IF(Table13[[#This Row],[MSC ]]=Table13[[#This Row],[MSC tháng 1]],\"Match\",\"New Project or New PM\"))","v":"New Project or New PM"}]
[12,"KhanhPL2","Phạm Long Khánh","Active","HCM","ThienN","AI Engineer","AIEN01","AI1 AI4SE","BinhPC",{"$f":"IFERROR(VLOOKUP(Table13[[#This Row],[Account]],Detail_NV__39[[Account]:[MSC PIC]],6,FALSE), \"New Hire\")","v":"ThienN"},{"$f":"IF(Table13[[#This Row],[MSC tháng 1]]=\"New Hire\", \"New Hire\", IF(Table13[[#This Row],[MSC ]]=Table13[[#This Row],[MSC tháng 1]],\"Match\",\"New Project or New PM\"))","v":"New Project or New PM"}]
[13,"LuanNV31","Nguyễn Văn Luân","Active","HN","ThienN","Developer","DEVE04","AI1 AI4SE","BinhPC",{"$f":"IFERROR(VLOOKUP(Table13[[#This Row],[Account]],Detail_NV__39[[Account]:[MSC PIC]],6,FALSE), \"New Hire\")","v":"ThienN"},{"$f":"IF(Table13[[#This Row],[MSC tháng 1]]=\"New Hire\", \"New Hire\", IF(Table13[[#This Row],[MSC ]]=Table13[[#This Row],[MSC tháng 1]],\"Match\",\"New Project or New PM\"))","v":"New Project or New PM"}]
[14,"ManhPHD","Phạm Hoàng Đức Mạnh","Active","HN","ThienN","Developer","DEVE04","AI1 AI4SE","BinhPC",{"$f":"IFERROR(VLOOKUP(Table13[[#This Row],[Account]],Detail_NV__39[[Account]:[MSC PIC]],6,FALSE), \"New Hire\")","v":"ThienN"},{"$f":"IF(Table13[[#This Row],[MSC tháng 1]]=\"New Hire\", \"New Hire\", IF(Table13[[#This Row],[MSC ]]=Table13[[#This Row],[MSC tháng 1]],\"Match\",\"New Project or New PM\"))","v":"New Project or New PM"}]
[15,"MinhNL11","Nguyễn Lê Minh","Active","HN","NguyetNTA8","AI Engineer","AIEN02","AI1 AI4SE",{"$f":"Table13[[#This Row],[MSC tháng 1]]","v":"NguyetNTA8"},{"$f":"IFERROR(VLOOKUP(Table13[[#This Row],[Account]],Detail_NV__39[[Account]:[MSC PIC]],6,FALSE), \"New Hire\")","v":"NguyetNTA8"},{"$f":"IF(Table13[[#This Row],[MSC tháng 1]]=\"New Hire\", \"New Hire\", IF(Table13[[#This Row],[MSC ]]=Table13[[#This Row],[MSC tháng 1]],\"Match\",\"New Project or New PM\"))","v":"Match"}]
[16,"MinhVTN","Vương Thị Ngọc Minh","Active","HN","TungNT181","Business Development Manager","BDMO01","AI1 AI4SE",{"$f":"Table13[[#This Row],[MSC tháng 1]]","v":"TungNT181"},{"$f":"IFERROR(VLOOKUP(Table13[[#This Row],[Account]],Detail_NV__39[[Account]:[MSC PIC]],6,FALSE), \"New Hire\")","v":"TungNT181"},{"$f":"IF(Table13[[#This Row],[MSC tháng 1]]=\"New Hire\", \"New Hire\", IF(Table13[[#This Row],[MSC ]]=Table13[[#This Row],[MSC tháng 1]],\"Match\",\"New Project or New PM\"))","v":"Match"}]
[17,"NamPH54","Phạm Hoàng Nam","Active","HN"," ","AI Engineer","AIEN00","AI1 AI4SE","MinhVTN",{"$f":"IFERROR(VLOOKUP(Table13[[#This Row],[Account]],Detail_NV__39[[Account]:[MSC PIC]],6,FALSE), \"New Hire\")","v":"New Hire"},{"$f":"IF(Table13[[#This Row],[MSC tháng 1]]=\"New Hire\", \"New Hire\", IF(Table13[[#This Row],[MSC ]]=Table13[[#This Row],[MSC tháng 1]],\"Match\",\"New Project or New PM\"))","v":"New Hire"}]
[18,"NguyenNH25","Nguyễn Hoàng Nguyên","Active","HCM","NguyetNTA8","AI Engineer","AIEN02","AI1 AI4SE",{"$f":"Table13[[#This Row],[MSC tháng 1]]","v":"NguyetNTA8"},{"$f":"IFERROR(VLOOKUP(Table13[[#This Row],[Account]],Detail_NV__39[[Account]:[MSC PIC]],6,FALSE), \"New Hire\")","v":"NguyetNTA8"},{"$f":"IF(Table13[[#This Row],[MSC tháng 1]]=\"New Hire\", \"New Hire\", IF(Table13[[#This Row],[MSC ]]=Table13[[#This Row],[MSC tháng 1]],\"Match\",\"New Project or New PM\"))","v":"Match"}]
[19,"NguyetNTA8","Nguyễn Thị Ánh Nguyệt","Active","HN","TungNT181","Project Manager","SPMA04","AI1 AI4SE",{"$f":"Table13[[#This Row],[MSC tháng 1]]","v":"TungNT181"},{"$f":"IFERROR(VLOOKUP(Table13[[#This Row],[Account]],Detail_NV__39[[Account]:[MSC PIC]],6,FALSE), \"New Hire\")","v":"TungNT181"},{"$f":"IF(Table13[[#This Row],[MSC tháng 1]]=\"New Hire\", \"New Hire\", IF(Table13[[#This Row],[MSC ]]=Table13[[#This Row],[MSC tháng 1]],\"Match\",\"New Project or New PM\"))","v":"Match"}]
[20,"PhatMT3","Mai Tấn Phát","Active","HCM","NguyetNTA8","Business Analyst","BANE04","AI1 AI4SE",{"$f":"Table13[[#This Row],[MSC tháng 1]]","v":"NguyetNTA8"},{"$f":"IFERROR(VLOOKUP(Table13[[#This Row],[Account]],Detail_NV__39[[Account]:[MSC PIC]],6,FALSE), \"New Hire\")","v":"NguyetNTA8"},{"$f":"IF(Table13[[#This Row],[MSC tháng 1]]=\"New Hire\", \"New Hire\", IF(Table13[[#This Row],[MSC ]]=Table13[[#This Row],[MSC tháng 1]],\"Match\",\"New Project or New PM\"))","v":"Match"}]
[21,"PHUCVH12","Võ Hoàng Phúc","Active","CT","TrinhVC3","Solution Architect","SARE03","AI1 AI4SE","AnhNT446",{"$f":"IFERROR(VLOOKUP(Table13[[#This Row],[Account]],Detail_NV__39[[Account]:[MSC PIC]],6,FALSE), \"New Hire\")","v":"TrinhVC3"},{"$f":"IF(Table13[[#This Row],[MSC tháng 1]]=\"New Hire\", \"New Hire\", IF(Table13[[#This Row],[MSC ]]=Table13[[#This Row],[MSC tháng 1]],\"Match\",\"New Project or New PM\"))","v":"New Project or New PM"}]
[22,"QuanNH37","Nguyễn Hoàng Quân","Active","HN"," ","AI Engineer","AIEN03","AI1 AI4SE",{"$f":"Table13[[#This Row],[MSC tháng 1]]","v":"AnhNT446"},{"$f":"IFERROR(VLOOKUP(Table13[[#This Row],[Account]],Detail_NV__39[[Account]:[MSC PIC]],6,FALSE), \"New Hire\")","v":"AnhNT446"},{"$f":"IF(Table13[[#This Row],[MSC tháng 1]]=\"New Hire\", \"New Hire\", IF(Table13[[#This Row],[MSC ]]=Table13[[#This Row],[MSC tháng 1]],\"Match\",\"New Project or New PM\"))","v":"Match"}]
[23,"ThangLV4","Lê Việt Thắng","Active","HCM","AnhNT446","AI Engineer","AIEN03","AI1 AI4SE",{"$f":"Table13[[#This Row],[MSC tháng 1]]","v":"AnhNT446"},{"$f":"IFERROR(VLOOKUP(Table13[[#This Row],[Account]],Detail_NV__39[[Account]:[MSC PIC]],6,FALSE), \"New Hire\")","v":"AnhNT446"},{"$f":"IF(Table13[[#This Row],[MSC tháng 1]]=\"New Hire\", \"New Hire\", IF(Table13[[#This Row],[MSC ]]=Table13[[#This Row],[MSC tháng 1]],\"Match\",\"New Project or New PM\"))","v":"Match"}]
[24,"TruongTQ20","Trương Quốc Trưởng","Active","HN","NguyetNTA8","Developer","DEVE03","AI1 AI4SE",{"$f":"Table13[[#This Row],[MSC tháng 1]]","v":"NguyetNTA8"},{"$f":"IFERROR(VLOOKUP(Table13[[#This Row],[Account]],Detail_NV__39[[Account]:[MSC PIC]],6,FALSE), \"New Hire\")","v":"NguyetNTA8"},{"$f":"IF(Table13[[#This Row],[MSC tháng 1]]=\"New Hire\", \"New Hire\", IF(Table13[[#This Row],[MSC ]]=Table13[[#This Row],[MSC tháng 1]],\"Match\",\"New Project or New PM\"))","v":"Match"}]
[25,"TuanDC6","Đinh Công Tuân","Active","HN","TungNT181","Business Analyst","BANE05","AI1 AI4SE",{"$f":"Table13[[#This Row],[MSC tháng 1]]","v":"TungNT181"},{"$f":"IFERROR(VLOOKUP(Table13[[#This Row],[Account]],Detail_NV__39[[Account]:[MSC PIC]],6,FALSE), \"New Hire\")","v":"TungNT181"},{"$f":"IF(Table13[[#This Row],[MSC tháng 1]]=\"New Hire\", \"New Hire\", IF(Table13[[#This Row],[MSC ]]=Table13[[#This Row],[MSC tháng 1]],\"Match\",\"New Project or New PM\"))","v":"Match"}]
[26,"TungNT181","Nguyễn Thanh Tùng","Active","HCM","PhongNX1","AI Scientist","AISC05","AI1 AI4SE",{"$f":"Table13[[#This Row],[MSC tháng 1]]","v":"PhongNX1"},{"$f":"IFERROR(VLOOKUP(Table13[[#This Row],[Account]],Detail_NV__39[[Account]:[MSC PIC]],6,FALSE), \"New Hire\")","v":"PhongNX1"},{"$f":"IF(Table13[[#This Row],[MSC tháng 1]]=\"New Hire\", \"New Hire\", IF(Table13[[#This Row],[MSC ]]=Table13[[#This Row],[MSC tháng 1]],\"Match\",\"New Project or New PM\"))","v":"Match"}]
[27,"TungNV33","Nguyễn Văn Tung","Active","HN","TrinhVC3","Developer","DEVE03","AI1 AI4SE",{"$f":"Table13[[#This Row],[MSC tháng 1]]","v":"MinhVTN"},{"$f":"IFERROR(VLOOKUP(Table13[[#This Row],[Account]],Detail_NV__39[[Account]:[MSC PIC]],6,FALSE), \"New Hire\")","v":"MinhVTN"},{"$f":"IF(Table13[[#This Row],[MSC tháng 1]]=\"New Hire\", \"New Hire\", IF(Table13[[#This Row],[MSC ]]=Table13[[#This Row],[MSC tháng 1]],\"Match\",\"New Project or New PM\"))","v":"Match"}]
[28,"VietNQ52","Nguyễn Quốc Việt","Active","HN","ThienN","Developer","DEVE04","AI1 AI4SE","BinhPC",{"$f":"IFERROR(VLOOKUP(Table13[[#This Row],[Account]],Detail_NV__39[[Account]:[MSC PIC]],6,FALSE), \"New Hire\")","v":"ThienN"},{"$f":"IF(Table13[[#This Row],[MSC tháng 1]]=\"New Hire\", \"New Hire\", IF(Table13[[#This Row],[MSC ]]=Table13[[#This Row],[MSC tháng 1]],\"Match\",\"New Project or New PM\"))","v":"New Project or New PM"}]

{"sheet":"RA tháng 1_SOL","index":9,"n_rows":136,"n_cols":10,"rows_kept":136,"cut":false,"hidden":true,"merged":[]}
["#","Account","Full Name","Special Status","Head","Department","On-going Project","On-going Project 1","PM dự án","MSC PIC"]
[1,"AnCT5","Cấn Tường An","Active","LanNTQ2","AI1 SOL TE",2,"CISD GenerativeAI","LanNTQ2","LanNTQ2"]
[{"$f":"A2+1","v":2},"AnDN2","Đinh Ngọc Ân","Active","HaiTV23","AI1 SOL TE",0,"",null,"HaiTV23"]
[{"$f":"A3+1","v":3},"AnhNT446","Nguyễn Tuấn Anh","Active","TungNT181","AI1 SOL TE",2,"AI1.SOL.DMO.xMainframe","hungnv31","trangntm13"]
[4,"AnhNV190","Nguyễn Việt Anh","Active","","AI1 SOL TE",1,"AIFarm","trungdvq","trungdvq"]
[5,"AnhPT95","Phạm Tuấn Anh","Active","KhoaNT30","AI1 SOL TE",1,"AI DRBFM","tinhnt27","trungnd25"]
[6,"AnhTQ7116","Trần Quang Anh","Active","KhuongND6","AI1 SOL TE",0,"",null,"KhuongND6"]
[7,"BaoHNQ1","Huỳnh Nhật Quốc Bảo","Active",0,"AI1 SOL TE",1,"AI1.SOL.PET_POC","trungdvq","trungdvq"]
[8,"BinhPC","Phan Công Bình","Active","TamNT17","AI1 SOL TE",1,"AI1.SOL.SB_Security","tungndt4","trungnd25"]
[9,"ChuongTN2","Trần Ngọc Chương","Active",0,"AI1 SOL TE",1,"AI1.SOL.PNP","longnt173","longnt173"]
[10,"CuongNC20","Nguyễn Chí Cường","Active",0,"AI1 SOL TE",2,"AI1.SOL.TMC_OSS","quynhntn1","trungnd25"]
[11,"CuongTT23","Trương Tấn Cường","Active","NhiNP11","AI1 SOL TE",1,"CISD GenerativeAI","duonght13","duonght13"]
[12,"DaoNTA7","Nguyễn Thị Anh Đào","Active",0,"AI1 SOL TE",1,"AI1.SOL.EDWARDS_Translation","langpnn2","langpnn2"]
[13,"DaoTC2","Trần Công Đạo","Active","TuyetDTA1","AI1 SOL TE",0,"AI1.SOL.SB.CCTV","TrungND25","trungnd25"]
[14,"DatHT22","Huỳnh Tuấn Đạt","Active","BinhPC","AI1 SOL TE",1,"AI1.SOL.DMO.xMainframe","hungnv31","binhpc"]
[15,"DatLT94","Lương Tất Đạt","Active",0,"AI1 SOL TE",1,"AI1.SOL.PET_POC","trungdvq","trungdvq"]
[16,"DatNT279","Nguyễn Thành Đạt","Active","TuanNT54","AI1 SOL TE",1,"Covestro_AI","tuannt54","tuannt54"]
[17,"DatNT279","Nguyễn Thành Đạt","Active","TuanNT54","AI1 SOL TE",1,"Covestro_AI","tuannt54","tuannt54"]
[18,"DatNV54","Nguyễn Văn Đạt","Active",0,"AI1 SOL TE",2,"AI1.SOL.NTTC","trangntm13","trangntm13"]
[19,"DongPT11","Phạm Trọng Đồng","Active","NhatNX1","AI1 SOL TE",1,"AI1.SOL.AMANO_Yolo","luanvt5","dungnn31"]
[20,"DucNT156","Nguyễn Thanh Đức","Active","NhatNX1","AI1 SOL TE",1,"AI DRBFM","tinhnt27","trungnd25"]
[21,"DungNN31","Nguyễn Ngọc Dũng","Active","TamNT17","AI1 SOL TE",2,"AI1.SOL.IONITY","luanvt5","TamNT17"]
[22,"DuongHT13","Huỳnh Tấn Dưỡng","Active","TamNT17","AI1 SOL TE",3,"HP PJ2 IvyChat","duonght13","TamNT17"]
[23,"DuyDT14","Dương Thành Duy","Active","VuNQ7","AI1 SOL TE",1,"AIC.SOL.MDDI","langpnn2","langpnn2"]
[24,"HaHT37","Hoàng Thúy Hà","Active","TuanNT54","AI1 SOL TE",1,"Covestro_AI","tuannt54","tuannt54"]
[25,"HaHT37","Hoàng Thúy Hà","Active","TuanNT54","AI1 SOL TE",1,"Covestro_AI","tuannt54","tuannt54"]
[26,"HaiLT61","Lê Trung Hải","Active","HaiTV23","AI1 SOL TE",0,"",null,"HaiTV23"]
[27,"HaiTV23","Tô Văn Hải","Active","NganMTK2","AI1 SOL TE",0,"",null,"NganMTK2"]
[28,"HaLHM1","Lê Hoàng Minh Hà","Active","NhiNP11","AI1 SOL TE",1,"CISD GenerativeAI","duonght13","duonght13"]
[29,"HANGHT","Hứa Thu Hằng","Active","NhiNP11","AI1 SOL TE",1,"CISD GenerativeAI","duonght13","duonght13"]
[30,"HanhTV3","Tạ Vinh Hạnh","Active",0,"AI1 SOL TE",1,"HALCANN2","trungdvq","trungdvq"]
[31,"HaoNN17","Nguyễn Nguyên Hảo","Active","NhiNP11","AI1 SOL TE",1,"CISD GenerativeAI","duonght13","duonght13"]
[32,"HenryB1","Bùi Henry","Active","AnhNT446","AI1 SOL TE",1,"AI1.SOL.DMO.xMainframe","hungnv31","anhnt446"]
[33,"HienDH4","Đoàn Huy Hiên","Active","TrungDVQ","AI1 SOL TE",1,"AI1.SOL.PET_POC","trungdvq","trungdvq"]
[34,"HienNM19","Nguyễn Minh Hiển","Active",0,"AI1 SOL TE",1,"AI1.SOL.SB_Security","tungndt4","trungnd25"]
[35,"HieuDT47","Đào Trung Hiếu","Active","AnhNT446","AI1 SOL TE",1,"AI1.SOL.DMO.xMainframe","hungnv31","anhnt446"]
[36,"HieuLM27","Lương Minh Hiệu","Active","NhatNX1","AI1 SOL TE",1,"AI1.SOL.RMV_Lens","TrangNTM13","TrangNTM13"]
[37,"HoangLX2","Lương Xuân Hoàng","Active",0,"AI1 SOL TE",1,"AI1.SOL.AI Risk Review LLM","thopt1","thopt1"]
[38,"HoangNL10","Nguyễn Lê Hoàng","Active","NhatNX1","AI1 SOL TE",1,"AI1.SOL.PNP","longnt173","longnt173"]
[39,"HoangPH25","Phan Huy Hoàng","Active",0,"AI1 SOL TE",1,"AI Insight Engine","langpnn2","langpnn2"]
[40,"HungLT128","Lộc Tuấn Hùng","Active",0,"AI1 SOL TE",0,"","tienvt4","tienvt4"]
[41,"HungVN6","Vũ Nam Hưng","Active","NhiNP11","AI1 SOL TE",1,"CISD GenerativeAI","duonght13","duonght13"]
[42,"HuongNL16","Nguyễn Lan Hương","Active","TuanNT54","AI1 SOL TE",1,"Covestro_AI","tuannt54","tuannt54"]
[43,"HuongNL16","Nguyễn Lan Hương","Active","TuanNT54","AI1 SOL TE",1,"Covestro_AI","tuannt54","tuannt54"]
[44,"HuongNS","Nguyễn Sông Hương","Active","TamNT17","AI1 SOL TE",0,"",null,"TamNT17"]
[45,"HuyenBK2","Bùi Khánh Huyền","Active","NhiNP11","AI1 SOL TE",1,"CISD GenerativeAI","duonght13","duonght13"]
[46,"HuyHD7","Hoàng Đức Huy","Active","NganMTK2","AI1 SOL TE",0,"",null,"trungdvq"]
[47,"HuyND2190","Nguyễn Đức Huy","Active","TuanNT54","AI1 SOL TE",1,"Covestro_AI","tuannt54","tuannt54"]
[48,"HuyND2190","Nguyễn Đức Huy","Active","TuanNT54","AI1 SOL TE",1,"Covestro_AI","tuannt54","tuannt54"]
[49,"HuyT3","Trần Huy","Active",0,"AI1 SOL TE",1,"UVNAPS","trungdvq","trungdvq"]
[50,"HuyTQ130","Trần Quang Huy","Active","NhatNX1","AI1 SOL TE",1,"AI1.SOL.TMC_PinholeDetection","nguyenndd1","trungnd25"]
[51,"KhangCM2","Châu Minh Khang","Active","NhiNP11","AI1 SOL TE",1,"CISD GenerativeAI","duonght13","duonght13"]
[52,"KhangCP","Cù Phúc Khang","Active","NhatNX1","AI1 SOL TE",1,"AI1.SOL.AI Risk Review LLM","thopt1","thopt1"]
[53,"KhanhPD22","Phạm Đình Khánh","Active","LanNTQ2","AI1 SOL TE",0,"",null,"LanNTQ2"]
[54,"KhiemTN1","Tạ Ngọc Khiêm","Active","BinhPC","AI1 SOL TE",1,"AI1.SOL.SN_Document Extraction",null,"BinhPC"]
[55,"KhoaHA5","Hồ Anh Khoa","Active","NhatNX1","AI1 SOL TE",1,"Multi Internal Customer","nhatnx1","nhatnx1"]
[56,"KhoaNT30","Nguyễn Toàn Khoa","Active","lanntq2","AI1 SOL TE",1,"Multi Internal Customer","lanntq2","lanntq2"]
[57,"KinhTT","Thân Trọng Kính","Active","TamNT17","AI1 SOL TE",1,"AI1.SOL.TE.SCG_Chemical","trungdvq","trungdvq"]
[58,"LangPNN2","Phan Nguyễn Nhất Lang","Active","TamNT17","AI1 SOL TE",0,"",null,"TamNT17"]
[59,"LinhBT16","Bùi Tuấn Linh","Active","ViVV2","AI1 SOL TE",1,null,"ViVV2","ViVV2"]
[60,"LinhND77","Nguyễn Đức Linh","Active","NhiNP11","AI1 SOL TE",1,"CISD GenerativeAI","duonght13","duonght13"]
[61,"LocCH","Chương Hòa Lộc","Active",0,"AI1 SOL TE",1,"OPNEXT88","FHM","trangntm13"]
[62,"LongNN48","Nguyễn Ngọc Long","Active","TuanNT54","AI1 SOL TE",1,"Covestro_AI","tuannt54","tuannt54"]
[63,"LongNN48","Nguyễn Ngọc Long","Active","TuanNT54","AI1 SOL TE",1,"Covestro_AI","tuannt54","tuannt54"]
[64,"LongNT173","Nguyễn Thành Long","Active","TamNT17","AI1 SOL TE",2,"AI1.SOL.NUSKIN_Phoenix","longnt173","TamNT17"]
[65,"LyBM","Bùi Minh Lý","Active","TruongHV1","AI1 SOL TE",1,"AI1.SOL.PET_POC","trungdvq","trungdvq"]
[66,"MaiDTK","Đinh Thị Kim Mai","Active","NganMTK2","AI1 SOL TE",1,"AI1.SOL.NUSKIN_Phoenix","longnt173","longnt173"]
[{"$f":"A67+1","v":67},"ManhND105","Nguyễn Đông Mạnh","Active","NhatNX1","AI1 SOL TE",1,"AI1.SOL.PNP","longnt173","longnt173"]
[68,"ManhNV45","Nguyễn Văn Mạnh","Active","VuNQ7","AI1 SOL TE",1,"AI1.SOL.NESAgenticAI","hoanglh19","nghiaht5"]
[69,"MinhBTC","Bùi Trần Công Minh","Active","TamNT17","AI1 SOL TE",1,"AI1.SOL.AI Risk Review LLM","thopt1","thopt1"]
[70,"MinhLN13","Lê Ngọc Minh","Active",0,"AI1 SOL TE",1,"HALCANN2","trungnd25","trungnd25"]
[71,"NamPNH2","Phạm Ngọc Hải Nam","Active","NhatNX1","AI1 SOL TE",1,"Multi Internal Customer","trangntm13","trangntm13"]
[72,"NghiaHT5","Huỳnh Trung Nghĩa","Active","TamNT17","AI1 SOL TE",1,"AI1.SOL.NESAgenticAI","hoanglh19","trungnd25"]
[73,"NguyenLP11","Lê Phước Nguyên","Active","AnhNT446","AI1 SOL TE",1,"AI1.SOL.DMO.xMainframe","hungnv31","anhnt446"]
[74,"NguyenTT41","Thái Thành Nguyên","Active","NhiNP11","AI1 SOL TE",1,"CISD GenerativeAI","duonght13","duonght13"]
[75,"NhanHT37","Hà Thế Nhân","Active",0,"AI1 SOL TE",1,"AI1.SOL.NEC","duonght13","duonght13"]
[76,"NhatNX1","Nguyễn Xuân Nhật","Active","TamNT17","AI1 SOL TE",1,"AI1.SOL.AMANO_Yolo","luanvt5","trungnd25"]
[77,"NhiNP11","Ngô Phương Nhi","Active","TamNT17","AI1 SOL TE",1,"CISD GenerativeAI","duonght13","duonght13"]
[78,"PhongTNH","Trần Ngọc Hùng Phong","Active","TuanNT54","AI1 SOL TE",1,"AI1.SOL.IONITY","dungnn31","dungnn31"]
[79,"PhuNNT3","Nguyễn Ngọc Thiên Phú","Active","HaiTV23","AI1 SOL TE",1,null,"haitv23","haitv23"]
[80,"PhuNQ15","Nguyễn Quang Phú","Active","KhuongND6","AI1 SOL TE",1,"AI1.SOL.NUSKIN_Phoenix","longnt173","longnt173"]
[81,"PhuongNV44","Nguyễn Việt Phương","Active","NghiaHT5","AI1 SOL TE",0,"",null,"tuannt54"]
[82,"QuanLM51","Lê Minh Quân","Active","TuanNT54","AI1 SOL TE",1,"Covestro_AI","tuannt54","tuannt54"]
[83,"QuanLM51","Lê Minh Quân","Active","TuanNT54","AI1 SOL TE",1,"Covestro_AI","tuannt54","tuannt54"]
[84,"QuyenH","Hoàng Quyền","Active","TuanNT54","AI1 SOL TE",1,"Covestro_AI","tuannt54","tuannt54"]
[85,"QuyenH","Hoàng Quyền","Active","TuanNT54","AI1 SOL TE",1,"Covestro_AI","tuannt54","tuannt54"]
[86,"SonHT35","Hoàng Thái Sơn","Active",0,"AI1 SOL TE",0,"","trungnd25","trungnd25"]
[87,"TamNT17","Nguyễn Thanh Tâm","Active","LanNTQ2","AI1 SOL TE",0,"",null,"LanNTQ2"]
[88,"TanND22","Nguyễn Duy Tân","Active","NhiNP11","AI1 SOL TE",1,"CISD GenerativeAI","duonght13","duonght13"]
[89,"TanNP3","Nguyễn Phúc Tân","Active","TuanNT54","AI1 SOL TE",1,"AI1.SOL.SCH_Teams Chatbot","thopt1","thopt1"]
[90,"ThaiNT13","Nguyễn Tiến Thái","Active","KhoaNT30","AI1 SOL TE",1,"AI1.SOL.CosmosFT","trungnd25","trungnd25"]
[91,"ThangDV47","Dương Văn Thắng","Active","NghiaHT5","AI1 SOL TE",1,"HP PJ2 IvyChat","duonght13","duonght13"]
[92,"ThangTV45","Trịnh Văn Thắng","Active",0,"AI1 SOL TE",1,"AI1.SOL.NESAgenticAI","hoanglh19","nghiaht5"]
[93,"ThanhNV154","Nguyễn Văn Thành","Active","NhatNX1","AI1 SOL TE",0,"AI1.SOL.SB.CCTV","TrungND25","TrungND25"]
[94,"ThePD2","Phạm Đình Thế","Active","ViVV2","AI1 SOL TE",1,"AI1.SOL.SCH_Teams Chatbot","thopt1","thopt1"]
[95,"ThoLD10","Lê Đức Thọ","Active","NghiaHT5","AI1 SOL TE",1,"AI1.SOL.NESAgenticAI","hoanglh19","nghiaht5"]
[96,"ThongCT2","Chu Tuấn Thông","Active",0,"AI1 SOL TE",1,"AI1.SOL.TE.SCG_Chemical","trungdvq","trungdvq"]
[97,"ThoPT1","Phạm Thị Tho","Active","TamNT17","AI1 SOL TE",2,"AI1.SOL.SCH_Teams Chatbot","thopt1","TamNT17"]
[98,"ThuanDV17","Đỗ Văn Thuận","Active",0,"AI1 SOL TE",1,"AI1.SOL.NEC","duonght13","duonght13"]
[99,"ThucLTT1","Lê Trần Trí Thức","Active","KhuongND6","AI1 SOL TE",1,"ASY_AILAB","trangntm13","trangntm13"]
[100,"TienLPT1","Lê Phạm Thủy Tiên","Active",0,"AI1 SOL TE",1,"AI1.SOL.NESAgenticAI","hoanglh19","nghiaht5"]
[101,"TienTT8","Trương Trọng Tiến","Active",0,"AI1 SOL TE",1,"AIFarm","trungdvq","trungdvq"]
[102,"TienVT4","Vũ Thanh Tiến","Active","TamNT17","AI1 SOL TE",1,"AIC.SOL.E2E AI","tamnt17","TamNT17"]
[103,"ToanTV26","Tạ Văn Toàn","Active",0,"AI1 SOL TE",1,"AI1.SOL.NESAgenticAI","hoanglh19","nghiaht5"]
[104,"TrangNDP3","Nguyễn Đài Phương Trang","Active","NhatNX1","AI1 SOL TE",1,"AI1.SOL.TMC_PinholeDetection","nguyenndd1","trungnd25"]
[105,"TrangNTM13","Nguyễn Thị Mai Trang","Active","TamNT17","AI1 SOL TE",2,"AI1.SOL.AMP","trangntm13","TamNT17"]
[106,"TrinhPTN","Phan Thị Ngọc Trinh","Active","TamNT17","AI1 SOL TE",2,"AI Insight Engine","langpnn2","langpnn2"]
[107,"TrinhTTB1","Trần Tô Băng Trinh","Active",0,"AI1 SOL TE",1,"AIFarm","trungdvq","trungdvq"]
[108,"TrungDVQ","Đinh Vũ Quốc Trung","Active","TamNT17","AI1 SOL TE",2,"UVNAPS","trungdvq","TamNT17"]
[109,"TrungHD8","Hoàng Duy Trung","Active",0,"AI1 SOL TE",2,"Toppan Jokomi + Edwards","langpnn2","langpnn2"]
[110,"TrungHQ14","Hoàng Quốc Trung","Active",0,"AI1 SOL TE",1,"AI1.SOL.NEC","duonght13","duonght13"]
[111,"TrungLH12","Lê Hoàng Trung","Active","KhoaNT30","AI1 SOL TE",1,"AI1.SOL.CosmosFT","trungnd25","trungnd25"]
[112,"TrungND25","Nguyễn Đình Trung","Active","TamNT17","AI1 SOL TE",2,"AI1.SOL.CosmosFT","trungnd25","TamNT17"]
[113,"TrungNT108","Nguyễn Thành Trung","Active","TuanNT54","AI1 SOL TE",1,"Covestro_AI","tuannt54","tuannt54"]
[114,"TrungNT108","Nguyễn Thành Trung","Active","TuanNT54","AI1 SOL TE",1,"Covestro_AI","tuannt54","tuannt54"]
[115,"TuanBA22","Bùi Anh Tuấn","Active","LanNTQ2","AI1 SOL TE",1,"AI1.SOL.AMP","trangntm13","trangntm13"]
[116,"TuanDV54","Đỗ Văn Tuấn","Active","NhiNP11","AI1 SOL TE",1,"CISD GenerativeAI","duonght13","duonght13"]
[117,"TuanNS1","Nguyễn Sĩ Tuấn","Active","NhiNP11","AI1 SOL TE",1,"CISD GenerativeAI","duonght13","duonght13"]
[118,"TuMN2","Mai Ngọc Tú","Active",0,"AI1 SOL TE",1,"AI1.SOL.NUSKIN_Phoenix","longnt173","longnt173"]
[119,"TungHT41","Hồ Thanh Tùng","Active",0,"AI1 SOL TE",1,"AI1.SOL.SB_Security","tungndt4","trungnd25"]
[120,"TungNS35","Nguyễn Sơn Tùng","Active","NhiNP11","AI1 SOL TE",1,"CISD GenerativeAI","duonght13","duonght13"]
[121,"TungNS41","Nguyễn Sơn Tùng","Active","TuanNT54","AI1 SOL TE",1,"AI1.SOL.SCH_Teams Chatbot","thopt1","thopt1"]
[122,"TuPA7","Phan Anh Tú","Active","BinhPC","AI1 SOL TE",1,"AI1.SOL.NESAgenticAI","hoanglh19","nghiaht5"]
[123,"VanNT8","Nguyễn Thị Vân","Active","VietTH18","AI1 SOL TE",2,"",null,"DuongHT13"]
[124,"VietPH6","Phạm Hữu Việt","Active",0,"AI1 SOL TE",1,"AI1.SOL.EDWARDS_Translation","langpnn2","langpnn2"]
[125,"VietTH18","Tạ Hoàng Việt","Active",0,"AI1 SOL TE",2,"Toppan Jokomi","duonght13","duonght13"]
[126,"VietTQ57","Trần Quốc Việt","Active","BinhPC","AI1 SOL TE",1,"AI1.SOL.SB_Security","tungndt4","trungnd25"]
[127,"VinhDQ15","Đỗ Quang Vinh","Active","TuanNT54","AI1 SOL TE",1,"Covestro_AI","tuannt54","tuannt54"]
[128,"VinhDQ15","Đỗ Quang Vinh","Active","TuanNT54","AI1 SOL TE",1,"Covestro_AI","tuannt54","tuannt54"]
[129,"ViP1","Phạm Vĩ","Active","HaiTV23","AI1 SOL TE",1,"AI1.SOL.TE.SCG_Chemical","trungdvq","trungdvq"]
[130,"ViVV2","Vũ Vương Vĩ","Active","ViVV2","AI1 SOL TE",1,"Covestro_AI","tuannt54","tuannt54"]
[{"$f":"A131+1","v":131},"VuNDA6","Nguyễn Đăng Anh Vũ","Active","NhatNX1","AI1 SOL TE",0,"AI1.SOL.SB.CCTV","TrungND25","TrungND25"]
[132,"VuNQ7","Nguyễn Quang Vũ","Active","TamNT17","AI1 SOL TE",1,"AIC.SOL.MDDI","TamNT17","TamNT17"]
[133,"VyNK14","Nguyễn Khắc Vỹ","Active","NhatNX1","AI1 SOL TE",0,"AI1.SOL.RMV_Lens","TrangNTM13","TrangNTM13"]
[134,"CuongDD12","Đỗ Đăng Cường","Active","CuongDD21","AI1 SOL TE",0,null,"TamNT17","TamNT17"]
[135,"DangVQM","Vũ Quốc Minh Đăng","Active","LanNTQ2","AI1 SOL TE",1,"Onsite UAE","LanNTQ2","LanNTQ2"]

{"sheet":"RA tháng 1_LAB SC","index":10,"n_rows":22,"n_cols":7,"rows_kept":22,"cut":false,"hidden":true,"merged":[]}
["#","Account","Full Name","Site","Head","Job title","MSC PIC"]
[1,"AnhBT57","Bùi Tuấn Anh","HCM","HaiTV23","AI Engineer","DuongHT13"]
[{"$f":"A2+1","v":2},"C-TienNN","Nguyen Nhut Tien","USA","VanNTH19","Developer","VanNTH19"]
[{"$f":"A3+1","v":3},"DatDT67","Đỗ Thành Đạt","HN","HaiTV23","Developer","DuongHT13"]
[4,"HanVT2","Vũ Thị Hân","HN","NgocLTB1","UI/UX Designer","NgocLTB1"]
[5,"HaVH12","Vũ Hải Hà","HN","HaiTV23","Developer","DuongHT13"]
[6,"HienDT65","Đỗ Thu Hiền","HN","MaiTTQ","Executive Assistant","MaiTTQ"]
[7,"HieuTH7","Thân Huy Hiệu","HCM","HaiTV23","Developer","DuongHT13"]
[8,"KhuongND6","Nguyễn Duy Khương","HCM","PhongNX1","Data Scientist","PhongNX1"]
[9,"LuongPTT","Phạm Trần Trung Lượng","HCM","HaiTV23","AI Engineer","DuongHT13"]
[10,"MaiTTQ","Trần Thị Quỳnh Mai","HL","PhongNX1","HRBP","PhongNX1"]
[11,"NgocLTB1","Lê Thị Bích Ngọc","NT","HaiTV23","UI/UX Designer","HaiTV23"]
[12,"SinhNTA2","Nguyễn Thị Anh Sinh","HCM","NganMTK2","AI Engineer","DuongHT13"]
[13,"ThucPD6","Phạm Đình Thục","HCM","NhiNP11","AI Engineer","DuongHT13"]
[14,"TienPTA3","Phạm Trần Anh Tiên","HCM","HaiTV23","Developer","DuongHT13"]
[15,"TrangTNQ1","Trịnh Ngọc Quỳnh Trang","HCM","PhongNX1","Marketing Officer","PhongNX1"]
[16,"TruongHV1","Hoàng Văn Trưởng","HCM","VanNTH19","AI Scientist","VanNTH19"]
[17,"TruongPX16","Phạm Xuân Trường","HN","TrungDVQ","AI Engineer","TrungDVQ"]
[18,"TuNT82","Nguyễn Trọng Tú","HN","PhongNX1","Solution Architect","PhongNX1"]
[19,"TuTC6","Trịnh Cẩm Tú","HN","PhongNX1","Marketing Officer","PhongNX1"]
[20,"VanNTH19","Nguyễn Thị Hồng Vân","HCM","PhongNX1","AI Scientist","PhongNX1"]
[21,"YenDTM3","Đặng Thục Minh Yến","HN","MaiTTQ","Marketing Officer","MaiTTQ"]

{"sheet":"RA tháng 1_AI4SE","index":11,"n_rows":32,"n_cols":7,"rows_kept":32,"cut":false,"hidden":true,"merged":[]}
["#","Account","Full Name","Site","Job title","Department","MSC PIC"]
[1,"AnhPD23","Phạm Duy Anh","HN","AI Engineer","AI1 AI4SE","ThienN"]
[{"$f":"A2+1","v":2},"CongNM8","Nguyễn Minh Công","HL","Developer","AI1 AI4SE","NguyetNTA8"]
[{"$f":"A3+1","v":3},"CuongNN12","Nguyễn Như Cương","HN","Developer","AI1 AI4SE","MinhVTN"]
[4,"DangVQM","Vũ Quốc Minh Đăng","HCM","AI Engineer","AI1 AI4SE","ThienN"]
[5,"DuongLLD","Lâm Lữ Đức Dương","HCM","Data Engineer","AI1 AI4SE","TrinhVC3"]
[6,"DuongNH59","Nguyễn Hải Dương","HN","AI Engineer","AI1 AI4SE","MinhVTN"]
[7,"HieuPT65","Phùng Thanh Hiếu","HN","Developer","AI1 AI4SE","MinhVTN"]
[8,"HieuTT50","Trần Trung Hiếu","HCM","Engineering Manager","AI1 AI4SE","TungNT181"]
[9,"HungPV65","Phạm Vũ Hùng","HN","AI Engineer","AI1 AI4SE","TrinhVC3"]
[10,"HuuTQ2","Trần Quang Hữu","HCM","Developer","AI1 AI4SE","TrinhVC3"]
[11,"HuyVN11","Võ Nhật Huy","HCM","Developer","AI1 AI4SE","TrinhVC3"]
[12,"KhanhPL2","Phạm Long Khánh","HCM","AI Engineer","AI1 AI4SE","ThienN"]
[13,"LuanNV31","Nguyễn Văn Luân","HN","Developer","AI1 AI4SE","ThienN"]
[14,"ManhPHD","Phạm Hoàng Đức Mạnh","HN","Developer","AI1 AI4SE","ThienN"]
[15,"MinhNL11","Nguyễn Lê Minh","HN","AI Engineer","AI1 AI4SE","NguyetNTA8"]
[16,"MinhVTN","Vương Thị Ngọc Minh","HN","Business Development Manager","AI1 AI4SE","TungNT181"]
[17,"NguyenNH25","Nguyễn Hoàng Nguyên","HCM","AI Engineer","AI1 AI4SE","NguyetNTA8"]
[18,"NguyetNTA8","Nguyễn Thị Ánh Nguyệt","HN","Project Manager","AI1 AI4SE","TungNT181"]
[19,"PhatMT3","Mai Tấn Phát","HCM","Business Analyst","AI1 AI4SE","NguyetNTA8"]
[20,"PHUCVH12","Võ Hoàng Phúc","CT","Solution Architect","AI1 AI4SE","TrinhVC3"]
[21,"ThangLV4","Lê Việt Thắng","HCM","AI Engineer","AI1 AI4SE","AnhNT446"]
[22,"ThienN","Nghiêm Thiện","HCM","Project Manager","AI1 AI4SE","TungNT181"]
[23,"TrangTNT9","Trần Ngọc Thanh Trang","HN","AI Engineer","AI1 AI4SE","TrinhVC3"]
[24,"TrinhVC3","Võ Công Trình","HCM","Project Manager","AI1 AI4SE","TungNT181"]
[25,"TruongTQ20","Trương Quốc Trưởng","HN","Developer","AI1 AI4SE","NguyetNTA8"]
[26,"TuanDC6","Đinh Công Tuân","HN","Business Analyst","AI1 AI4SE","TungNT181"]
[27,"TungNT181","Nguyễn Thanh Tùng","HCM","AI Scientist","AI1 AI4SE","PhongNX1"]
[28,"TungNV33","Nguyễn Văn Tung","HN","Developer","AI1 AI4SE","MinhVTN"]
[29,"VietNQ52","Nguyễn Quốc Việt","HN","Developer","AI1 AI4SE","ThienN"]
[30,"DucNH82","Nguyễn Huỳnh Đức","HN","DevOps Engineer","AI1 AI4SE","ViVV2"]
[31,"QuanNH37","Nguyễn Hoàng Quân","OB","AI Engineer","AI1 AI4SE","AnhNT446"]